Workbook

Sheet Input-data
B2: Transfer functions of PDN filter with ferrite-bead model
B4: C1 | C4: C2 | D4: C3 | E4: Rdc | F4: Lf1 | G4: C4 | H4: C5 | I4: C6 | K4: Fmin
B5: 1000 | C5: 0.001 | D5: 1e-05 | E5: 0.3 | F5: 1e-07 | G5: 1e-05 | H5: 1e-07 | I5: 1e-09 | K5: 1000
B6: R1 | C6: R2 | D6: R3 | E6: Cb | F6: Rf1 | G6: R4 | H6: R5 | I6: R6 | K6: Fmax
B7: 0.001 | C7: 0.05 | D7: 0.01 | E7: 5e-13 | F7: 200 | G7: 0.01 | H7: 0.05 | I7: 0.03 | K7: 100000000
B8: L1 | C8: L2 | D8: L3 | E8: Rb | F8: Lf2 | G8: L4 | H8: L5 | I8: L6
B9: 5e-07 | C9: 5e-10 | D9: 1e-09 | E9: 10 | F9: 5e-08 | G9: 1e-09 | H9: 1e-09 | I9: 1e-10
B10: N1 | C10: N2 | D10: N3 | F10: Rf2 | G10: N4 | H10: N5 | I10: N6
B11: 1 | C11: 5 | D11: 8 | F11: 50 | G11: 1 | H11: 5 | I11: 1
B94: Fsteps
B95: 1000
B96: Incr_
B97: =10^(LOG(F_max/F_min)/(F_steps-1)) -> 1.011591112 | F97: |Zc1|^2 | I97: |Zc2|^2 | L97: |Zc3|^2 | U97: |Zc4|^2 | X97: |Zc5|^2 | AA97: |Zc6|^2
E98: [ohms] | F98: [ohms] | H98: [ohms] | I98: [ohms] | K98: [ohms] | L98: [ohms] | T98: [ohms] | U98: [ohms] | W98: [ohms] | X98: [ohms] | Z98: [ohms] | AA98: [ohms]
B99: N | C99: Freq | D99: Omega | E99: X_1 | F99: Zc1_2 | G99: Zc1 | H99: X_2 | I99: Zc2_2 | J99: Zc2 | K99: X_3 | L99: Zc3_2 | M99: Zc3 | N99: SGin | O99: SBin | P99: Mag{Zc13) | Q99: Ph(Zc13) | R99: Re_Zc13 | S99: Im_Zc13 | T99: X_4 | U99: Zc4_2 | V99: Zc4 | W99: X_5 | X99: Zc5_2 | Y99: Zc5 | Z99: X_6 | AA99: Zc6_2 | AB99: Zc6 | AC99: SGin | AD99: SBin | AE99: Mag{Zc46) | AF99: Ph(Zc46) | AG99: Re_Zc46 | AH99: Im_Zc46 | AI99: G_C46 | AJ99: B_C46 | AK99: Re_Zf1 | AL99: Im_Zf1 | AM99: Re_Zf2 | AN99: Im_Zf2 | AO99: Re_Zl | AP99: Im_Zl | AQ99: Re_Zc | AR99: Im_Zc | AS99: Re_Zf | AT99: Im_Zf | AU99: Mag_Zf | AV99: Ph_Zf | AW99: Mg_C46_F | AX99: Ph_C46_F | AY99: G_C46_F | AZ99: B_C46_F | BA99: Mag_Vtr | BB99: Ph_Vtr | BC99: Re_Vtr | BD99: Im_Vtr | BE99: Mg_C13_F | BF99: Ph_C13_F | BG99: G_C13_F | BH99: B_C13_F | BI99: Mag_Zout | BJ99: Ph_Zout | BK99: Re_Zout | BL99: Im_Zout
B100: 1 | C100: =F_min*incr_^(n_-1) -> 1000 | D100: =2*PI()*Fr_ -> 6283.185307 | E100: =Omega_*L_1/N_1-1/(Omega_*C_1*N_1) -> 0.003141433499 | F100: =(R_1/N_1)^2+X_1^2 -> 1.086860443e-05 | G100: =SQRT(Zc1_2) -> 0.003296756653 | H100: =Omega_*L_2/N_2-1/(Omega_*C_2*N_2) -> -0.0318303603 | I100: =(R_2/N_2)^2+X_2^2 -> 0.001113171837 | J100: =SQRT(Zc2_2) -> 0.0333642299 | K100: =Omega_*L_3/N_3-1/(Omega_*C_3*N_3) -> -1.989436003 | L100: =(R_3/N_3)^2+X_3^2 -> 3.957857174 | M100: =SQRT(Zc3_2) -> 1.989436396 | N100: =R_1/N_1/Zc1_2+R_2/N_2/Zc2_2+R_3/N_3/Zc3_2 -> 100.9917877 | O100: =-X_1/Zc1_2-X_2/Zc2_2-X_3/Zc3_2 -> -259.9404841 | P100: =1/SQRT(S_Gin^2+S_Bin^2) -> 0.003585902095 | Q100: =-180/PI()*ATAN2(S_Gin,S_Bin) -> 68.76791139 | R100: =Mag_Zc13*COS(PI()/180*Ph_Zc13) -> 0.001298622478 | S100: =Mag_Zc13*SIN(PI()/180*Ph_Zc13) -> 0.0033424951 | T100: =Omega_*L_4/N_4-1/(Omega_*C_4*N_4) -> -15.91548803 | U100: =(R_4/N_4)^2+X_4^2 -> 253.3028591 | V100: =SQRT(Zc4_2) -> 15.91549117 | W100: =Omega_*L_5/N_5-1/(Omega_*C_5*N_5) -> -318.3098849 | X100: =(R_5/N_5)^2+X_5^2 -> 101321.1829 | Y100: =SQRT(Zc5_2) -> 318.3098851 | Z100: =Omega_*L_6/N_6-1/(Omega_*C_6*N_6) -> -159154.9431 | AA100: =(R_6/N_6)^2+X_6^2 -> 2.533029591e+10 | AB100: =SQRT(Zc6_2) -> 159154.9431 | AC100: =R_4/N_4/Zc4_2+R_5/N_5/Zc5_2+R_6/N_6/Zc6_2 -> 3.957713042e-05 | AD100: =-X_4/Zc4_2-X_5/Zc5_2-X_6/Zc6_2 -> 0.06597972892 | AE100: =1/SQRT(S_Gout^2+S_Bout^2) -> 15.15616745 | AF100: =-180/PI()*ATAN2(S_Gout,S_Bout) -> -89.96563183 | AG100: =Mag_Zc46*COS(PI()/180*Ph_Zc46) -> 0.009091239353 | AH100: =Mag_Zc46*SIN(PI()/180*Ph_Zc46) -> -15.15616473 | AI100: =1/Mag_Zc46*COS(-PI()/180*Ph_Zc46) -> 3.957713042e-05 | AJ100: =1/Mag_Zc46*SIN(-PI()/180*Ph_Zc46) -> 0.06597972892 | AK100: =Omega_^2*L_f1^2*R_f1/(R_f1^2+Omega_^2*L_f1^2) -> 1.97392088e-09 | AL100: =Omega_*L_f1*R_f1^2/(R_f1^2+Omega_^2*L_f1^2) -> 0.0006283185307 | AM100: =Omega_^2*L_f2^2*R_f2/(R_f2^2+Omega_^2*L_f2^2) -> 1.97392088e-09 | AN100: =Omega_*L_f2*R_f2^2/(R_f2^2+Omega_^2*L_f2^2) -> 0.0003141592653 | AO100: =Re_Zf1+Re_Zf2 -> 3.94784176e-09 | AP100: =Im_Zf1+Im_Zf2 -> 0.0009424777961 | AQ100: =R_b -> 10 | AR100: =-1/(Omega_*C_b) -> -318309886.2 | AS100: =R_dc+((Re_Zl*Re_Zc-Im_Zl*Im_Zc)*(Re_Zl+Re_Zc)+((Re_Zl*Im_Zc+Re_Zc*Im_Zl)*(Im_Zl+Im_Zc)))/((Re_Zl+Re_Zc)^2+(Im_Zl+Im_Zc)^2) -> 0.3000000039 | AT100: =((Re_Zl+Re_Zc)*(Re_Zl*Im_Zc+Re_Zc*Im_Zl)-(Im_Zl+Im_Zc)*(Re_Zl*Re_Zc-Im_Zl*Im_Zc))/((Re_Zl+Re_Zc)^2+(Im_Zl+Im_Zc)^2) -> 0.0009424777961 | AU100: =SQRT(Re_Zf^2+Im_Zf^2) -> 0.3000014844 | AV100: =180/PI()*ATAN2(Re_Zf,Im_Zf) -> 0.1799994055 | AW100: =SQRT((Re_Zc46+Re_Zf)^2+(Im_Zc46+Im_Zf)^2) -> 15.15837389 | AX100: =180/PI()*ATAN2((Re_Zc46+Re_Zf),(Im_Zc46+Im_Zf)) -> -88.83161272 | AY100: =1/Mag_C46_F*COS(-PI()/180*Ph_C46_F) -> 0.001345183315 | AZ100: =1/Mag_C46_F*SIN(-PI()/180*Ph_C46_F) -> 0.06595642077 | BA100: =Mag_Zc46/Mag_C46_F -> 0.9998544415 | BB100: =Ph_Zc46-Ph_C46_F -> -1.134019111 | BC100: =Mag_Vtr*COS(PI()/180*Ph_Vtr) -> 0.9996586075 | BD100: =Mag_Vtr*SIN(PI()/180*Ph_Vtr) -> -0.0197881943 | BE100: =SQRT((Re_Zc13+Re_Zf)^2+(Im_Zc13+Im_Zf)^2) -> 0.3013290946 | BF100: =180/PI()*ATAN2((Re_Zc13+Re_Zf),(Im_Zc13+Im_Zf)) -> 0.8147873595 | BG100: =1/Mag_C13_F*COS(-PI()/180*Ph_C13_F) -> 3.318295196 | BH100: =1/Mag_C13_F*SIN(-PI()/180*Ph_C13_F) -> -0.04719173514 | BI100: =1/SQRT((G_C13_F+G_C46)^2+(B_C13_F+B_C46)^2) -> 0.3013511415 | BJ100: =-180/PI()*ATAN2((G_C13_F+G_C46),(B_C13_F+B_C46)) -> -0.3243980249 | BK100: =Mag_Zout*COS(PI()/180*Ph_Zout) -> 0.3013463115 | BL100: =Mag_Zout*SIN(PI()/180*Ph_Zout) -> -0.001706184882
B101: 2 | C101: =F_min*incr_^(n_-1) -> 1011.591112 | D101: =2*PI()*Fr_ -> 6356.014413 | E101: =Omega_*L_1/N_1-1/(Omega_*C_1*N_1) -> 0.003177849875 | F101: =(R_1/N_1)^2+X_1^2 -> 1.109872983e-05 | G101: =SQRT(Zc1_2) -> 0.003331475623 | H101: =Omega_*L_2/N_2-1/(Omega_*C_2*N_2) -> -0.03146562407 | I101: =(R_2/N_2)^2+X_2^2 -> 0.001090085498 | J101: =SQRT(Zc2_2) -> 0.03301644284 | K101: =Omega_*L_3/N_3-1/(Omega_*C_3*N_3) -> -1.966640435 | L101: =(R_3/N_3)^2+X_3^2 -> 3.867676163 | M101: =SQRT(Zc3_2) -> 1.966640832 | N101: =R_1/N_1/Zc1_2+R_2/N_2/Zc2_2+R_3/N_3/Zc3_2 -> 99.27431581 | O101: =-X_1/Zc1_2-X_2/Zc2_2-X_3/Zc3_2 -> -256.9517837 | P101: =1/SQRT(S_Gin^2+S_Bin^2) -> 0.003630257723 | Q101: =-180/PI()*ATAN2(S_Gin,S_Bin) -> 68.87576779 | R101: =Mag_Zc13*COS(PI()/180*Ph_Zc13) -> 0.001308313488 | S101: =Mag_Zc13*SIN(PI()/180*Ph_Zc13) -> 0.003386308751 | T101: =Omega_*L_4/N_4-1/(Omega_*C_4*N_4) -> -15.73312348 | U101: =(R_4/N_4)^2+X_4^2 -> 247.5312744 | V101: =SQRT(Zc4_2) -> 15.73312666 | W101: =Omega_*L_5/N_5-1/(Omega_*C_5*N_5) -> -314.6625954 | X101: =(R_5/N_5)^2+X_5^2 -> 99012.54907 | Y101: =SQRT(Zc5_2) -> 314.6625956 | Z101: =Omega_*L_6/N_6-1/(Omega_*C_6*N_6) -> -157331.2984 | AA101: =(R_6/N_6)^2+X_6^2 -> 2.475313744e+10 | AB101: =SQRT(Zc6_2) -> 157331.2984 | AC101: =R_4/N_4/Zc4_2+R_5/N_5/Zc5_2+R_6/N_6/Zc6_2 -> 4.049993405e-05 | AD101: =-X_4/Zc4_2-X_5/Zc5_2-X_6/Zc6_2 -> 0.06674450736 | AE101: =1/SQRT(S_Gout^2+S_Bout^2) -> 14.98250351 | AF101: =-180/PI()*ATAN2(S_Gout,S_Bout) -> -89.96523347 | AG101: =Mag_Zc46*COS(PI()/180*Ph_Zc46) -> 0.00909123936 | AH101: =Mag_Zc46*SIN(PI()/180*Ph_Zc46) -> -14.98250075 | AI101: 4.049993405e-05 | AJ101: 0.06674450736 | AK101: =Omega_^2*L_f1^2*R_f1/(R_f1^2+Omega_^2*L_f1^2) -> 2.019945961e-09 | AL101: =Omega_*L_f1*R_f1^2/(R_f1^2+Omega_^2*L_f1^2) -> 0.0006356014413 | AM101: =Omega_^2*L_f2^2*R_f2/(R_f2^2+Omega_^2*L_f2^2) -> 2.019945961e-09 | AN101: =Omega_*L_f2*R_f2^2/(R_f2^2+Omega_^2*L_f2^2) -> 0.0003178007206 | AO101: =Re_Zf1+Re_Zf2 -> 4.039891922e-09 | AP101: =Im_Zf1+Im_Zf2 -> 0.000953402162 | AQ101: =R_b -> 10 | AR101: =-1/(Omega_*C_b) -> -314662596.7 | AS101: =R_dc+((Re_Zl*Re_Zc-Im_Zl*Im_Zc)*(Re_Zl+Re_Zc)+((Re_Zl*Im_Zc+Re_Zc*Im_Zl)*(Im_Zl+Im_Zc)))/((Re_Zl+Re_Zc)^2+(Im_Zl+Im_Zc)^2) -> 0.300000004 | AT101: =((Re_Zl+Re_Zc)*(Re_Zl*Im_Zc+Re_Zc*Im_Zl)-(Im_Zl+Im_Zc)*(Re_Zl*Re_Zc-Im_Zl*Im_Zc))/((Re_Zl+Re_Zc)^2+(Im_Zl+Im_Zc)^2) -> 0.000953402162 | AU101: =SQRT(Re_Zf^2+Im_Zf^2) -> 0.300001519 | AV101: =180/PI()*ATAN2(Re_Zf,Im_Zf) -> 0.1820857847 | AW101: =SQRT((Re_Zc46+Re_Zf)^2+(Im_Zc46+Im_Zf)^2) -> 14.98473551 | AX101: =180/PI()*ATAN2((Re_Zc46+Re_Zf),(Im_Zc46+Im_Zf)) -> -88.81807191 | AY101: 0.001376539056 | AZ101: 0.06672037944 | BA101: =Mag_Zc46/Mag_C46_F -> 0.9998510482 | BB101: =Ph_Zc46-Ph_C46_F -> -1.147161558 | BC101: =Mag_Vtr*COS(PI()/180*Ph_Vtr) -> 0.9996506496 | BD101: =Mag_Vtr*SIN(PI()/180*Ph_Vtr) -> -0.0200174265 | BE101: =SQRT((Re_Zc13+Re_Zf)^2+(Im_Zc13+Im_Zf)^2) -> 0.3013395681 | BF101: =180/PI()*ATAN2((Re_Zc13+Re_Zf),(Im_Zc13+Im_Zf)) -> 0.8251678227 | BG101: 3.31817126 | BH101: -0.04779125962 | BI101: =1/SQRT((G_C13_F+G_C46)^2+(B_C13_F+B_C46)^2) -> 0.3013622275 | BJ101: =-180/PI()*ATAN2((G_C13_F+G_C46),(B_C13_F+B_C46)) -> -0.3272634095 | BK101: =Mag_Zout*COS(PI()/180*Ph_Zout) -> 0.3013573116 | BL101: =Mag_Zout*SIN(PI()/180*Ph_Zout) -> -0.001721318649
B102: 3 | C102: 1023.316578 | D102: 6429.68769 | E102: 0.003214688316 | F102: 1.133422097e-05 | G102: 0.003366633477 | H102: -0.03110506693 | I102: 0.001067525189 | J102: 0.03267300397 | K102: -1.944106065 | L102: 3.779549954 | M102: 1.944106467 | N102: 97.59617518 | O102: -253.9748317 | P102: 0.003675372161 | Q102: 68.97948093 | R102: 0.00131836432 | S102: 0.00343078359 | T102: -15.55284852 | U102: 241.891197 | V102: 15.55285173 | W102: -311.0570977 | X102: 96756.51812 | Y102: 311.0570978 | Z102: -155528.5495 | AA102: 2.41891297e+10 | AB102: 155528.5495 | AC102: 4.144425433e-05 | AD102: 0.06751815044 | AE102: 14.81082946 | AF102: -89.96483049 | AG102: 0.009091239368 | AH102: -14.81082667 | AI102: 4.144425433e-05 | AJ102: 0.06751815044 | AK102: 2.067044189e-09 | AL102: 0.0006429687689 | AM102: 2.067044189e-09 | AN102: 0.0003214843845 | AO102: 4.134088378e-09 | AP102: 0.0009644531534 | AQ102: 10 | AR102: -311057099 | AS102: 0.3000000041 | AT102: 0.0009644531534 | AU102: 0.3000015544 | AV102: 0.184196347 | AW102: 14.81308733 | AX102: -88.80437422 | AY102: 0.001408625465 | AZ102: 0.06749317391 | BA102: 0.9998475759 | BB102: -1.160456266 | BC102: 0.9996425064 | BD102: -0.02024931101 | BE102: 0.3013504227 | BF102: 0.8356963377 | BG102: 3.318042902 | BH102: -0.04839925344 | BI102: 0.3013737131 | BJ102: -0.3301362682 | BK102: 0.3013687103 | BL102: -0.001736495136
B103: 4 | C103: 1035.177956 | D103: 6504.214921 | E103: 0.003251953714 | F103: 1.157520296e-05 | G103: 0.003402234995 | H103: -0.03074864099 | I103: 0.001045478923 | J103: 0.0323338665 | K103: -1.9218299 | L103: 3.693431727 | M103: 1.921830307 | N103: 95.95690654 | O103: -251.0100041 | P103: 0.003721260308 | Q103: 69.07898476 | R103: 0.001328789966 | S103: 0.003475930883 | T103: -15.3746392 | U103: 236.3796305 | V103: 15.37464245 | W103: -307.4929128 | X103: 94551.89152 | Y103: 307.492913 | Z103: -153746.457 | AA103: 2.363797305e+10 | AB103: 153746.457 | AC103: 4.241059294e-05 | AD103: 0.0683007609 | AE103: 14.6411225 | AF103: -89.96442283 | AG103: 0.009091239375 | AH103: -14.64111968 | AI103: 4.241059294e-05 | AJ103: 0.0683007609 | AK103: 2.115240587e-09 | AL103: 0.0006504214921 | AM103: 2.115240587e-09 | AN103: 0.000325210746 | AO103: 4.230481174e-09 | AP103: 0.0009756322381 | AQ103: 10 | AR103: -307492914.1 | AS103: 0.3000000042 | AT103: 0.0009756322382 | AU103: 0.3000015907 | AV103: 0.1863313725 | AW103: 14.64340654 | AX103: -88.79051783 | AY103: 0.001441459559 | AZ103: 0.06827490592 | BA103: 0.9998440227 | BB103: -1.173904998 | BC103: 0.9996341733 | BD103: -0.0204838784 | BE103: 0.3013616741 | BF103: 0.8463752272 | BG103: 3.317909945 | BH103: -0.04901584526 | BI103: 0.3013856144 | BJ103: -0.3330161839 | BK103: 0.3013805237 | BL103: -0.001751712306
B104: 5 | C104: 1047.176819 | D104: 6579.606006 | E104: 0.003289651018 | F104: 1.182180382e-05 | G104: 0.003438285012 | H104: -0.03039629891 | I104: 0.001023934987 | J104: 0.03199898416 | K104: -1.899808982 | L104: 3.609275731 | M104: 1.899809393 | N104: 94.35605125 | O104: -248.0576639 | P104: 0.003767937392 | Q104: 69.17421104 | R104: 0.00133960609 | S104: 0.003521762018 | T104: -15.19847186 | U104: 230.9936468 | V104: 15.19847515 | W104: -303.9695674 | X104: 92397.498 | Y104: 303.9695676 | Z104: -151984.7844 | AA104: 2.309937468e+10 | AB104: 151984.7844 | AC104: 4.339946328e-05 | AD104: 0.06909244268 | AE104: 14.47336009 | AF104: -89.96401045 | AG104: 0.009091239383 | AH104: -14.47335724 | AI104: 4.339946328e-05 | AJ104: 0.06909244268 | AK104: 2.16456076e-09 | AL104: 0.0006579606006 | AM104: 2.16456076e-09 | AN104: 0.0003289803003 | AO104: 4.32912152e-09 | AP104: 0.0009869409009 | AQ104: 10 | AR104: -303969568.7 | AS104: 0.3000000043 | AT104: 0.0009869409009 | AU104: 0.3000016277 | AV104: 0.1884911448 | AW104: 14.4756706 | AX104: -88.77650091 | AY104: 0.001475058749 | AZ104: 0.06906567837 | BA104: 0.9998403867 | BB104: -1.187509538 | BC104: 0.9996256461 | BD104: -0.02072115961 | BE104: 0.3013733386 | BF104: 0.857206835 | BG104: 3.317772202 | BH104: -0.04964116463 | BI104: 0.3013979483 | BJ104: -0.3359027458 | BK104: 0.3013927687 | BL104: -0.001766968166
B105: 6 | C105: 1059.314764 | D105: 6655.870958 | E105: 0.003327785236 | F105: 1.207415457e-05 | G105: 0.003474788422 | H105: -0.0300479939 | I105: 0.001002881937 | J105: 0.03166831125 | K105: -1.878040386 | L105: 3.527037254 | M105: 1.878040802 | N105: 92.79315155 | O105: -245.1181611 | P105: 0.003815418973 | Q105: 69.26508926 | R105: 0.00135082906 | S105: 0.003568288496 | T105: -15.02432309 | U105: 225.7303842 | V105: 15.02432642 | W105: -300.4865935 | X105: 90292.193 | Y105: 300.4865937 | Z105: -150243.2974 | AA105: 2.257304842e+10 | AB105: 150243.2974 | AC105: 4.441139071e-05 | AD105: 0.06989330094 | AE105: 14.30751996 | AF105: -89.96359329 | AG105: 0.009091239391 | AH105: -14.30751707 | AI105: 4.441139071e-05 | AJ105: 0.06989330094 | AK105: 2.21503091e-09 | AL105: 0.0006655870958 | AM105: 2.21503091e-09 | AN105: 0.0003327935479 | AO105: 4.430061821e-09 | AP105: 0.0009983806437 | AQ105: 10 | AR105: -300486594.9 | AS105: 0.3000000044 | AT105: 0.0009983806437 | AU105: 0.3000016657 | AV105: 0.1906759507 | AW105: 14.30985725 | AX105: -88.76232161 | AY105: 0.001509440852 | AZ105: 0.06986559531 | BA105: 0.9998366659 | BB105: -1.201271687 | BC105: 0.9996169202 | BD105: -0.0209611859 | BE105: 0.3013854331 | BF105: 0.868193524 | BG105: 3.31762948 | BH105: -0.05027534183 | BI105: 0.3014107324 | BJ105: -0.3387955524 | BK105: 0.3014054631 | BL105: -0.001782260777
B106: 7 | C106: 1071.5934 | D106: 6733.019905 | E106: 0.003366361431 | F106: 1.233238928e-05 | G106: 0.003511750174 | H106: -0.0297036797 | I106: 0.0009823085875 | J106: 0.03134180256 | K106: -1.856521221 | L106: 3.446672606 | M106: 1.856521642 | N106: 91.2677509 | O106: -242.1918328 | P106: 0.003863720951 | Q106: 69.3515466 | R106: 0.001362475979 | S106: 0.003615521925 | T106: -14.85216977 | U106: 220.5870468 | V106: 14.85217313 | W106: -297.0435286 | X106: 88234.858 | Y106: 297.0435288 | Z106: -148521.765 | AA106: 2.205871468e+10 | AB106: 148521.765 | AC106: 4.544691285e-05 | AD106: 0.07070344203 | AE106: 14.14358007 | AF106: -89.9631713 | AG106: 0.009091239399 | AH106: -14.14357715 | AI106: 4.544691285e-05 | AJ106: 0.07070344203 | AK106: 2.266677852e-09 | AL106: 0.0006733019905 | AM106: 2.266677852e-09 | AN106: 0.0003366509952 | AO106: 4.533355704e-09 | AP106: 0.001009952986 | AQ106: 10 | AR106: -297043530 | AS106: 0.3000000045 | AT106: 0.001009952986 | AU106: 0.3000017045 | AV106: 0.1928860804 | AW106: 14.14594444 | AX106: -88.74797803 | AY106: 0.001544624098 | AZ106: 0.07067476199 | BA106: 0.9998328584 | BB106: -1.21519327 | BC106: 0.999607991 | BD106: -0.02120398891 | BE106: 0.3013979756 | BF106: 0.879337674 | BG106: 3.317481579 | BH106: -0.05091850779 | BI106: 0.3014239852 | BJ106: -0.3416942144 | BK106: 0.3014186251 | BL106: -0.001797588273
B107: 8 | C107: 1084.014359 | D107: 6811.063094 | E107: 0.003405384727 | F107: 1.259664514e-05 | G107: 0.003549175276 | H107: -0.02936331057 | I107: 0.0009622040075 | J107: 0.0310194134 | K107: -1.835248628 | L107: 3.36813909 | M107: 1.835249054 | N107: 89.77939419 | O107: -239.2790043 | P107: 0.003912859562 | Q107: 69.43350777 | R107: 0.001374564717 | S107: 0.003663474005 | T107: -14.68198903 | U107: 215.5609018 | V107: 14.68199243 | W107: -293.6399154 | X107: 86224.40001 | Y107: 293.6399156 | Z107: -146819.9584 | AA107: 2.155610018e+10 | AB107: 146819.9584 | AC107: 4.650657984e-05 | AD107: 0.07152297357 | AE107: 13.98151865 | AF107: -89.96274441 | AG107: 0.009091239407 | AH107: -13.98151569 | AI107: 4.650657984e-05 | AJ107: 0.07152297357 | AK107: 2.319529024e-09 | AL107: 0.0006811063094 | AM107: 2.319529024e-09 | AN107: 0.0003405531547 | AO107: 4.639058047e-09 | AP107: 0.001021659464 | AQ107: 10 | AR107: -293639916.7 | AS107: 0.3000000046 | AT107: 0.001021659464 | AU107: 0.3000017443 | AV107: 0.1951218273 | AW107: 13.98391042 | AX107: -88.73346828 | AY107: 0.001580627144 | AZ107: 0.07149328484 | BA107: 0.9998289622 | BB107: -1.229276132 | BC107: 0.9995988536 | BD107: -0.02144960065 | BE107: 0.3014109844 | BF107: 0.8906416791 | BG107: 3.317328287 | BH107: -0.05157079385 | BI107: 0.3014377259 | BJ107: -0.3445983577 | BK107: 0.301432274 | BL107: -0.001812948876
B108: 9 | C108: 1096.579291 | D108: 6890.010891 | E108: 0.003444860308 | F108: 1.286706254e-05 | G108: 0.003587068795 | H108: -0.02902684131 | I108: 0.0009425575166 | J108: 0.0307010996 | K108: -1.814219783 | L108: 3.291394985 | M108: 1.814220214 | N108: 88.32762798 | O108: -236.3799887 | P108: 0.003962851386 | Q108: 69.51089502 | R108: 0.00138711395 | S108: 0.003712156516 | T108: -14.51375827 | U108: 210.649279 | V108: 14.51376171 | W108: -290.2753018 | X108: 84259.75091 | Y108: 290.2753019 | Z108: -145137.6516 | AA108: 2.10649379e+10 | AB108: 145137.6516 | AC108: 4.759095467e-05 | AD108: 0.07235200438 | AE108: 13.82131417 | AF108: -89.96231258 | AG108: 0.009091239415 | AH108: -13.82131118 | AI108: 4.759095467e-05 | AJ108: 0.07235200438 | AK108: 2.373612504e-09 | AL108: 0.0006890010891 | AM108: 2.373612504e-09 | AN108: 0.0003445005445 | AO108: 4.747225008e-09 | AP108: 0.001033501634 | AQ108: 10 | AR108: -290275303.1 | AS108: 0.3000000047 | AT108: 0.001033501634 | AU108: 0.300001785 | AV108: 0.1973834885 | AW108: 13.82373367 | AX108: -88.71879044 | AY108: 0.001617469077 | AZ108: 0.0723212715 | BA108: 0.9998249751 | BB108: -1.24352214 | BC108: 0.9995895034 | BD108: -0.02169805345 | BE108: 0.3014244791 | BF108: 0.9021079451 | BG108: 3.317169385 | BH108: -0.0522323316 | BI108: 0.3014519744 | BJ108: -0.3475076271 | BK108: 0.3014464298 | BL108: -0.001828340917
B109: 10 | C109: 1109.289865 | D109: 6969.873781 | E109: 0.003484793416 | F109: 1.314378515e-05 | G109: 0.003625435857 | H109: -0.02869422724 | I109: 0.0009233586768 | J109: 0.03038681748 | K109: -1.793431893 | L109: 3.216399517 | M109: 1.793432329 | N109: 86.91200074 | O109: -233.4950872 | P109: 0.004013713348 | Q109: 69.58362797 | R109: 0.001400143192 | S109: 0.0037615813 | T109: -14.34745514 | U109: 205.8495691 | V109: 14.34745863 | W109: -286.9492409 | X109: 82339.86694 | Y109: 286.949241 | Z109: -143474.6211 | AA109: 2.058496691e+10 | AB109: 143474.6211 | AC109: 4.870061343e-05 | AD109: 0.07319064458 | AE109: 13.66294537 | AF109: -89.96187574 | AG109: 0.009091239424 | AH109: -13.66294235 | AI109: 4.870061343e-05 | AJ109: 0.07319064458 | AK109: 2.428957026e-09 | AL109: 0.000696987378 | AM109: 2.428957026e-09 | AN109: 0.000348493689 | AO109: 4.857914051e-09 | AP109: 0.001045481067 | AQ109: 10 | AR109: -286949242.3 | AS109: 0.3000000049 | AT109: 0.001045481067 | AU109: 0.3000018266 | AV109: 0.1996713641 | AW109: 13.66539291 | AX109: -88.70394256 | AY109: 0.00165516943 | AZ109: 0.07315883083 | BA109: 0.9998208952 | BB109: -1.257933181 | BC109: 0.9995799353 | BD109: -0.02194938005 | BE109: 0.3014384798 | BF109: 0.9137388858 | BG109: 3.317004644 | BH109: -0.0529032527 | BI109: 0.3014667518 | BJ109: -0.35042169 | BK109: 0.3014611135 | BL109: -0.001843762856
B110: 11 | C110: 1122.147768 | D110: 7050.66237 | E110: 0.003525189354 | F110: 1.342695998e-05 | G110: 0.003664281646 | H110: -0.02836542417 | I110: 0.0009045972885 | J110: 0.03007652388 | K110: -1.772882196 | L110: 3.143112844 | M110: 1.772882637 | N110: 85.53206305 | O110: -230.6245901 | P110: 0.004065462717 | Q110: 69.65162358 | R110: 0.001413672835 | S110: 0.003811760252 | T110: -14.18305757 | U110: 201.159222 | V110: 14.18306109 | W110: -283.661291 | X110: 80463.7281 | Y110: 283.6612912 | Z110: -141830.6462 | AA110: 2.01159322e+10 | AB110: 141830.6462 | AC110: 4.983614566e-05 | AD110: 0.07403900556 | AE110: 13.5063912 | AF110: -89.96143384 | AG110: 0.009091239433 | AH110: -13.50638815 | AI110: 4.983614566e-05 | AJ110: 0.07403900556 | AK110: 2.485591993e-09 | AL110: 0.000705066237 | AM110: 2.485591992e-09 | AN110: 0.0003525331185 | AO110: 4.971183985e-09 | AP110: 0.001057599355 | AQ110: 10 | AR110: -283661292.4 | AS110: 0.300000005 | AT110: 0.001057599355 | AU110: 0.3000018692 | AV110: 0.2019857582 | AW110: 13.50886711 | AX110: -88.68892267 | AY110: 0.001693748191 | AZ110: 0.07400607293 | BA110: 0.9998167201 | BB110: -1.272511164 | BC110: 0.9995701443 | BD110: -0.02220361355 | BE110: 0.3014530077 | BF110: 0.9255369202 | BG110: 3.316833825 | BH110: -0.0535836886 | BI110: 0.3014820798 | BJ110: -0.3533402412 | BK110: 0.3014763469 | BL110: -0.001859213304
B111: 12 | C111: 1135.154709 | D111: 7132.387388 | E111: 0.003566053489 | F111: 1.371673748e-05 | G111: 0.003703611411 | H111: -0.02804038844 | I111: 0.0008862633841 | J111: 0.02977017608 | K111: -1.752567964 | L111: 3.07149603 | M111: 1.752568409 | N111: 84.18736778 | O111: -227.7687764 | P111: 0.004118117113 | Q111: 69.71479604 | R111: 0.001427724188 | S111: 0.003862705295 | T111: -14.02054371 | U111: 196.5757459 | V111: 14.02054728 | W111: -280.4110154 | X111: 78630.33766 | Y111: 280.4110156 | Z111: -140205.5084 | AA111: 1.965758459e+10 | AB111: 140205.5084 | AC111: 5.099815464e-05 | AD111: 0.07489719998 | AE111: 13.35163088 | AF111: -89.96098681 | AG111: 0.009091239442 | AH111: -13.35162779 | AI111: 5.099815464e-05 | AJ111: 0.07489719998 | AK111: 2.543547493e-09 | AL111: 0.0007132387388 | AM111: 2.543547493e-09 | AN111: 0.0003566193694 | AO111: 5.087094986e-09 | AP111: 0.001069858108 | AQ111: 10 | AR111: -280411016.8 | AS111: 0.3000000051 | AT111: 0.001069858108 | AU111: 0.3000019127 | AV111: 0.2043269779 | AW111: 13.35413548 | AX111: -88.67372879 | AY111: 0.001733225809 | AZ111: 0.07486310913 | BA111: 0.9998124478 | BB111: -1.287258022 | BC111: 0.9995601252 | BD111: -0.02246078742 | BE111: 0.3014680848 | BF111: 0.937504468 | BG111: 3.316656678 | BH111: -0.05427377033 | BI111: 0.3014979812 | BJ111: -0.3562630068 | BK111: 0.3014921528 | BL111: -0.001874691052
B112: 13 | C112: 1148.312415 | D112: 7215.059691 | E112: 0.003607391247 | F112: 1.401327161e-05 | G112: 0.00374343046 | H112: -0.02771907688 | I112: 0.0008683472232 | J112: 0.0294677319 | K112: -1.732486497 | L112: 3.001511026 | M112: 1.732486948 | N112: 82.87747031 | O112: -224.9279144 | P112: 0.004171694497 | Q112: 69.77305668 | R112: 0.001442319515 | S112: 0.003914428361 | T112: -13.85989198 | U112: 192.0967057 | V112: 13.85989559 | W112: -277.1979824 | X112: 76838.72157 | Y112: 277.1979826 | Z112: -138598.9919 | AA112: 1.920968057e+10 | AB112: 138598.9919 | AC112: 5.218725772e-05 | AD112: 0.07576534183 | AE112: 13.19864385 | AF112: -89.96053461 | AG112: 0.009091239451 | AH112: -13.19864072 | AI112: 5.218725772e-05 | AJ112: 0.07576534183 | AK112: 2.602854317e-09 | AL112: 0.0007215059691 | AM112: 2.602854317e-09 | AN112: 0.0003607529845 | AO112: 5.205708634e-09 | AP112: 0.001082258954 | AQ112: 10 | AR112: -277197983.9 | AS112: 0.3000000052 | AT112: 0.001082258954 | AU112: 0.3000019573 | AV112: 0.2066953344 | AW112: 13.20117747 | AX112: -88.6583589 | AY112: 0.001773623213 | AZ112: 0.07573005203 | BA112: 0.9998080759 | BB112: -1.302175708 | BC112: 0.9995498726 | BD112: -0.02272093552 | BE112: 0.3014837342 | BF112: 0.9496439456 | BG112: 3.316472944 | BH112: -0.05497362822 | BI112: 0.3015144798 | BJ112: -0.3591897501 | BK112: 0.3015085549 | BL112: -0.001890195093
B113: 14 | C113: 1161.622633 | D113: 7298.690258 | E113: 0.003649208118 | F113: 1.431671989e-05 | G113: 0.003783744163 | H113: -0.02740144681 | I113: 0.0008508392875 | J113: 0.02916914959 | K113: -1.71263513 | L113: 2.933120652 | M113: 1.712635587 | N113: 81.60192865 | O113: -222.1022619 | P113: 0.004226213181 | Q113: 69.82631389 | R113: 0.00145748208 | S113: 0.003966941371 | T113: -13.70108104 | U113: 187.7197217 | V113: 13.70108469 | W113: -274.0217654 | X113: 75087.928 | Y113: 274.0217656 | Z113: -137010.8834 | AA113: 1.877198217e+10 | AB113: 137010.8834 | AC113: 5.340408665e-05 | AD113: 0.07664354641 | AE113: 13.04740978 | AF113: -89.96007716 | AG113: 0.00909123946 | AH113: -13.04740662 | AI113: 5.340408665e-05 | AJ113: 0.07664354641 | AK113: 2.663543974e-09 | AL113: 0.0007298690258 | AM113: 2.663543974e-09 | AN113: 0.0003649345129 | AO113: 5.327087948e-09 | AP113: 0.001094803539 | AQ113: 10 | AR113: -274021766.8 | AS113: 0.3000000053 | AT113: 0.001094803539 | AU113: 0.300002003 | AV113: 0.2090911419 | AW113: 13.04997277 | AX113: -88.64281096 | AY113: 0.001814961816 | AZ113: 0.0766070155 | BA113: 0.9998036021 | BB113: -1.317266199 | BC113: 0.9995393811 | BD113: -0.02298409208 | BE113: 0.3014999801 | BF113: 0.9619577611 | BG113: 3.31628235 | BH113: -0.05568339154 | BI113: 0.3015316004 | BJ113: -0.3621202768 | BK113: 0.3015255782 | BL113: -0.001905724656
B114: 15 | C114: 1175.087131 | D114: 7383.290196 | E114: 0.003691509657 | F114: 1.462724355e-05 | G114: 0.003824557954 | H114: -0.02708745605 | I114: 0.0008337302755 | J114: 0.02887438788 | K114: -1.693011226 | L114: 2.866288574 | M114: 1.693011687 | N114: 80.36030362 | O114: -219.2920668 | P114: 0.004281691819 | Q114: 69.87447305 | R114: 0.001473236191 | S114: 0.004020256205 | T114: -13.54408981 | U114: 183.4424687 | V114: 13.5440935 | W114: -270.8819423 | X114: 73377.02679 | Y114: 270.8819425 | Z114: -135440.9719 | AA114: 1.834425687e+10 | AB114: 135440.9719 | AC114: 5.46492879e-05 | AD114: 0.07753193036 | AE114: 12.8979086 | AF114: -89.95961441 | AG114: 0.00909123947 | AH114: -12.8979054 | AI114: 5.46492879e-05 | AJ114: 0.07753193036 | AK114: 2.725648706e-09 | AL114: 0.0007383290195 | AM114: 2.725648705e-09 | AN114: 0.0003691645098 | AO114: 5.451297411e-09 | AP114: 0.001107493529 | AQ114: 10 | AR114: -270881943.8 | AS114: 0.3000000055 | AT114: 0.001107493529 | AU114: 0.3000020497 | AV114: 0.2115147189 | AW114: 12.90050129 | AX114: -88.62708291 | AY114: 0.001857263529 | AZ114: 0.0774941147 | BA114: 0.9997990241 | BB114: -1.332531494 | BC114: 0.9995286452 | BD114: -0.02325029174 | BE114: 0.3015168474 | BF114: 0.9744483094 | BG114: 3.316084615 | BH114: -0.05640318827 | BI114: 0.301549369 | BJ114: -0.3650544415 | BK114: 0.3015432483 | BL114: -0.001921279239
B115: 16 | C115: 1188.707698 | D115: 7468.870741 | E115: 0.003734301481 | F115: 1.494500755e-05 | G115: 0.003865877333 | H115: -0.0267770629 | I115: 0.0008170110974 | J115: 0.02858340598 | K115: -1.673612178 | L115: 2.800979285 | M115: 1.673612645 | N115: 79.15215899 | O115: -216.4975671 | P115: 0.004338149404 | Q115: 69.91743638 | R115: 0.001489607242 | S115: 0.00407438468 | T115: -13.38889742 | U115: 179.2626742 | V115: 13.38890116 | W115: -267.7780963 | X115: 71705.10898 | Y115: 267.7780965 | Z115: -133889.0489 | AA115: 1.792627742e+10 | AB115: 133889.0489 | AC115: 5.592352301e-05 | AD115: 0.07843061166 | AE115: 12.75012045 | AF115: -89.95914629 | AG115: 0.00909123948 | AH115: -12.75011721 | AI115: 5.592352301e-05 | AJ115: 0.07843061166 | AK115: 2.789201507e-09 | AL115: 0.0007468870741 | AM115: 2.789201507e-09 | AN115: 0.000373443537 | AO115: 5.578403014e-09 | AP115: 0.001120330611 | AQ115: 10 | AR115: -267778097.8 | AS115: 0.3000000056 | AT115: 0.001120330611 | AU115: 0.3000020975 | AV115: 0.2139663869 | AW115: 12.75274319 | AX115: -88.61117268 | AY115: 0.001900550771 | AZ115: 0.07839146608 | BA115: 0.9997943394 | BB115: -1.347973615 | BC115: 0.9995176591 | BD115: -0.02351956951 | BE115: 0.3015343624 | BF115: 0.9871179659 | BG115: 3.315879443 | BH115: -0.05713314461 | BI115: 0.3015678124 | BJ115: -0.3679921539 | BK115: 0.3015615925 | BL115: -0.001936858645
B116: 17 | C116: 1202.486142 | D116: 7555.44326 | E116: 0.003777589275 | F116: 1.527018073e-05 | G116: 0.003907707861 | H116: -0.02647022612 | I116: 0.0008006728709 | J116: 0.02829616354 | K116: -1.65443541 | L116: 2.737158087 | M116: 1.654435882 | N116: 77.97706157 | O116: -213.7189914 | P116: 0.004395605271 | Q116: 69.95510294 | R116: 0.001506621763 | S116: 0.004129338513 | T116: -13.23548328 | U116: 175.1781176 | V116: 13.23548705 | W116: -264.7098151 | X116: 70071.28633 | Y116: 264.7098153 | Z116: -132354.9083 | AA116: 1.751782176e+10 | AB116: 132354.9083 | AC116: 5.722746896e-05 | AD116: 0.07933970969 | AE116: 12.6040257 | AF116: -89.95867275 | AG116: 0.00909123949 | AH116: -12.60402242 | AI116: 5.722746896e-05 | AJ116: 0.07933970969 | AK116: 2.854236143e-09 | AL116: 0.000755544326 | AM116: 2.854236142e-09 | AN116: 0.000377772163 | AO116: 5.708472285e-09 | AP116: 0.001133316489 | AQ116: 10 | AR116: -264709816.7 | AS116: 0.3000000057 | AT116: 0.001133316489 | AU116: 0.3000021464 | AV116: 0.2164464718 | AW116: 12.60667883 | AX116: -88.59507814 | AY116: 0.001944846485 | AZ116: 0.07929918741 | BA116: 0.9997895455 | BB116: -1.363594608 | BC116: 0.9995064171 | BD116: -0.0237919608 | BE116: 0.3015525525 | BF116: 0.9999690806 | BG116: 3.315666527 | BH116: -0.05787338468 | BI116: 0.3015869589 | BJ116: -0.3709333867 | BK116: 0.3015806388 | BL116: -0.001952463018
B117: 18 | C117: 1216.424294 | D117: 7643.01925 | E117: 0.003821378787 | F117: 1.560293583e-05 | G117: 0.003950055168 | H117: -0.02616690497 | I117: 0.0007847069158 | J117: 0.02801262065 | K117: -1.635478374 | L117: 2.674791075 | M117: 1.635478852 | N117: 76.83458136 | O117: -210.9565588 | P117: 0.004454079081 | Q117: 69.98736846 | R117: 0.001524307465 | S117: 0.004185129295 | T117: -13.08382699 | U117: 171.1866288 | V117: 13.08383082 | W117: -261.6766912 | X117: 68474.69082 | Y117: 261.6766914 | Z117: -130838.3464 | AA117: 1.711867288e+10 | AB117: 130838.3464 | AC117: 5.85618185e-05 | AD117: 0.08025934517 | AE117: 12.45960494 | AF117: -89.95819372 | AG117: 0.0090912395 | AH117: -12.45960163 | AI117: 5.85618185e-05 | AJ117: 0.08025934517 | AK117: 2.920787163e-09 | AL117: 0.000764301925 | AM117: 2.920787163e-09 | AN117: 0.0003821509625 | AO117: 5.841574326e-09 | AP117: 0.001146452888 | AQ117: 10 | AR117: -261676692.7 | AS117: 0.3000000058 | AT117: 0.001146452888 | AU117: 0.3000021964 | AV117: 0.2189553028 | AW117: 12.46228882 | AX117: -88.57879718 | AY117: 0.001990174146 | AZ117: 0.08021739779 | BA117: 0.9997846399 | BB117: -1.379396542 | BC117: 0.9994949132 | BD117: -0.02406750145 | BE117: 0.3015714464 | BF117: 1.013003971 | BG117: 3.315445545 | BH117: -0.05862403001 | BI117: 0.3016068379 | BJ117: -0.3738781833 | BK117: 0.3016004166 | BL117: -0.001968092891
B118: 19 | C118: 1230.524004 | D118: 7731.610344 | E118: 0.003865675833 | F118: 1.594344965e-05 | G118: 0.003992924949 | H118: -0.02586705917 | I118: 0.0007691047499 | J118: 0.02773273787 | K118: -1.616738554 | L118: 2.613845114 | M118: 1.616739037 | N118: 75.72429164 | O118: -208.2104799 | P118: 0.004513590824 | Q118: 70.01412529 | R118: 0.001542693293 | S118: 0.004241768444 | T118: -12.93390843 | U118: 167.2860873 | V118: 12.9339123 | W118: -258.6783217 | X118: 66914.47423 | Y118: 258.6783219 | Z118: -129339.1616 | AA118: 1.672861873e+10 | AB118: 129339.1616 | AC118: 5.992728054e-05 | AD118: 0.08118964024 | AE118: 12.316839 | AF118: -89.95770914 | AG118: 0.009091239511 | AH118: -12.31683565 | AI118: 5.992728054e-05 | AJ118: 0.08118964024 | AK118: 2.988889926e-09 | AL118: 0.0007731610344 | AM118: 2.988889926e-09 | AN118: 0.0003865805172 | AO118: 5.977779851e-09 | AP118: 0.001159741552 | AQ118: 10 | AR118: -258678323.3 | AS118: 0.300000006 | AT118: 0.001159741552 | AU118: 0.3000022476 | AV118: 0.221493213 | AW118: 12.31955399 | AX118: -88.56232763 | AY118: 0.002036557772 | AZ118: 0.08114621767 | BA118: 0.99977962 | BB118: -1.39538151 | BC118: 0.9994831413 | BD118: -0.02434622767 | BE118: 0.3015910738 | BF118: 1.026224914 | BG118: 3.315216162 | BH118: -0.05938519912 | BI118: 0.30162748 | BJ118: -0.3768266667 | BK118: 0.3016209566 | BL118: -0.00198374923
B119: 20 | C119: 1244.787146 | D119: 7821.228307 | E119: 0.003910486297 | F119: 1.629190308e-05 | G119: 0.004036322965 | H119: -0.02557064888 | I119: 0.000753858084 | J119: 0.02745647618 | K119: -1.59821346 | L119: 2.554287826 | M119: 1.598213949 | N119: 74.64576904 | O119: -205.4809564 | P119: 0.004574160805 | Q119: 70.03526231 | R119: 0.001561809474 | S119: 0.004299267174 | T119: -12.78570768 | U119: 163.4744208 | V119: 12.78571159 | W119: -255.7143084 | X119: 65389.80764 | Y119: 255.7143086 | Z119: -127857.155 | AA119: 1.634745208e+10 | AB119: 127857.155 | AC119: 6.132458052e-05 | AD119: 0.08213071847 | AE119: 12.17570892 | AF119: -89.95721894 | AG119: 0.009091239522 | AH119: -12.17570552 | AI119: 6.132458052e-05 | AJ119: 0.08213071847 | AK119: 3.058580612e-09 | AL119: 0.0007821228307 | AM119: 3.058580612e-09 | AN119: 0.0003910614154 | AO119: 6.117161224e-09 | AP119: 0.001173184246 | AQ119: 10 | AR119: -255714310 | AS119: 0.3000000061 | AT119: 0.001173184246 | AU119: 0.3000023 | AV119: 0.2240605396 | AW119: 12.17845536 | AX119: -88.54566731 | AY119: 0.002084021943 | AZ119: 0.08208576883 | BA119: 0.9997744831 | BB119: -1.411551628 | BC119: 0.9994710951 | BD119: -0.02462817609 | BE119: 0.3016114659 | BF119: 1.039634137 | BG119: 3.314978031 | BH119: -0.06015700694 | BI119: 0.3016489172 | BJ119: -0.3797790487 | BK119: 0.3016422907 | BL119: -0.001999433482
B120: 21 | C120: 1259.215614 | D120: 7911.885043 | E120: 0.003955816129 | F120: 1.664848125e-05 | G120: 0.004080255047 | H120: -0.02527763474 | I120: 0.000738958818 | J120: 0.02718379698 | K120: -1.579900632 | L120: 2.496087568 | M120: 1.579901126 | N120: 73.59859366 | O120: -202.7681819 | P120: 0.004635809632 | Q120: 70.05066484 | R120: 0.001581687574 | S120: 0.004357636443 | T120: -12.63920505 | U120: 159.7496044 | V120: 12.63920901 | W120: -252.7842577 | X120: 63899.88104 | Y120: 252.7842579 | Z120: -126392.1296 | AA120: 1.597497043e+10 | AB120: 126392.1296 | AC120: 6.27544608e-05 | AD120: 0.08308270485 | AE120: 12.03619594 | AF120: -89.95672306 | AG120: 0.009091239533 | AH120: -12.03619251 | AI120: 6.27544608e-05 | AJ120: 0.08308270485 | AK120: 3.129896246e-09 | AL120: 0.0007911885042 | AM120: 3.129896246e-09 | AN120: 0.0003955942521 | AO120: 6.259792492e-09 | AP120: 0.001186782756 | AQ120: 10 | AR120: -252784259.3 | AS120: 0.3000000063 | AT120: 0.001186782756 | AU120: 0.3000023537 | AV120: 0.2266576234 | AW120: 12.03897422 | AX120: -88.52881402 | AY120: 0.002132591807 | AZ120: 0.08303617443 | BA120: 0.9997692265 | BB120: -1.427909039 | BC120: 0.9994587683 | BD120: -0.02491338377 | BE120: 0.3016326551 | BF120: 1.053233813 | BG120: 3.314730788 | BH120: -0.06093956428 | BI120: 0.3016711829 | BJ120: -0.3827356403 | BK120: 0.3016644523 | BL120: -0.002015147637
B121: 22 | C121: 1273.811323 | D121: 8003.59259 | E121: 0.004001671351 | F121: 1.70133736e-05 | G121: 0.004124727094 | H121: -0.02498797784 | I121: 0.0007243990364 | J121: 0.02691466211 | K121: -1.561797637 | L121: 2.439213421 | M121: 1.561798137 | N121: 72.58234906 | O121: -200.0723419 | P121: 0.004698558212 | Q121: 70.06021454 | R121: 0.001602360547 | S121: 0.004416886907 | T121: -12.49438109 | U121: 156.1096589 | V121: 12.4943851 | W121: -249.8877804 | X121: 62443.90287 | Y121: 249.8877806 | Z121: -124943.891 | AA121: 1.561097589e+10 | AB121: 124943.891 | AC121: 6.421768104e-05 | AD121: 0.08404572581 | AE121: 11.89828154 | AF121: -89.95622143 | AG121: 0.009091239544 | AH121: -11.89827807 | AI121: 6.421768104e-05 | AJ121: 0.08404572581 | AK121: 3.202874717e-09 | AL121: 0.000800359259 | AM121: 3.202874717e-09 | AN121: 0.0004001796295 | AO121: 6.405749434e-09 | AP121: 0.001200538888 | AQ121: 10 | AR121: -249887782 | AS121: 0.3000000064 | AT121: 0.001200538888 | AU121: 0.3000024086 | AV121: 0.2292848093 | AW121: 11.90109202 | AX121: -88.51176553 | AY121: 0.002182293098 | AZ121: 0.08399755904 | BA121: 0.9997638475 | BB121: -1.444455908 | BC121: 0.9994461544 | BD121: -0.02520188818 | BE121: 0.3016546755 | BF121: 1.067026044 | BG121: 3.314474053 | BH121: -0.06173297721 | BI121: 0.3016943117 | BJ121: -0.385696863 | BK121: 0.3016874761 | BL121: -0.002030894278
B122: 23 | C122: 1288.576213 | D122: 8096.36313 | E122: 0.004048058053 | F122: 1.7386774e-05 | G122: 0.004169745076 | H122: -0.0247016397 | I122: 0.0007101710037 | J122: 0.02664903382 | K122: -1.543902071 | L122: 2.383635168 | M122: 1.543902577 | N122: 71.59662238 | O122: -197.3936141 | P122: 0.004762427728 | Q122: 70.06378935 | R122: 0.001623862792 | S122: 0.004477028869 | T122: -12.35121657 | U122: 152.5526508 | V122: 12.35122062 | W122: -247.0244917 | X122: 61021.09961 | Y122: 247.0244919 | Z122: -123512.2467 | AA122: 1.525527508e+10 | AB122: 123512.2467 | AC122: 6.571501861e-05 | AD122: 0.08501990925 | AE122: 11.76194741 | AF122: -89.95571399 | AG122: 0.009091239556 | AH122: -11.7619439 | AI122: 6.571501861e-05 | AJ122: 0.08501990925 | AK122: 3.277554796e-09 | AL122: 0.000809636313 | AM122: 3.277554796e-09 | AN122: 0.0004048181565 | AO122: 6.555109593e-09 | AP122: 0.001214454469 | AQ122: 10 | AR122: -247024493.3 | AS122: 0.3000000066 | AT122: 0.001214454469 | AU122: 0.3000024647 | AV122: 0.2319424463 | AW122: 11.76479045 | AX122: -88.49451956 | AY122: 0.002233152147 | AZ122: 0.0849700486 | BA122: 0.9997583431 | BB122: -1.461194427 | BC122: 0.9994332466 | BD122: -0.0254937272 | BE122: 0.3016775622 | BF122: 1.081012853 | BG122: 3.314207433 | BH122: -0.06253734635 | BI122: 0.30171834 | BJ122: -0.3886632606 | BK122: 0.3017113982 | BL122: -0.002046676657
B123: 24 | C123: 1303.512245 | D123: 8190.208984 | E123: 0.004094982395 | F123: 1.776888081e-05 | G123: 0.004215315031 | H123: -0.02441858229 | I123: 0.0006962671611 | J123: 0.02638687479 | K123: -1.526211558 | L123: 2.329323283 | M123: 1.52621207 | N123: 70.64100437 | O123: -194.7321687 | P123: 0.004827439626 | Q123: 70.06126339 | R123: 0.001646230211 | S123: 0.004538072216 | T123: -12.20969247 | U123: 149.0766901 | V123: 12.20969656 | W123: -244.1940115 | X123: 59630.71535 | Y123: 244.1940117 | Z123: -122097.0066 | AA123: 1.490767901e+10 | AB123: 122097.0066 | AC123: 6.724726901e-05 | AD123: 0.08600538456 | AE123: 11.62717543 | AF123: -89.95520067 | AG123: 0.009091239568 | AH123: -11.62717188 | AI123: 6.724726901e-05 | AJ123: 0.08600538456 | AK123: 3.35397616e-09 | AL123: 0.0008190208983 | AM123: 3.353976159e-09 | AN123: 0.0004095104491 | AO123: 6.707952319e-09 | AP123: 0.001228531347 | AQ123: 10 | AR123: -244194013.1 | AS123: 0.3000000067 | AT123: 0.001228531347 | AU123: 0.3000025222 | AV123: 0.2346308872 | AW123: 11.63005142 | AX123: -88.47707386 | AY123: 0.002285195897 | AZ123: 0.08595377048 | BA123: 0.9997527104 | BB123: -1.478126811 | BC123: 0.9994200381 | BD123: -0.02578893915 | BE123: 0.3017013523 | BF123: 1.095196176 | BG123: 3.313930516 | BH123: -0.06335276621 | BI123: 0.3017433054 | BJ123: -0.3916355126 | BK123: 0.3017362564 | BL123: -0.002062498754
B124: 25 | C124: 1318.621401 | D124: 8285.142615 | E124: 0.00414245061 | F124: 1.815989705e-05 | G124: 0.004261443072 | H124: -0.02413876803 | I124: 0.0006826801218 | J124: 0.02612814807 | K124: -1.508723748 | L124: 2.276248911 | M124: 1.508724266 | N124: 69.7150894 | O124: -192.0881689 | P124: 0.004893615598 | Q124: 70.05250687 | R124: 0.001669500264 | S124: 0.004600026357 | T124: -12.06978998 | U124: 145.6799303 | V124: 12.06979413 | W124: -241.3959637 | X124: 58272.01141 | Y124: 241.3959639 | Z124: -120697.9827 | AA124: 1.456800303e+10 | AB124: 120697.9827 | AC124: 6.88152463e-05 | AD124: 0.08700228262 | AE124: 11.49394771 | AF124: -89.95468139 | AG124: 0.00909123958 | AH124: -11.49394412 | AI124: 6.88152463e-05 | AJ124: 0.08700228262 | AK124: 3.432179407e-09 | AL124: 0.0008285142615 | AM124: 3.432179407e-09 | AN124: 0.0004142571307 | AO124: 6.864358815e-09 | AP124: 0.001242771392 | AQ124: 10 | AR124: -241395965.4 | AS124: 0.3000000069 | AT124: 0.001242771392 | AU124: 0.300002581 | AV124: 0.2373504891 | AW124: 11.49685703 | AX124: -88.45942609 | AY124: 0.002338451917 | AZ124: 0.08694885345 | BA124: 0.9997469465 | BB124: -1.495255303 | BC124: 0.999406522 | BD124: -0.02608756279 | BE124: 0.3017260841 | BF124: 1.109577842 | BG124: 3.313642876 | BH124: -0.06417932433 | BI124: 0.3017692472 | BJ124: -0.394614448 | BK124: 0.30176209 | BL124: -0.002078365361
B125: 26 | C125: 1333.90569 | D125: 8381.176633 | E125: 0.004190469001 | F125: 1.856003045e-05 | G125: 0.00430813538 | H125: -0.02386215974 | I125: 0.0006694026673 | J125: 0.02587281715 | K125: -1.491436318 | L125: 2.224383854 | M125: 1.491436842 | N125: 68.81847549 | O125: -189.4617707 | P125: 0.004960977555 | Q125: 70.03738604 | R125: 0.001693712029 | S125: 0.004662900156 | T125: -11.93149055 | U125: 142.3605666 | V125: 11.93149474 | W125: -238.6299769 | X125: 56944.26596 | Y125: 238.6299771 | Z125: -119314.9893 | AA125: 1.423606666e+10 | AB125: 119314.9893 | AC125: 7.041978351e-05 | AD125: 0.08801073584 | AE125: 11.36224655 | AF125: -89.9541561 | AG125: 0.009091239592 | AH125: -11.36224292 | AI125: 7.041978351e-05 | AJ125: 0.08801073584 | AK125: 3.512206087e-09 | AL125: 0.0008381176633 | AM125: 3.512206087e-09 | AN125: 0.0004190588316 | AO125: 7.024412175e-09 | AP125: 0.001257176495 | AQ125: 10 | AR125: -238629978.5 | AS125: 0.300000007 | AT125: 0.001257176495 | AU125: 0.3000026412 | AV125: 0.2401016131 | AW125: 11.36518959 | AX125: -88.44157393 | AY125: 0.002392948415 | AZ125: 0.08795542777 | BA125: 0.9997410483 | BB125: -1.51258217 | BC125: 0.999392691 | BD125: -0.02638963731 | BE125: 0.3017517977 | BF125: 1.124159566 | BG125: 3.313344066 | BH125: -0.06501710046 | BI125: 0.3017962064 | BJ125: -0.3976010611 | BK125: 0.3017889398 | BL125: -0.002094282159
B126: 27 | C126: 1349.367141 | D126: 8478.323792 | E126: 0.004239043948 | F126: 1.896949359e-05 | G126: 0.004355398213 | H126: -0.02358872069 | I126: 0.0006564277436 | J126: 0.02562084588 | K126: -1.474346973 | L126: 2.173700558 | M126: 1.474347502 | N126: 67.95076434 | O126: -186.8531237 | P126: 0.005029547608 | Q126: 70.01576309 | R126: 0.001718906259 | S126: 0.004726701853 | T126: -11.79477578 | U126: 139.1168357 | V126: 11.79478002 | W126: -235.8956835 | X126: 55646.77358 | Y126: 235.8956837 | Z126: -117947.8426 | AA126: 1.391169357e+10 | AB126: 117947.8426 | AC126: 7.206173308e-05 | AD126: 0.08903087816 | AE126: 11.23205446 | AF126: -89.95362472 | AG126: 0.009091239605 | AH126: -11.23205078 | AI126: 7.206173308e-05 | AJ126: 0.08903087816 | AK126: 3.594098716e-09 | AL126: 0.0008478323792 | AM126: 3.594098716e-09 | AN126: 0.0004239161896 | AO126: 7.188197431e-09 | AP126: 0.001271748569 | AQ126: 10 | AR126: -235895685.2 | AS126: 0.3000000072 | AT126: 0.001271748569 | AU126: 0.3000027028 | AV126: 0.2428846246 | AW126: 11.2350316 | AX126: -88.42351501 | AY126: 0.002448714255 | AZ126: 0.08897362513 | BA126: 0.9997350127 | BB126: -1.530109706 | BC126: 0.9993785378 | BD126: -0.02669520233 | BE126: 0.3017785349 | BF126: 1.138942928 | BG126: 3.313033623 | BH126: -0.06586616566 | BI126: 0.3018242257 | BJ126: -0.4005965275 | BK126: 0.3018168485 | BL126: -0.00211025581
B127: 28 | C127: 1365.007807 | D127: 8576.596994 | E127: 0.004288181901 | F127: 1.938850401e-05 | G127: 0.004403237901 | H127: -0.02331841456 | I127: 0.0006437484574 | J127: 0.02537219851 | K127: -1.457453441 | L127: 2.124172096 | M127: 1.457453977 | N127: 67.11156132 | O127: -184.2623707 | P127: 0.005099348035 | Q127: 69.9874961 | R127: 0.001745125444 | S127: 0.004791438987 | T127: -11.65962753 | U127: 135.9470142 | V127: 11.65963182 | W127: -233.1927204 | X127: 54378.84497 | Y127: 233.1927207 | Z127: -116596.3611 | AA127: 1.359471142e+10 | AB127: 116596.3611 | AC127: 7.374196736e-05 | AD127: 0.09006284506 | AE127: 11.10335415 | AF127: -89.95308717 | AG127: 0.009091239618 | AH127: -11.10335043 | AI127: 7.374196736e-05 | AJ127: 0.09006284506 | AK127: 3.6779008e-09 | AL127: 0.0008576596994 | AM127: 3.6779008e-09 | AN127: 0.0004288298497 | AO127: 7.3558016e-09 | AP127: 0.001286489549 | AQ127: 10 | AR127: -233192722.2 | AS127: 0.3000000074 | AT127: 0.001286489549 | AU127: 0.3000027658 | AV127: 0.2456998931 | AW127: 11.1063658 | AX127: -88.40524694 | AY127: 0.002505778972 | AZ127: 0.09000357869 | BA127: 0.9997288365 | BB127: -1.54784023 | BC127: 0.999364055 | BD127: -0.02700429793 | BE127: 0.3018063392 | BF127: 1.153929361 | BG127: 3.312711066 | BH127: -0.06672658125 | BI127: 0.3018533493 | BJ127: -0.4036022222 | BK127: 0.3018458602 | BL127: -0.002126294049
B128: 29 | C128: 1380.829765 | D128: 8676.009293 | E128: 0.004337889386 | F128: 1.981728432e-05 | G128: 0.00445166085 | H128: -0.02305120545 | I128: 0.0006313580727 | J128: 0.02512683969 | K128: -1.440753481 | L128: 2.075772156 | M128: 1.440754023 | N128: 66.30047545 | O128: -181.6896486 | P128: 0.005170401254 | Q128: 69.95243895 | R128: 0.001772413867 | S128: 0.004857118303 | T128: -11.52602785 | U128: 132.849418 | V128: 11.52603219 | W128: -230.5207288 | X128: 53139.80649 | Y128: 230.520729 | Z128: -115260.3653 | AA128: 1.32849518e+10 | AB128: 115260.3653 | AC128: 7.546137901e-05 | AD128: 0.09110677361 | AE128: 10.97612853 | AF128: -89.9525434 | AG128: 0.009091239631 | AH128: -10.97612476 | AI128: 7.546137901e-05 | AJ128: 0.09110677361 | AK128: 3.763656862e-09 | AL128: 0.0008676009292 | AM128: 3.763656862e-09 | AN128: 0.0004338004646 | AO128: 7.527313724e-09 | AP128: 0.001301401394 | AQ128: 10 | AR128: -230520730.5 | AS128: 0.3000000075 | AT128: 0.001301401394 | AU128: 0.3000028303 | AV128: 0.2485477924 | AW128: 10.97917507 | AX128: -88.38676731 | AY128: 0.002564172784 | AZ128: 0.09104542311 | BA128: 0.9997225163 | BB128: -1.56577609 | BC128: 0.9993492348 | BD128: -0.02731696464 | BE128: 0.3018352559 | BF128: 1.169120132 | BG128: 3.312375893 | BH128: -0.06759839779 | BI128: 0.3018836234 | BJ128: -0.4066197388 | BK128: 0.3018760212 | BL128: -0.002142405789
B129: 30 | C129: 1396.835118 | D129: 8776.57389 | E129: 0.004388173005 | F129: 2.025606232e-05 | G129: 0.004500673541 | H129: -0.02278705788 | I129: 0.0006192500066 | J129: 0.02488473441 | K129: -1.424244874 | L129: 2.028475023 | M129: 1.424245422 | N129: 65.51711944 | O129: -179.1350884 | P129: 0.005242729783 | Q129: 69.91044127 | R129: 0.001800817669 | S129: 0.004923745658 | T129: -11.39395899 | U129: 129.8224015 | V129: 11.39396338 | W129: -227.8793536 | X129: 51928.99988 | Y129: 227.8793538 | Z129: -113939.6777 | AA129: 1.298225015e+10 | AB129: 113939.6777 | AC129: 7.722088151e-05 | AD129: 0.09216280244 | AE129: 10.85036069 | AF129: -89.95199333 | AG129: 0.009091239645 | AH129: -10.85035688 | AI129: 7.722088151e-05 | AJ129: 0.09216280244 | AK129: 3.851412462e-09 | AL129: 0.000877657389 | AM129: 3.851412462e-09 | AN129: 0.0004388286945 | AO129: 7.702824924e-09 | AP129: 0.001316486083 | AQ129: 10 | AR129: -227879355.3 | AS129: 0.3000000077 | AT129: 0.001316486083 | AU129: 0.3000028962 | AV129: 0.2514287009 | AW129: 10.85344254 | AX129: -88.36807367 | AY129: 0.002623926614 | AZ129: 0.09209929455 | BA129: 0.9997160489 | BB129: -1.583919659 | BC129: 0.9993340694 | BD129: -0.02763324344 | BE129: 0.301865332 | BF129: 1.184516319 | BG129: 3.312027584 | BH129: -0.06848165387 | BI129: 0.3019150961 | BJ129: -0.40965091 | BK129: 0.3019073793 | BL129: -0.00215860123
B130: 31 | C130: 1413.025991 | D130: 8878.304143 | E130: 0.004439039437 | F130: 2.070507113e-05 | G130: 0.004550282533 | H130: -0.02252593675 | I130: 0.0006074178265 | J130: 0.02464584806 | K130: -1.407925427 | L130: 1.982255569 | M130: 1.407925981 | N130: 64.7611096 | O130: -176.5988151 | P130: 0.005316356204 | Q130: 69.86134842 | R130: 0.001830384901 | S130: 0.004991325917 | T130: -11.26340341 | U130: 126.8643564 | V130: 11.26340785 | W130: -225.268244 | X130: 50745.78187 | Y130: 225.2682443 | Z130: -112634.1229 | AA130: 1.268644564e+10 | AB130: 112634.1229 | AC130: 7.902140966e-05 | AD130: 0.09323107183 | AE130: 10.72603394 | AF130: -89.95143688 | AG130: 0.009091239659 | AH130: -10.72603009 | AI130: 7.902140966e-05 | AJ130: 0.09323107183 | AK130: 3.941214223e-09 | AL130: 0.0008878304143 | AM130: 3.941214222e-09 | AN130: 0.0004439152071 | AO130: 7.882428445e-09 | AP130: 0.001331745621 | AQ130: 10 | AR130: -225268245.8 | AS130: 0.3000000079 | AT130: 0.001331745621 | AU130: 0.3000029638 | AV130: 0.2543430009 | AW130: 10.7291515 | AX130: -88.34916354 | AY130: 0.002685072099 | AZ130: 0.0931653307 | BA130: 0.9997094309 | BB130: -1.602273338 | BC130: 0.9993185509 | BD130: -0.02795317578 | BE130: 0.3018966168 | BF130: 1.200118799 | BG130: 3.311665598 | BH130: -0.0693763749 | BI130: 0.3019478172 | BJ130: -0.4126978301 | BK130: 0.3019399844 | BL130: -0.002174891982
B131: 32 | C131: 1429.404533 | D131: 8981.213562 | E131: 0.004490495438 | F131: 2.116454928e-05 | G131: 0.00460049446 | H131: -0.02226780739 | I131: 0.0005958552462 | J131: 0.02441014638 | K131: -1.391792972 | L131: 1.93708924 | M131: 1.391793533 | N131: 64.03206586 | O131: -174.0809485 | P131: 0.005391303118 | Q131: 69.80500137 | R131: 0.001861165587 | S131: 0.005059862841 | T131: -11.13434378 | U131: 123.9737113 | V131: 11.13434827 | W131: -222.6870534 | X131: 49589.52384 | Y131: 222.6870536 | Z131: -111343.5276 | AA131: 1.239738113e+10 | AB131: 111343.5276 | AC131: 8.086392003e-05 | AD131: 0.09431172365 | AE131: 10.60313176 | AF131: -89.95087397 | AG131: 0.009091239673 | AH131: -10.60312786 | AI131: 8.086392003e-05 | AJ131: 0.09431172365 | AK131: 4.033109853e-09 | AL131: 0.0008981213562 | AM131: 4.033109852e-09 | AN131: 0.0004490606781 | AO131: 8.066219705e-09 | AP131: 0.001347182034 | AQ131: 10 | AR131: -222687055.2 | AS131: 0.3000000081 | AT131: 0.001347182034 | AU131: 0.3000030329 | AV131: 0.2572910796 | AW131: 10.60628545 | AX131: -88.33003442 | AY131: 0.002747641614 | AZ131: 0.09424367076 | BA131: 0.9997026586 | BB131: -1.620839556 | BC131: 0.9993026709 | BD131: -0.02827680356 | BE131: 0.3019291612 | BF131: 1.215928218 | BG131: 3.311289373 | BH131: -0.07028257178 | BI131: 0.3019818385 | BJ131: -0.4157628787 | BK131: 0.301973888 | BL131: -0.002191291186
B132: 33 | C132: 1445.972922 | D132: 9085.315817 | E132: 0.004542547841 | F132: 2.163474088e-05 | G132: 0.004651316038 | H132: -0.02201263552 | I132: 0.0005845561228 | J132: 0.02417759547 | K132: -1.375845368 | L132: 1.892952039 | M132: 1.375845936 | N132: 63.32961171 | O132: -171.5816029 | P132: 0.005467593094 | Q132: 69.74123672 | R132: 0.001893211779 | S132: 0.005129358966 | T132: -11.00676294 | U132: 121.1489305 | V132: 11.00676749 | W132: -220.1354387 | X132: 48459.61149 | Y132: 220.135439 | Z132: -110067.7203 | AA132: 1.211490305e+10 | AB132: 110067.7203 | AC132: 8.274939151e-05 | AD132: 0.09540490142 | AE132: 10.48163783 | AF132: -89.95030455 | AG132: 0.009091239688 | AH132: -10.48163389 | AI132: 8.274939151e-05 | AJ132: 0.09540490142 | AK132: 4.127148174e-09 | AL132: 0.0009085315817 | AM132: 4.127148174e-09 | AN132: 0.0004542657908 | AO132: 8.254296349e-09 | AP132: 0.001362797372 | AQ132: 10 | AR132: -220135440.6 | AS132: 0.3000000083 | AT132: 0.001362797372 | AU132: 0.3000031036 | AV132: 0.2602733285 | AW132: 10.48482806 | AX132: -88.31068378 | AY132: 0.002811668284 | AZ132: 0.09533445551 | BA132: 0.9996957286 | BB132: -1.639620769 | BC132: 0.999286421 | BD132: -0.02860416917 | BE132: 0.3019630183 | BF132: 1.231944969 | BG132: 3.310898326 | BH132: -0.07120023945 | BI132: 0.302017214 | BJ132: -0.418848746 | BK132: 0.302009144 | BL132: -0.002207813659
B133: 34 | C133: 1462.733356 | D133: 9190.624732 | E133: 0.004595203559 | F133: 2.211589575e-05 | G133: 0.00470275406 | H133: -0.02176038725 | I133: 0.0005735144533 | J133: 0.02394816179 | K133: -1.360080496 | L133: 1.849820517 | M133: 1.36008107 | N133: 62.65337419 | O133: -169.1008876 | P133: 0.005545248619 | Q133: 69.66988664 | R133: 0.001926577613 | S133: 0.005199815472 | T133: -10.88064397 | U133: 118.3885131 | V133: 10.88064856 | W133: -217.6130613 | X133: 47355.44454 | Y133: 217.6130615 | Z133: -108806.5316 | AA133: 1.183886131e+10 | AB133: 108806.5316 | AC133: 8.467882581e-05 | AD133: 0.09651075034 | AE133: 10.36153601 | AF133: -89.94972852 | AG133: 0.009091239703 | AH133: -10.36153202 | AI133: 8.467882581e-05 | AJ133: 0.09651075034 | AK133: 4.223379148e-09 | AL133: 0.0009190624732 | AM133: 4.223379148e-09 | AN133: 0.0004595312366 | AO133: 8.446758296e-09 | AP133: 0.00137859371 | AQ133: 10 | AR133: -217613063.1 | AS133: 0.3000000084 | AT133: 0.00137859371 | AU133: 0.300003176 | AV133: 0.2632901434 | AW133: 10.36476321 | AX133: -88.29110906 | AY133: 0.002877186 | AZ133: 0.09643782728 | BA133: 0.9996886371 | BB133: -1.658619462 | BC133: 0.9992697928 | BD133: -0.02893531547 | BE133: 0.3019982431 | BF133: 1.248169168 | BG133: 3.310491854 | BH133: -0.07212935532 | BI133: 0.3020539993 | BJ133: -0.4219584607 | BK133: 0.3020458081 | BL133: -0.002224476036
B134: 35 | C134: 1479.688063 | D134: 9297.154295 | E134: 0.004648469588 | F134: 2.260826951e-05 | G134: 0.004754815402 | H134: -0.02151102907 | I134: 0.0005627243716 | J134: 0.02372181215 | K134: -1.344496262 | L134: 1.807671761 | M134: 1.344496843 | N134: 62.00298379 | O134: -166.6389072 | P134: 0.005624292035 | Q134: 69.59077888 | R134: 0.001961319361 | S134: 0.005271232044 | T134: -10.7559701 | U134: 115.6909927 | V134: 10.75597474 | W134: -215.119586 | X134: 46276.43637 | Y134: 215.1195862 | Z134: -107559.7939 | AA134: 1.156910927e+10 | AB134: 107559.7939 | AC134: 8.665324798e-05 | AD134: 0.09762941728 | AE134: 10.24281035 | AF134: -89.94914582 | AG134: 0.009091239718 | AH134: -10.24280632 | AI134: 8.665324798e-05 | AJ134: 0.09762941728 | AK134: 4.321853899e-09 | AL134: 0.0009297154294 | AM134: 4.321853899e-09 | AN134: 0.0004648577147 | AO134: 8.643707797e-09 | AP134: 0.001394573144 | AQ134: 10 | AR134: -215119587.8 | AS134: 0.3000000086 | AT134: 0.001394573144 | AU134: 0.30000325 | AV134: 0.2663419251 | AW134: 10.24607495 | AX134: -88.27130767 | AY134: 0.002944229443 | AZ134: 0.09755392999 | BA134: 0.9996813805 | BB134: -1.677838148 | BC134: 0.9992527772 | BD134: -0.02927028578 | BE134: 0.302034893 | BF134: 1.264600627 | BG134: 3.310069329 | BH134: -0.0730698777 | BI134: 0.3020922525 | BJ134: -0.4250954192 | BK134: 0.3020839381 | BL134: -0.002241296927
B135: 36 | C135: 1496.839293 | D135: 9404.918653 | E135: 0.004702352999 | F135: 2.311212373e-05 | G135: 0.004807507018 | H135: -0.02126452786 | I135: 0.0005521801452 | J135: 0.02349851368 | K135: -1.329090597 | L135: 1.766483376 | M135: 1.329091184 | N135: 61.37807444 | O135: -164.1957614 | P135: 0.005704745477 | Q135: 69.50373672 | R135: 0.001997495479 | S135: 0.005343606719 | T135: -10.63272477 | U135: 113.0549361 | V135: 10.63272947 | W135: -212.6546817 | X135: 45222.01373 | Y135: 212.6546819 | Z135: -106327.3418 | AA135: 1.130550361e+10 | AB135: 106327.3418 | AC135: 8.867370701e-05 | AD135: 0.09876105081 | AE135: 10.12544509 | AF135: -89.94855636 | AG135: 0.009091239734 | AH135: -10.12544101 | AI135: 8.867370701e-05 | AJ135: 0.09876105081 | AK135: 4.422624744e-09 | AL135: 0.0009404918653 | AM135: 4.422624744e-09 | AN135: 0.0004702459326 | AO135: 8.845249487e-09 | AP135: 0.001410737798 | AQ135: 10 | AR135: -212654683.5 | AS135: 0.3000000088 | AT135: 0.001410737798 | AU135: 0.3000033258 | AV135: 0.2694290788 | AW135: 10.12874752 | AX135: -88.25127699 | AY135: 0.003012834098 | AZ135: 0.09868290915 | BA135: 0.9996739547 | BB135: -1.69727937 | BC135: 0.9992353655 | BD135: -0.02960912394 | BE135: 0.3020730272 | BF135: 1.28123882 | BG135: 3.309630104 | BH135: -0.07402174398 | BI135: 0.3021320337 | BJ135: -0.4282634167 | BK135: 0.3021235937 | BL135: -0.002258297091
B136: 37 | C136: 1514.189325 | D136: 9513.932121 | E136: 0.004756860952 | F136: 2.362772611e-05 | G136: 0.004860835948 | H136: -0.02102085089 | I136: 0.0005418761722 | J136: 0.02327823387 | K136: -1.313861454 | L136: 1.726233482 | M136: 1.313862048 | N136: 60.77828342 | O136: -161.7715455 | P136: 0.005786630796 | Q136: 69.408579 | R136: 0.002035166653 | S136: 0.005416935726 | T136: -10.51089163 | U136: 110.4789428 | V136: 10.51089639 | W136: -210.2180209 | X136: 44191.61643 | Y136: 210.2180212 | Z136: -105109.0114 | AA136: 1.104790428e+10 | AB136: 105109.0114 | AC136: 9.074127631e-05 | AD136: 0.09990580124 | AE136: 10.00942463 | AF136: -89.94796007 | AG136: 0.00909123975 | AH136: -10.0094205 | AI136: 9.074127631e-05 | AJ136: 0.09990580124 | AK136: 4.52574522e-09 | AL136: 0.0009513932121 | AM136: 4.52574522e-09 | AN136: 0.000475696606 | AO136: 9.05149044e-09 | AP136: 0.001427089818 | AQ136: 10 | AR136: -210218022.8 | AS136: 0.3000000091 | AT136: 0.001427089818 | AU136: 0.3000034033 | AV136: 0.2725520145 | AW136: 10.01276533 | AX136: -88.23101437 | AY136: 0.00308303627 | AZ136: 0.09982491189 | BA136: 0.999666356 | BB136: -1.716945698 | BC136: 0.9992175482 | BD136: -0.02995187424 | BE136: 0.3021127075 | BF136: 1.298082858 | BG136: 3.309173507 | BH136: -0.07498486877 | BI136: 0.302173405 | BJ136: -0.4314666808 | BK136: 0.3021648371 | BL136: -0.002275499608
B137: 38 | C137: 1531.740464 | D137: 9624.209176 | E137: 0.004812000683 | F137: 2.415535058e-05 | G137: 0.004914809312 | H137: -0.02077996579 | I137: 0.0005318069784 | J137: 0.02306094053 | K137: -1.29880681 | L137: 1.686900693 | M137: 1.298807412 | N137: 60.2032513 | O137: -159.3663506 | P137: 0.005869969485 | Q137: 69.30512014 | R137: 0.002074395842 | S137: 0.005491213313 | T137: -10.39045448 | U137: 107.9616444 | V137: 10.39045929 | W137: -207.8092802 | X137: 43184.69704 | Y137: 207.8092805 | Z137: -103904.6411 | AA137: 1.079617444e+10 | AB137: 103904.6411 | AC137: 9.285705435e-05 | AD137: 0.1010638206 | AE137: 9.894733566 | AF137: -89.94735687 | AG137: 0.009091239766 | AH137: -9.89472939 | AI137: 9.285705435e-05 | AJ137: 0.1010638206 | AK137: 4.631270113e-09 | AL137: 0.0009624209176 | AM137: 4.631270113e-09 | AN137: 0.0004812104588 | AO137: 9.262540226e-09 | AP137: 0.001443631376 | AQ137: 10 | AR137: -207809282.1 | AS137: 0.3000000093 | AT137: 0.001443631376 | AU137: 0.3000034827 | AV137: 0.2757111468 | AW137: 9.898112976 | AX137: -88.21051714 | AY137: 0.00315487311 | AZ137: 0.100980087 | BA137: 0.9996585803 | BB137: -1.736839734 | BC137: 0.9991993161 | BD137: -0.0302985815 | BE137: 0.3021539976 | BF137: 1.315131448 | BG137: 3.308698845 | BH137: -0.07595914193 | BI137: 0.3022164307 | BJ137: -0.4347099071 | BK137: 0.3022077323 | BL137: -0.002292930076
B138: 39 | C138: 1549.495039 | D138: 9735.764465 | E138: 0.004867779518 | F138: 2.469527744e-05 | G138: 0.004969434318 | H138: -0.02054184057 | I138: 0.0005219672141 | J138: 0.02284660181 | K138: -1.283924667 | L138: 1.648464114 | M138: 1.283925276 | N138: 59.6526219 | O138: -156.9802634 | P138: 0.005954782591 | Q138: 69.19317014 | R138: 0.002115248311 | S138: 0.005566431558 | T138: -10.27139734 | U138: 105.5017033 | V138: 10.27140221 | W138: -205.4281395 | X138: 42200.72062 | Y138: 205.4281398 | Z138: -102714.0707 | AA138: 1.055018033e+10 | AB138: 102714.0707 | AC138: 9.502216517e-05 | AD138: 0.1022352627 | AE138: 9.781356666 | AF138: -89.94674668 | AG138: 0.009091239783 | AH138: -9.781352441 | AI138: 9.502216517e-05 | AJ138: 0.1022352627 | AK138: 4.739255485e-09 | AL138: 0.0009735764464 | AM138: 4.739255485e-09 | AN138: 0.0004867882232 | AO138: 9.47851097e-09 | AP138: 0.00146036467 | AQ138: 10 | AR138: -205428141.5 | AS138: 0.3000000095 | AT138: 0.00146036467 | AU138: 0.3000035639 | AV138: 0.2789068952 | AW138: 9.784775236 | AX138: -88.18978257 | AY138: 0.003228382629 | AZ138: 0.1021485848 | BA138: 0.9996506235 | BB138: -1.756964108 | BC138: 0.9991806594 | BD138: -0.03064929103 | BE138: 0.3021969637 | BF138: 1.332382864 | BG138: 3.3082054 | BH138: -0.07694442642 | BI138: 0.3022611774 | BJ138: -0.437998297 | BK138: 0.3022523456 | BL138: -0.002310616814
B139: 40 | C139: 1567.45541 | D139: 9848.612803 | E139: 0.004924204864 | F139: 2.524779355e-05 | G139: 0.005024718255 | H139: -0.02030644361 | I139: 0.0005123516519 | J139: 0.02263518615 | K139: -1.269213048 | L139: 1.610903324 | M139: 1.269213664 | N139: 59.12604218 | O139: -154.613367 | P139: 0.006041090618 | Q139: 69.07253469 | R139: 0.002157791656 | S139: 0.005642580174 | T139: -10.15370439 | U139: 103.0978127 | V139: 10.15370931 | W139: -203.0742827 | X139: 41239.1644 | Y139: 203.0742829 | Z139: -101537.1423 | AA139: 1.030979127e+10 | AB139: 101537.1423 | AC139: 9.723775907e-05 | AD139: 0.1034202831 | AE139: 9.669278871 | AF139: -89.94612941 | AG139: 0.0090912398 | AH139: -9.669274597 | AI139: 9.723775907e-05 | AJ139: 0.1034202831 | AK139: 4.849758707e-09 | AL139: 0.0009848612803 | AM139: 4.849758707e-09 | AN139: 0.0004924306401 | AO139: 9.699517414e-09 | AP139: 0.00147729192 | AQ139: 10 | AR139: -203074284.7 | AS139: 0.3000000097 | AT139: 0.00147729192 | AU139: 0.300003647 | AV139: 0.2821396842 | AW139: 9.672737055 | AX139: -88.16880793 | AY139: 0.003303603718 | AZ139: 0.1033305575 | BA139: 0.9996424813 | BB139: -1.777321481 | BC139: 0.9991615683 | BD139: -0.03100404863 | BE139: 0.302241674 | BF139: 1.349834902 | BG139: 3.307692433 | BH139: -0.07794055605 | BI139: 0.3023077139 | BJ139: -0.4413375981 | BK139: 0.3022987456 | BL139: -0.002328591078
B140: 41 | C140: 1585.623962 | D140: 9962.769179 | E140: 0.004981284216 | F140: 2.581319244e-05 | G140: 0.005080668503 | H140: -0.02007374363 | I140: 0.0005029551832 | J140: 0.02242666233 | K140: -1.254669999 | L140: 1.574198368 | M140: 1.254670621 | N140: 58.62316214 | O140: -152.2657405 | P140: 0.006128913431 | Q140: 68.94301518 | R140: 0.002202095832 | S140: 0.0057196463 | T140: -10.03735999 | U140: 100.7486956 | V140: 10.03736497 | W140: -200.747397 | X140: 40299.51752 | Y140: 200.7473973 | Z140: -100373.6995 | AA140: 1.007487956e+10 | AB140: 100373.6995 | AC140: 9.950501315e-05 | AD140: 0.1046190392 | AE140: 9.558485295 | AF140: -89.94550499 | AG140: 0.009091239818 | AH140: -9.558480972 | AI140: 9.950501315e-05 | AJ140: 0.1046190392 | AK140: 4.962838486e-09 | AL140: 0.0009962769179 | AM140: 4.962838486e-09 | AN140: 0.0004981384589 | AO140: 9.925676971e-09 | AP140: 0.001494415377 | AQ140: 10 | AR140: -200747399 | AS140: 0.3000000099 | AT140: 0.001494415377 | AU140: 0.300003732 | AV140: 0.2854099429 | AW140: 9.561983552 | AX140: -88.14759044 | AY140: 0.003380576171 | AZ140: 0.1045261587 | BA140: 0.9996341495 | BB140: -1.797914545 | BC140: 0.9991420326 | BD140: -0.03136290063 | BE140: 0.3022881993 | BF140: 1.367484847 | BG140: 3.307159183 | BH140: -0.07894733313 | BI140: 0.3023561111 | BJ140: -0.4447341465 | BK140: 0.3023470027 | BL140: -0.00234688729
B141: 42 | C141: 1604.003107 | D141: 10078.24875 | E141: 0.005039025154 | F141: 2.63917745e-05 | G141: 0.005137292526 | H141: -0.01984370973 | I141: 0.0004937728159 | J141: 0.02222099944 | K141: -1.240293587 | L141: 1.538329746 | M141: 1.240294217 | N141: 58.14363481 | O141: -149.9374592 | P141: 0.006218270138 | Q141: 68.80440883 | R141: 0.002248233154 | S141: 0.005797614268 | T141: -9.9223487 | U141: 98.45310372 | V141: 9.922353739 | W141: -198.4471735 | X141: 39381.28079 | Y141: 198.4471738 | Z141: -99223.58778 | AA141: 9845320372 | AB141: 99223.58778 | AC141: 0.0001018251319 | AD141: 0.1058316902 | AE141: 9.448961224 | AF141: -89.94487333 | AG141: 0.009091239836 | AH141: -9.448956851 | AI141: 0.0001018251319 | AJ141: 0.1058316902 | AK141: 5.078554898e-09 | AL141: 0.001007824875 | AM141: 5.078554898e-09 | AN141: 0.0005039124377 | AO141: 1.01571098e-08 | AP141: 0.001511737313 | AQ141: 10 | AR141: -198447175.6 | AS141: 0.3000000102 | AT141: 0.001511737313 | AU141: 0.300003819 | AV141: 0.2887181057 | AW141: 9.452500017 | AX141: -88.12612731 | AY141: 0.003459340706 | AZ141: 0.105735544 | BA141: 0.9996256236 | BB141: -1.818746022 | BC141: 0.9991220421 | BD141: -0.03172589387 | BE141: 0.3023366124 | BF141: 1.385329421 | BG141: 3.306604863 | BH141: -0.07996452591 | BI141: 0.3024064421 | BJ141: -0.4481949118 | BK141: 0.3023971898 | BL141: -0.002365543283
B142: 43 | C142: 1622.595287 | D142: 10195.06687 | E142: 0.005097435347 | F142: 2.698384712e-05 | G142: 0.005194597878 | H142: -0.01961631137 | I142: 0.0004847996716 | J142: 0.02201816685 | K142: -1.226081905 | L142: 1.503278401 | M142: 1.226082542 | N142: 57.68711609 | O142: -147.628595 | P142: 0.006309178976 | Q142: 68.65650878 | R142: 0.002296278307 | S142: 0.005876465374 | T142: -9.808655241 | U142: 96.20981764 | V142: 9.808660339 | W142: -196.1733067 | X142: 38483.96636 | Y142: 196.1733069 | Z142: -98086.65436 | AA142: 9620991764 | AB142: 98086.65436 | AC142: 0.0001041993481 | AD142: 0.1070583972 | AE142: 9.340692112 | AF142: -89.94423435 | AG142: 0.009091239854 | AH142: -9.340687688 | AI142: 0.0001041993481 | AJ142: 0.1070583972 | AK142: 5.196969421e-09 | AL142: 0.001019506687 | AM142: 5.196969421e-09 | AN142: 0.0005097533433 | AO142: 1.039393884e-08 | AP142: 0.00152926003 | AQ142: 10 | AR142: -196173308.7 | AS142: 0.3000000104 | AT142: 0.00152926003 | AU142: 0.3000039081 | AV142: 0.2920646118 | AW142: 9.34427191 | AX142: -88.10441569 | AY142: 0.003539938982 | AZ142: 0.1069588704 | BA142: 0.9996168991 | BB142: -1.839818665 | BC142: 0.9991015862 | BD142: -0.03209307572 | BE142: 0.3023869887 | BF142: 1.403364744 | BG142: 3.306028667 | BH142: -0.08099186593 | BI142: 0.3024587821 | BJ142: -0.4517275451 | BK142: 0.3024493818 | BL142: -0.002384600556
B143: 44 | C143: 1641.402971 | D143: 10313.23903 | E143: 0.005156522553 | F143: 2.758972484e-05 | G143: 0.005252592202 | H143: -0.01939151833 | I143: 0.0004760309831 | J143: 0.02181813427 | K143: -1.212033064 | L143: 1.469025711 | M143: 1.212033709 | N143: 57.2532647 | O143: -145.3392165 | P143: 0.006401657173 | Q143: 68.49910425 | R143: 0.002346308325 | S143: 0.005956177617 | T143: -9.696264513 | U143: 94.01764551 | V143: 9.69626967 | W143: -193.9254945 | X143: 37607.0975 | Y143: 193.9254947 | Z143: -96962.74826 | AA143: 9401774551 | AB143: 96962.74826 | AC143: 0.0001066289229 | AD143: 0.1082993231 | AE143: 9.233663578 | AF143: -89.94358796 | AG143: 0.009091239873 | AH143: -9.233659102 | AI143: 0.0001066289229 | AJ143: 0.1082993231 | AK143: 5.318144966e-09 | AL143: 0.001031323903 | AM143: 5.318144965e-09 | AN143: 0.0005156619515 | AO143: 1.063628993e-08 | AP143: 0.001546985855 | AQ143: 10 | AR143: -193925496.5 | AS143: 0.3000000106 | AT143: 0.001546985855 | AU143: 0.3000039992 | AV143: 0.2954499056 | AW143: 9.237284857 | AX143: -88.08245271 | AY143: 0.003622413624 | AZ143: 0.1081962969 | BA143: 0.9996079715 | BB143: -1.861135259 | BC143: 0.999080654 | BD143: -0.03246449405 | BE143: 0.3024394056 | BF143: 1.421586285 | BG143: 3.305429767 | BH143: -0.08202904527 | BI143: 0.3025132086 | BJ143: -0.4553404284 | BK143: 0.3025036556 | BL143: -0.002404104547
B144: 45 | C144: 1660.428657 | D144: 10432.78094 | E144: 0.00521629462 | F144: 2.820972956e-05 | G144: 0.005311283231 | H144: -0.01916930077 | I144: 0.0004674620918 | J144: 0.02162087167 | K144: -1.198145199 | L144: 1.43555348 | M144: 1.198145851 | N144: 56.84174208 | O144: -143.069389 | P144: 0.006495720814 | Q144: 68.3319807 | R144: 0.002398402571 | S144: 0.006036725437 | T144: -9.585161589 | U144: 91.87542269 | V144: 9.585166805 | W144: -191.7034384 | X144: 36750.20838 | Y144: 191.7034386 | Z144: -95851.72022 | AA144: 9187552269 | AB144: 95851.72022 | AC144: 0.0001091151472 | AD144: 0.1095546327 | AE144: 9.127861407 | AF144: -89.94293409 | AG144: 0.009091239892 | AH144: -9.12785688 | AI144: 0.0001091151472 | AJ144: 0.1095546327 | AK144: 5.44214591e-09 | AL144: 0.001043278094 | AM144: 5.442145909e-09 | AN144: 0.0005216390471 | AO144: 1.088429182e-08 | AP144: 0.001564917141 | AQ144: 10 | AR144: -191703440.4 | AS144: 0.3000000109 | AT144: 0.001564917141 | AU144: 0.3000040925 | AV144: 0.2988744366 | AW144: 9.131524648 | AX144: -88.06023546 | AY144: 0.003706808247 | AZ144: 0.1094479841 | BA144: 0.9995988358 | BB144: -1.882698622 | BC144: 0.9990592345 | BD144: -0.03284019728 | BE144: 0.3024939428 | BF144: 1.439988807 | BG144: 3.304807313 | BH144: -0.08307571358 | BI144: 0.3025698009 | BJ144: -0.4590427277 | BK144: 0.3025600901 | BL144: -0.002424104917
B145: 46 | C145: 1679.674872 | D145: 10553.70848 | E145: 0.005276759485 | F145: 2.884419066e-05 | G145: 0.00537067879 | H145: -0.01894962916 | I145: 0.0004590884454 | J145: 0.02142634932 | K145: -1.184416464 | L145: 1.402843923 | M145: 1.184417124 | N145: 56.4522123 | O145: -140.8191744 | P145: 0.006591384687 | Q145: 68.15492002 | R145: 0.002452642692 | S145: 0.006118079431 | T145: -9.475331713 | U145: 89.78201106 | V145: 9.475336989 | W145: -189.5068432 | X145: 35912.84373 | Y145: 189.5068435 | Z145: -94753.42266 | AA145: 8978211106 | AB145: 94753.42266 | AC145: 0.0001116593419 | AD145: 0.1108244928 | AE145: 9.023271549 | AF145: -89.94227263 | AG145: 0.009091239912 | AH145: -9.023266969 | AI145: 0.0001116593419 | AJ145: 0.1108244928 | AK145: 5.569038131e-09 | AL145: 0.001055370848 | AM145: 5.56903813e-09 | AN145: 0.0005276854238 | AO145: 1.113807626e-08 | AP145: 0.001583056271 | AQ145: 10 | AR145: -189506845.3 | AS145: 0.3000000111 | AT145: 0.001583056272 | AU145: 0.3000041879 | AV145: 0.3023386595 | AW145: 9.026977236 | AX145: -88.03776102 | AY145: 0.003793167474 | AZ145: 0.1107140945 | BA145: 0.9995894875 | BB145: -1.904511602 | BC145: 0.9990373164 | BD145: -0.03322023438 | BE145: 0.3025506822 | BF145: 1.458566318 | BG145: 3.304160434 | BH145: -0.08413147501 | BI145: 0.3026286406 | BJ145: -0.4628444475 | BK145: 0.3026187664 | BL145: -0.002444655849
B146: 47 | C146: 1699.144172 | D146: 10676.0377 | E146: 0.005337925181 | F146: 2.949344523e-05 | G146: 0.005430786797 | H146: -0.01873247434 | I146: 0.000450905595 | J146: 0.02123453779 | K146: -1.170845037 | L146: 1.370879663 | M146: 1.170845704 | N146: 56.08434193 | O146: -138.5886317 | P146: 0.006688662118 | Q146: 67.96770077 | R146: 0.002509112558 | S146: 0.006200206053 | T146: -9.366760297 | U146: 87.73629846 | V146: 9.366765635 | W146: -187.3354173 | X146: 35094.55868 | Y146: 187.3354176 | Z146: -93667.70973 | AA146: 8773639845 | AB146: 93667.70973 | AC146: 0.0001142628587 | AD146: 0.1121090719 | AE146: 8.91988011 | AF146: -89.9416035 | AG146: 0.009091239932 | AH146: -8.919875477 | AI146: 0.0001142628587 | AJ146: 0.1121090719 | AK146: 5.698889045e-09 | AL146: 0.00106760377 | AM146: 5.698889044e-09 | AN146: 0.0005338018848 | AO146: 1.139777809e-08 | AP146: 0.001601405654 | AQ146: 10 | AR146: -187335419.5 | AS146: 0.3000000114 | AT146: 0.001601405654 | AU146: 0.3000042855 | AV146: 0.3058430344 | AW146: 8.923628736 | AX146: -88.01502642 | AY146: 0.003881536962 | AZ146: 0.1119947921 | BA146: 0.9995799214 | BB146: -1.926577082 | BC146: 0.999014888 | BD146: -0.03360465483 | BE146: 0.3026097077 | BF146: 1.477312013 | BG146: 3.303488244 | BH146: -0.08519588509 | BI146: 0.3026898108 | BJ146: -0.4667564885 | BK146: 0.302679767 | BL146: -0.002465816361
B147: 48 | C147: 1718.839143 | D147: 10799.78485 | E147: 0.005399799829 | F147: 3.01578382e-05 | G147: 0.005491615263 | H147: -0.01851780746 | I147: 0.0004429091933 | J147: 0.02104540789 | K147: -1.157429115 | L147: 1.339643719 | M147: 1.15742979 | N147: 55.73780001 | O147: -136.3778172 | P147: 0.006787564798 | Q147: 67.77009844 | R147: 0.002567898185 | S147: 0.006283067308 | T147: -9.259432922 | U147: 85.73719803 | V147: 9.259438322 | W147: -185.1888723 | X147: 34294.91851 | Y147: 185.1888725 | Z147: -92594.43721 | AA147: 8573729803 | AB147: 92594.43721 | AC147: 0.0001169270807 | AD147: 0.1134085407 | AE147: 8.817673361 | AF147: -89.94092662 | AG147: 0.009091239953 | AH147: -8.817668674 | AI147: 0.0001169270807 | AJ147: 0.1134085407 | AK147: 5.831767638e-09 | AL147: 0.001079978485 | AM147: 5.831767637e-09 | AN147: 0.0005399892423 | AO147: 1.166353527e-08 | AP147: 0.001619967727 | AQ147: 10 | AR147: -185188874.4 | AS147: 0.3000000117 | AT147: 0.001619967727 | AU147: 0.3000043855 | AV147: 0.3093880266 | AW147: 8.821465422 | AX147: -87.99202864 | AY147: 0.003971963426 | AZ147: 0.1132902431 | BA147: 0.9995701325 | BB147: -1.948897976 | BC147: 0.9989919375 | BD147: -0.03399350869 | BE147: 0.3026711054 | BF147: 1.496218217 | BG147: 3.302789836 | BH147: -0.08626844732 | BI147: 0.3027533968 | BJ147: -0.4707907074 | BK147: 0.3027431764 | BL147: -0.002487650629
B148: 49 | C148: 1738.7624 | D148: 10924.96637 | E148: 0.005462391649 | F148: 3.083772253e-05 | G148: 0.005553172294 | H148: -0.01830560002 | I148: 0.0004350949921 | J148: 0.02085893075 | K148: -1.144166917 | L148: 1.309119496 | M148: 1.144167599 | N148: 55.41225788 | O148: -134.1867838 | P148: 0.006888102596 | Q148: 67.56188577 | R148: 0.002629087626 | S148: 0.006366620425 | T148: -9.153335333 | U148: 83.78364771 | V148: 9.153340795 | W148: -183.066923 | X148: 33513.49839 | Y148: 183.0669232 | Z148: -91533.46258 | AA148: 8378374771 | AB148: 91533.46258 | AC148: 0.0001196534234 | AD148: 0.1147230719 | AE148: 8.716637725 | AF148: -89.94024189 | AG148: 0.009091239974 | AH148: -8.716632984 | AI148: 0.0001196534234 | AJ148: 0.1147230719 | AK148: 5.967744504e-09 | AL148: 0.001092496637 | AM148: 5.967744504e-09 | AN148: 0.0005462483182 | AO148: 1.193548901e-08 | AP148: 0.001638744955 | AQ148: 10 | AR148: -183066925.2 | AS148: 0.3000000119 | AT148: 0.001638744955 | AU148: 0.3000044877 | AV148: 0.3129741067 | AW148: 8.720473725 | AX148: -87.96876466 | AY148: 0.004064494664 | AZ148: 0.1146006151 | BA148: 0.9995601156 | BB148: -1.971477233 | BC148: 0.9989684527 | BD148: -0.03438684656 | BE148: 0.3027349629 | BF148: 1.515276324 | BG148: 3.302064289 | BH148: -0.08734860983 | BI148: 0.3028194852 | BJ148: -0.4749599784 | BK148: 0.3028090807 | BL148: -0.002510228329
B149: 50 | C149: 1758.91659 | D149: 11051.59888 | E149: 0.005525708954 | F149: 3.153345944e-05 | G149: 0.005615466093 | H149: -0.01809582382 | I149: 0.0004274588398 | J149: 0.02067507774 | K149: -1.13105668 | L149: 1.279290776 | M149: 1.131057371 | N149: 55.10738913 | O149: -132.0155821 | P149: 0.006990283359 | Q149: 67.34283308 | R149: 0.002692770848 | S149: 0.006450817514 | T149: -9.048453439 | U149: 81.87460963 | V149: 9.048458965 | W149: -180.9692876 | X149: 32749.88315 | Y149: 180.9692879 | Z149: -90484.6449 | AA149: 8187470963 | AB149: 90484.6449 | AC149: 0.0001224433352 | AD149: 0.1160528399 | AE149: 8.616759785 | AF149: -89.93954923 | AG149: 0.009091239995 | AH149: -8.616754989 | AI149: 0.0001224433352 | AJ149: 0.1160528399 | AK149: 6.106891887e-09 | AL149: 0.001105159888 | AM149: 6.106891886e-09 | AN149: 0.0005525799438 | AO149: 1.221378377e-08 | AP149: 0.001657739831 | AQ149: 10 | AR149: -180969289.8 | AS149: 0.3000000122 | AT149: 0.001657739831 | AU149: 0.3000045923 | AV149: 0.316601751 | AW149: 8.620640232 | AX149: -87.94523139 | AY149: 0.004159179579 | AZ149: 0.1159260778 | BA149: 0.9995498655 | BB149: -1.994317834 | BC149: 0.9989444214 | BD149: -0.03478471959 | BE149: 0.3028013699 | BF149: 1.534476732 | BG149: 3.301310667 | BH149: -0.08843576179 | BI149: 0.3028881641 | BJ149: -0.4792782576 | BK149: 0.3028775672 | BL149: -0.002533624986
B150: 51 | C150: 1779.30439 | D150: 11179.6992 | E150: 0.005589760152 | F150: 3.224541856e-05 | G150: 0.005678504958 | H150: -0.01788845101 | I150: 0.0004199966795 | J150: 0.02049382052 | K150: -1.118096664 | L150: 1.250141712 | M150: 1.118097362 | N150: 54.82286947 | O150: -129.8642597 | P150: 0.007094112696 | Q150: 67.11270866 | R150: 0.002759039574 | S150: 0.006535605219 | T150: -8.94477331 | U150: 80.00906957 | V150: 8.9447789 | W150: -178.8956876 | X150: 32003.66713 | Y150: 178.8956878 | Z150: -89447.84489 | AA150: 8000916956 | AB150: 89447.84489 | AC150: 0.0001252982984 | AD150: 0.1173980213 | AE150: 8.518026275 | AF150: -89.93884854 | AG150: 0.009091240017 | AH150: -8.518021423 | AI150: 0.0001252982984 | AJ150: 0.1173980213 | AK150: 6.24928371e-09 | AL150: 0.00111796992 | AM150: 6.249283709e-09 | AN150: 0.0005589849599 | AO150: 1.249856742e-08 | AP150: 0.00167695488 | AQ150: 10 | AR150: -178895689.8 | AS150: 0.3000000125 | AT150: 0.00167695488 | AU150: 0.3000046994 | AV150: 0.3202714411 | AW150: 8.521951684 | AX150: -87.92142574 | AY150: 0.004256068207 | AZ150: 0.1172668027 | BA150: 0.9995393767 | BB150: -2.017422797 | BC150: 0.9989198306 | BD150: -0.03518717951 | BE150: 0.3028704174 | BF150: 1.553808781 | BG150: 3.300528024 | BH150: -0.08952922982 | BI150: 0.3029595231 | BJ150: -0.4837606484 | BK150: 0.3029487245 | BL150: -0.002557922333
B151: 52 | C151: 1799.928507 | D151: 11309.28435 | E151: 0.005654553751 | F151: 3.297397812e-05 | G151: 0.005742297286 | H151: -0.01768345404 | I151: 0.0004127045468 | J151: 0.02031513098 | K151: -1.105285147 | L151: 1.221656819 | M151: 1.105285854 | N151: 54.55837665 | O151: -127.7328617 | P151: 0.00719959376 | Q151: 66.87127923 | R151: 0.002827987095 | S151: 0.006620924353 | T151: -8.842281176 | U151: 78.18603639 | V151: 8.84228683 | W151: -176.8458474 | X151: 31274.45386 | Y151: 176.8458477 | Z151: -88422.92485 | AA151: 7818613639 | AB151: 88422.92485 | AC151: 0.0001282198297 | AD151: 0.118758795 | AE151: 8.420424081 | AF151: -89.93813972 | AG151: 0.00909124004 | AH151: -8.420419173 | AI151: 0.0001282198297 | AJ151: 0.118758795 | AK151: 6.394995623e-09 | AL151: 0.001130928435 | AM151: 6.394995622e-09 | AN151: 0.0005654642173 | AO151: 1.278999124e-08 | AP151: 0.001696392652 | AQ151: 10 | AR151: -176845849.7 | AS151: 0.3000000128 | AT151: 0.001696392652 | AU151: 0.300004809 | AV151: 0.3239836643 | AW151: 8.424394973 | AX151: -87.89734455 | AY151: 0.00435521174 | AZ151: 0.1186229631 | BA151: 0.9995286437 | BB151: -2.040795171 | BC151: 0.9988946675 | BD151: -0.03559427861 | BE151: 0.3029421979 | BF151: 1.573260687 | BG151: 3.299715404 | BH151: -0.0906282743 | BI151: 0.3030336525 | BJ151: -0.4884234688 | BK151: 0.303022642 | BL151: -0.002583208682
B152: 53 | C152: 1820.79168 | D152: 11440.37153 | E152: 0.005720098356 | F152: 3.37195252e-05 | G152: 0.005806851574 | H152: -0.01748080569 | I152: 0.0004055785676 | J152: 0.0201389813 | K152: -1.092620428 | L152: 1.193820962 | M152: 1.092621143 | N152: 54.31359035 | O152: -125.6214306 | P152: 0.007306726998 | Q152: 66.61831042 | R152: 0.002899708052 | S152: 0.006706709523 | T152: -8.740963424 | U152: 76.40454158 | V152: 8.740969144 | W152: -174.819495 | X152: 30561.85593 | Y152: 174.8194953 | Z152: -87409.74864 | AA152: 7640464158 | AB152: 87409.74864 | AC152: 0.0001312094813 | AD152: 0.1201353415 | AE152: 8.323940241 | AF152: -89.93742269 | AG152: 0.009091240063 | AH152: -8.323935276 | AI152: 0.0001312094813 | AJ152: 0.1201353415 | AK152: 6.544105039e-09 | AL152: 0.001144037153 | AM152: 6.544105038e-09 | AN152: 0.0005720185765 | AO152: 1.308821008e-08 | AP152: 0.00171605573 | AQ152: 10 | AR152: -174819497.3 | AS152: 0.3000000131 | AT152: 0.00171605573 | AU152: 0.3000049211 | AV152: 0.3277389135 | AW152: 8.327957142 | AX152: -87.87298465 | AY152: 0.004456662559 | AZ152: 0.1199947344 | BA152: 0.9995176607 | BB152: -2.064438042 | BC152: 0.9988689188 | BD152: -0.03600606976 | BE152: 0.3030168049 | BF152: 1.592819471 | BG152: 3.298871846 | BH152: -0.09173208563 | BI152: 0.3031106435 | BJ152: -0.4932843196 | BK152: 0.3030994099 | BL152: -0.002609579304
B153: 54 | C153: 1841.896681 | D153: 11572.97816 | E153: 0.005786402673 | F153: 3.448245589e-05 | G153: 0.005872176419 | H153: -0.01728047904 | I153: 0.000398614956 | J153: 0.01996534387 | K153: -1.080100825 | L153: 1.166619354 | M153: 1.080101548 | N153: 54.0881921 | O153: -123.5300062 | P153: 0.007415509906 | Q153: 66.35356732 | R153: 0.002974298172 | S153: 0.006792888749 | T153: -8.640806598 | U153: 74.66363867 | V153: 8.640812385 | W153: -172.8163611 | X153: 29865.49477 | Y153: 172.8163614 | Z153: -86408.18171 | AA153: 7466373867 | AB153: 86408.18171 | AC153: 0.0001342688415 | AD153: 0.1215278437 | AE153: 8.22856194 | AF153: -89.93669735 | AG153: 0.009091240087 | AH153: -8.228556918 | AI153: 0.0001342688415 | AJ153: 0.1215278437 | AK153: 6.696691177e-09 | AL153: 0.001157297816 | AM153: 6.696691176e-09 | AN153: 0.000578648908 | AO153: 1.339338235e-08 | AP153: 0.001735946724 | AQ153: 10 | AR153: -172816363.4 | AS153: 0.3000000134 | AT153: 0.001735946724 | AU153: 0.3000050359 | AV153: 0.3315376874 | AW153: 8.232625383 | AX153: -87.84834282 | AY153: 0.004560474254 | AZ153: 0.1213822934 | BA153: 0.999506422 | BB153: -2.088354531 | BC153: 0.9988425709 | BD153: -0.0364226064 | BE153: 0.3030943327 | BF153: 1.612470891 | BG153: 3.297996387 | BH153: -0.09283978046 | BI153: 0.3031905878 | BJ153: -0.4983621534 | BK153: 0.3031791188 | BL153: -0.002637136806
B154: 55 | C154: 1863.246312 | D154: 11707.12185 | E154: 0.005853475507 | F154: 3.526317551e-05 | G154: 0.005938280518 | H154: -0.01708244749 | I154: 0.0003918100124 | J154: 0.01979419138 | K154: -1.067724675 | L154: 1.140037543 | M154: 1.067725406 | N154: 53.88186515 | O154: -121.458626 | P154: 0.007525936762 | Q154: 66.07681506 | R154: 0.003051853979 | S154: 0.006879383071 | T154: -8.541797396 | U154: 72.96240276 | V154: 8.54180325 | W154: -170.8361797 | X154: 29185.0004 | Y154: 170.83618 | Z154: -85418.09103 | AA154: 7296250276 | AB154: 85418.09103 | AC154: 0.0001373995357 | AD154: 0.1229364866 | AE154: 8.134276511 | AF154: -89.9359636 | AG154: 0.009091240111 | AH154: -8.134271431 | AI154: 0.0001373995357 | AJ154: 0.1229364866 | AK154: 6.852835101e-09 | AL154: 0.001170712185 | AM154: 6.852835101e-09 | AN154: 0.0005853560925 | AO154: 1.37056702e-08 | AP154: 0.001756068277 | AQ154: 10 | AR154: -170836182.1 | AS154: 0.3000000137 | AT154: 0.001756068278 | AU154: 0.3000051533 | AV154: 0.3353804903 | AW154: 8.138387035 | AX154: -87.8234158 | AY154: 0.004666701655 | AZ154: 0.1227858195 | BA154: 0.9994949216 | BB154: -2.112547794 | BC154: 0.9988156097 | BD154: -0.03684394258 | BE154: 0.3031748761 | BF154: 1.632199374 | BG154: 3.297088065 | BH154: -0.09395039797 | BI154: 0.3032735771 | BJ154: -0.5036773435 | BK154: 0.3032618589 | BL154: -0.002665991519
B155: 56 | C155: 1884.843409 | D155: 11842.82041 | E155: 0.005921325768 | F155: 3.606209885e-05 | G155: 0.006005172674 | H155: -0.01688668474 | I155: 0.0003851601215 | J155: 0.01962549672 | K155: -1.055490334 | L155: 1.114061407 | M155: 1.055491074 | N155: 53.6942944 | O155: -119.407325 | P155: 0.007637998344 | Q155: 65.78781952 | R155: 0.003132472445 | S155: 0.006966106163 | T155: -8.443922668 | U155: 71.29993002 | V155: 8.443928589 | W155: -168.8786878 | X155: 28520.01131 | Y155: 168.8786881 | Z155: -84439.34511 | AA155: 7130003002 | AB155: 84439.34511 | AC155: 0.0001406032273 | AD155: 0.1243614572 | AE155: 8.041071431 | AF155: -89.93522134 | AG155: 0.009091240136 | AH155: -8.041066292 | AI155: 0.0001406032273 | AJ155: 0.1243614572 | AK155: 7.012619768e-09 | AL155: 0.001184282041 | AM155: 7.012619767e-09 | AN155: 0.0005921410206 | AO155: 1.402523953e-08 | AP155: 0.001776423062 | AQ155: 10 | AR155: -168878690.2 | AS155: 0.300000014 | AT155: 0.001776423062 | AU155: 0.3000052734 | AV155: 0.3392678325 | AW155: 8.04522958 | AX155: -87.79820032 | AY155: 0.00477540086 | AZ155: 0.1242054935 | BA155: 0.9994831535 | BB155: -2.137021024 | BC155: 0.9987880212 | BD155: -0.03727013292 | BE155: 0.3032585303 | BF155: 1.651987946 | BG155: 3.296145924 | BH155: -0.09506289613 | BI155: 0.3033597027 | BJ155: -0.5092517528 | BK155: 0.3033477202 | BL155: -0.002696261881
B156: 57 | C156: 1906.690841 | D156: 11980.09187 | E156: 0.005989962465 | F156: 3.687965034e-05 | G156: 0.006072861791 | H156: -0.01669316478 | I156: 0.0003786617504 | J156: 0.01945923304 | K156: -1.043396177 | L156: 1.088677144 | M156: 1.043396926 | N156: 53.5251663 | O156: -117.3761356 | P156: 0.007751681639 | Q156: 65.48634804 | R156: 0.003216250607 | S156: 0.007052963934 | T156: -8.347169415 | U156: 69.67533723 | V156: 8.347175405 | W156: -166.9436255 | X156: 27870.17419 | Y156: 166.9436258 | Z156: -83471.81394 | AA156: 6967543723 | AB156: 83471.81394 | AC156: 0.0001438816181 | AD156: 0.1258029448 | AE156: 7.948934322 | AF156: -89.93447049 | AG156: 0.009091240161 | AH156: -7.948929123 | AI156: 0.0001438816181 | AJ156: 0.1258029448 | AK156: 7.176130066e-09 | AL156: 0.001198009187 | AM156: 7.176130065e-09 | AN156: 0.0005990045936 | AO156: 1.435226013e-08 | AP156: 0.001797013781 | AQ156: 10 | AR156: -166943627.9 | AS156: 0.3000000144 | AT156: 0.001797013781 | AU156: 0.3000053964 | AV156: 0.3432002301 | AW156: 7.953140648 | AX156: -87.77269304 | AY156: 0.004886629265 | AZ156: 0.1256414983 | BA156: 0.9994711113 | BB156: -2.161777449 | BC156: 0.9987597907 | BD156: -0.03770123264 | BE156: 0.3033453897 | BF156: 1.671818161 | BG156: 3.295169022 | BH156: -0.09617614812 | BI156: 0.3034490552 | BJ156: -0.5151088008 | BK156: 0.3034367919 | BL156: -0.002728074818
B157: 58 | C157: 1928.791508 | D157: 12118.95446 | E157: 0.006059394717 | F157: 3.771626433e-05 | G157: 0.00614135688 | H157: -0.01650186191 | I157: 0.0003723114466 | J157: 0.01929537371 | K157: -1.031440598 | L157: 1.06387127 | M157: 1.031441356 | N157: 53.37416876 | O157: -115.3650881 | P157: 0.007866969542 | Q157: 65.17217021 | R157: 0.003303285126 | S157: 0.00713985414 | T157: -8.251524785 | U157: 68.08776128 | V157: 8.251530845 | W157: -165.0307357 | X157: 27235.14381 | Y157: 165.030736 | Z157: -82515.36904 | AA157: 6808786128 | AB157: 82515.36904 | AC157: 0.0001472364501 | AD157: 0.1272611409 | AE157: 7.857852945 | AF157: -89.93371092 | AG157: 0.009091240187 | AH157: -7.857847686 | AI157: 0.0001472364501 | AJ157: 0.1272611409 | AK157: 7.343452865e-09 | AL157: 0.001211895446 | AM157: 7.343452864e-09 | AN157: 0.0006059477231 | AO157: 1.468690573e-08 | AP157: 0.001817843169 | AQ157: 10 | AR157: -165030738.1 | AS157: 0.3000000147 | AT157: 0.001817843169 | AU157: 0.3000055222 | AV157: 0.3471782053 | AW157: 7.862108006 | AX157: -87.74689059 | AY157: 0.005000445594 | AZ157: 0.127094019 | BA157: 0.9994587888 | BB157: -2.186820336 | BC157: 0.9987309032 | BD157: -0.03813729759 | BE157: 0.3034355484 | BF157: 1.691670038 | BG157: 3.294156429 | BH157: -0.09728893884 | BI157: 0.303541724 | BJ157: -0.5212735294 | BK157: 0.3035291616 | BL157: -0.00276156611
B158: 59 | C158: 1951.148347 | D158: 12259.42663 | E158: 0.006129631743 | F158: 3.85723853e-05 | G158: 0.006210667058 | H158: -0.01631275073 | I158: 0.0003661058364 | J158: 0.01913389235 | K158: -1.01962201 | L158: 1.039630605 | M158: 1.019622776 | N158: 53.24099104 | O158: -113.3742102 | P158: 0.007983840538 | Q158: 64.84505876 | R158: 0.003393671797 | S158: 0.007226665999 | T158: -8.156976078 | U158: 66.53635873 | V158: 8.156982207 | W158: -163.1397643 | X158: 26614.58279 | Y158: 163.1397646 | Z158: -81569.88337 | AA158: 6653645873 | AB158: 81569.88337 | AC158: 0.0001506695054 | AD158: 0.1287362391 | AE158: 7.767815204 | AF158: -89.93294256 | AG158: 0.009091240214 | AH158: -7.767809884 | AI158: 0.0001506695054 | AJ158: 0.1287362391 | AK158: 7.514677058e-09 | AL158: 0.001225942662 | AM158: 7.514677058e-09 | AN158: 0.0006129713312 | AO158: 1.502935412e-08 | AP158: 0.001838913994 | AQ158: 10 | AR158: -163139766.7 | AS158: 0.300000015 | AT158: 0.001838913994 | AU158: 0.300005651 | AV158: 0.3512022862 | AW158: 7.772119564 | AX158: -87.72078957 | AY158: 0.005116909927 | AZ158: 0.1285632423 | BA158: 0.9994461794 | BB158: -2.212152988 | BC158: 0.9987013437 | BD158: -0.03857838419 | BE158: 0.303529099 | BF158: 1.711521993 | BG158: 3.293107242 | BH158: -0.09839996158 | BI158: 0.3036377965 | BJ158: -0.5277726652 | BK158: 0.3036249149 | BL158: -0.002796880752
B159: 60 | C159: 1973.764326 | D159: 12401.52701 | E159: 0.006200682872 | F159: 3.944846808e-05 | G159: 0.006280801548 | H159: -0.01612580612 | I159: 0.000360041623 | J159: 0.01897476279 | K159: -1.007938842 | L159: 1.015942271 | M159: 1.007939617 | N159: 53.12532371 | O159: -111.4035272 | P159: 0.00810226838 | Q159: 64.50479048 | R159: 0.003487504999 | S159: 0.007313279824 | T159: -8.063510734 | U159: 65.02030536 | V159: 8.063516935 | W159: -161.2704602 | X159: 26008.16144 | Y159: 161.2704605 | Z159: -80635.23135 | AA159: 6502040536 | AB159: 80635.23135 | AC159: 0.0001541826081 | AD159: 0.1302284353 | AE159: 7.678809142 | AF159: -89.93216529 | AG159: 0.009091240241 | AH159: -7.67880376 | AI159: 0.0001541826081 | AJ159: 0.1302284353 | AK159: 7.689893615e-09 | AL159: 0.001240152701 | AM159: 7.689893614e-09 | AN159: 0.0006200763506 | AO159: 1.537978723e-08 | AP159: 0.001860229052 | AQ159: 10 | AR159: -161270462.7 | AS159: 0.3000000154 | AT159: 0.001860229052 | AU159: 0.3000057827 | AV159: 0.3552730072 | AW159: 7.683163371 | AX159: -87.69438654 | AY159: 0.005236083733 | AZ159: 0.1300493573 | BA159: 0.9994332765 | BB159: -2.237778745 | BC159: 0.9986710964 | BD159: -0.03902454951 | BE159: 0.3036261324 | BF159: 1.731350775 | BG159: 3.292020584 | BH159: -0.09950781506 | BI159: 0.3037373578 | BJ159: -0.5346346776 | BK159: 0.3037241347 | BL159: -0.002834173289
B160: 61 | C160: 1996.64245 | D160: 12545.27451 | E160: 0.006272557542 | F160: 4.034497812e-05 | G160: 0.006351769684 | H160: -0.01594100324 | I160: 0.0003541155844 | J160: 0.01881795909 | K160: -0.9963895426 | L160: 0.9927936831 | M160: 0.9963903267 | N160: 53.02685852 | O160: -109.4530621 | P160: 0.008222221754 | Q160: 64.15114727 | R160: 0.003584877089 | S160: 0.007399566665 | T160: -7.971116341 | U160: 63.53879572 | V160: 7.971122613 | W160: -159.4225752 | X160: 25415.55759 | Y160: 159.4225755 | Z160: -79711.28886 | AA160: 6353889572 | AB160: 79711.28886 | AC160: 0.0001577776246 | AD160: 0.1317379277 | AE160: 7.590822936 | AF160: -89.93137901 | AG160: 0.009091240269 | AH160: -7.590817492 | AI160: 0.0001577776246 | AJ160: 0.1317379277 | AK160: 7.869195622e-09 | AL160: 0.001254527451 | AM160: 7.869195621e-09 | AN160: 0.0006272637252 | AO160: 1.573839124e-08 | AP160: 0.001881791176 | AQ160: 10 | AR160: -159422577.7 | AS160: 0.3000000157 | AT160: 0.001881791176 | AU160: 0.3000059176 | AV160: 0.3593909087 | AW160: 7.595227611 | AX160: -87.66767802 | AY160: 0.005358029901 | AZ160: 0.1315525548 | BA160: 0.9994200732 | BB160: -2.263700986 | BC160: 0.9986401454 | BD160: -0.03947585121 | BE160: 0.303726737 | BF160: 1.751131416 | BG160: 3.290895617 | BH160: -0.1006110006 | BI160: 0.3038404899 | BJ160: -0.5418898323 | BK160: 0.3038269008 | BL160: -0.002873608125
B161: 62 | C161: 2019.785757 | D161: 12690.68819 | E161: 0.006345265298 | F161: 4.12623917e-05 | G161: 0.006423580909 | H161: -0.01575831757 | I161: 0.0003483245725 | J161: 0.01866345554 | K161: -0.9849725783 | L161: 0.9701725426 | M161: 0.9849733715 | N161: 52.94528834 | O161: -107.5228354 | P161: 0.008343663941 | Q161: 63.78391724 | R161: 0.003685877735 | S161: 0.007485387985 | T161: -7.879780627 | U161: 62.09104273 | V161: 7.879786972 | W161: -157.5958638 | X161: 24836.45639 | Y161: 157.5958641 | Z161: -78797.93317 | AA161: 6209114272 | AB161: 78797.93317 | AC161: 0.0001614564649 | AD161: 0.1332649168 | AE161: 7.5038449 | AF161: -89.93058361 | AG161: 0.009091240298 | AH161: -7.503839393 | AI161: 0.0001614564649 | AJ161: 0.1332649168 | AK161: 8.052678338e-09 | AL161: 0.001269068819 | AM161: 8.052678337e-09 | AN161: 0.0006345344094 | AO161: 1.610535667e-08 | AP161: 0.001903603228 | AQ161: 10 | AR161: -157595866.3 | AS161: 0.3000000161 | AT161: 0.001903603229 | AU161: 0.3000060556 | AV161: 0.3635565374 | AW161: 7.508300607 | AX161: -87.64066048 | AY161: 0.005482812774 | AZ161: 0.1330730279 | BA161: 0.9994065626 | BB161: -2.289923129 | BC161: 0.9986084743 | BD161: -0.03993234761 | BE161: 0.3038309979 | BF161: 1.770837172 | BG161: 3.289731547 | BH161: -0.10170792 | BI161: 0.3039472706 | BJ161: -0.5495702381 | BK161: 0.3039332887 | BL161: -0.002915359804
B162: 63 | C162: 2043.19732 | D162: 12837.78738 | E162: 0.006418815796 | F162: 4.220119622e-05 | G162: 0.006496244778 | H162: -0.01557772482 | I162: 0.0003426655105 | J162: 0.01851122661 | K162: -0.9736864326 | L162: 0.9480668316 | M162: 0.973687235 | N162: 52.88030708 | O162: -105.6128654 | P162: 0.008466552471 | Q162: 63.40289587 | R162: 0.00379059318 | S162: 0.007570595359 | T162: -7.789491461 | U162: 60.67627722 | V162: 7.78949788 | W162: -155.7900834 | X162: 24270.55019 | Y162: 155.7900837 | Z162: -77895.04299 | AA162: 6067637722 | AB162: 77895.04299 | AC162: 0.0001652210834 | AD162: 0.1348096054 | AE162: 7.417863484 | AF162: -89.92977899 | AG162: 0.009091240327 | AH162: -7.417857913 | AI162: 0.0001652210834 | AJ162: 0.1348096054 | AK162: 8.240439243e-09 | AL162: 0.001283778738 | AM162: 8.240439242e-09 | AN162: 0.000641889369 | AO162: 1.648087848e-08 | AP162: 0.001925668107 | AQ162: 10 | AR162: -155790086 | AS162: 0.3000000165 | AT162: 0.001925668107 | AU162: 0.3000061967 | AV162: 0.3677704465 | AW162: 7.422370811 | AX162: -87.61333036 | AY162: 0.00561049818 | AZ162: 0.1346109715 | BA162: 0.9993927375 | BB162: -2.31644863 | BC162: 0.9985760665 | BD162: -0.04039409763 | BE162: 0.3039389964 | BF162: 1.790439484 | BG162: 3.288527631 | BH162: -0.1027968733 | BI162: 0.3040577735 | BJ162: -0.557709885 | BK162: 0.3040433691 | BL162: -0.002959613247
B163: 64 | C163: 2066.88025 | D163: 12986.59162 | E163: 0.006493218806 | F163: 4.316189046e-05 | G163: 0.006569770959 | H163: -0.01539920102 | I163: 0.000337135392 | J163: 0.01836124702 | K163: -0.9625296065 | L163: 0.926464806 | M163: 0.9625304182 | N163: 52.83160962 | O163: -103.7231677 | P163: 0.008590838779 | Q163: 63.00788726 | R163: 0.003899105445 | S163: 0.007655030218 | T163: -7.700236852 | U163: 59.29374758 | V163: 7.700243346 | W163: -154.0049942 | X163: 23717.53833 | Y163: 154.0049945 | Z163: -77002.49839 | AA163: 5929384758 | AB163: 77002.49839 | AC163: 0.0001690734802 | AD163: 0.1363721986 | AE163: 7.332867266 | AF163: -89.92896505 | AG163: 0.009091240357 | AH163: -7.332861631 | AI163: 0.0001690734802 | AJ163: 0.1363721986 | AK163: 8.43257809e-09 | AL163: 0.001298659162 | AM163: 8.432578089e-09 | AN163: 0.0006493295807 | AO163: 1.686515618e-08 | AP163: 0.001947988742 | AQ163: 10 | AR163: -154004996.8 | AS163: 0.3000000169 | AT163: 0.001947988742 | AU163: 0.3000063412 | AV163: 0.3720331954 | AW163: 7.337426813 | AX163: -87.58568407 | AY163: 0.005741153468 | AZ163: 0.1361665828 | BA163: 0.9993785906 | BB163: -2.343280985 | BC163: 0.9985429048 | BD163: -0.04086116085 | BE163: 0.3040508091 | BF163: 1.809907939 | BG163: 3.28728319 | BH163: -0.1038760578 | BI163: 0.3041720663 | BJ163: -0.5663446739 | BK163: 0.3041572069 | BL163: -0.003006563938
B164: 65 | C164: 2090.837691 | D164: 13137.12066 | E164: 0.006568484208 | F164: 4.414498479e-05 | G164: 0.006644169233 | H164: -0.01522272245 | I164: 0.0003317312789 | J164: 0.01821349167 | K164: -0.9515006182 | L164: 0.905354989 | M164: 0.9515014393 | N164: 52.79889174 | O164: -101.8537557 | P164: 0.008716467856 | Q164: 62.59870554 | R164: 0.004011491465 | S164: 0.007738523639 | T164: -7.612004946 | U164: 57.9427193 | V164: 7.612011514 | W164: -152.240359 | X164: 23177.12702 | Y164: 152.2403594 | Z164: -76120.18083 | AA164: 5794281929 | AB164: 76120.18083 | AC164: 0.000173015702 | AD164: 0.1379529041 | AE164: 7.248844959 | AF164: -89.92814168 | AG164: 0.009091240387 | AH164: -7.248839258 | AI164: =1/Mag_Zc46*COS(-PI()/180*Ph_Zc46) -> 0.000173015702 | AJ164: =1/Mag_Zc46*SIN(-PI()/180*Ph_Zc46) -> 0.1379529041 | AK164: 8.629196957e-09 | AL164: 0.001313712066 | AM164: 8.629196956e-09 | AN164: 0.0006568560327 | AO164: 1.725839391e-08 | AP164: 0.001970568098 | AQ164: 10 | AR164: -152240361.7 | AS164: 0.3000000173 | AT164: 0.001970568098 | AU164: 0.3000064891 | AV164: 0.3763453501 | AW164: 7.253457329 | AX164: -87.55771795 | AY164: =1/Mag_C46_F*COS(-PI()/180*Ph_C46_F) -> 0.005874847541 | AZ164: =1/Mag_C46_F*SIN(-PI()/180*Ph_C46_F) -> 0.1377400611 | BA164: 0.9993641144 | BB164: -2.370423728 | BC164: 0.9985089718 | BD164: -0.04133359749 | BE164: 0.3041665069 | BF164: 1.829210246 | BG164: =1/Mag_C13_F*COS(-PI()/180*Ph_C13_F) -> 3.285997617 | BH164: =1/Mag_C13_F*SIN(-PI()/180*Ph_C13_F) -> -0.1049435676 | BI164: 0.3042902105 | BJ164: -0.575512434 | BK164: 0.3042748601 | BL164: -0.003056418054
B165: 66 | C165: =F_min*incr_^(n_-1) -> 2115.072825 | D165: =2*PI()*Fr_ -> 13289.3945 | E165: =Omega_*L_1/N_1-1/(Omega_*C_1*N_1) -> 0.006644622 | F165: =(R_1/N_1)^2+X_1^2 -> 4.515100153e-05 | G165: =SQRT(Zc1_2) -> 0.006719449496 | H165: =Omega_*L_2/N_2-1/(Omega_*C_2*N_2) -> -0.01504826569 | I165: =(R_2/N_2)^2+X_2^2 -> 0.0003264503002 | J165: =SQRT(Zc2_2) -> 0.01806793569 | K165: =Omega_*L_3/N_3-1/(Omega_*C_3*N_3) -> -0.9405980029 | L165: =(R_3/N_3)^2+X_3^2 -> 0.8847261656 | M165: =SQRT(Zc3_2) -> 0.9405988335 | N165: =R_1/N_1/Zc1_2+R_2/N_2/Zc2_2+R_3/N_3/Zc3_2 -> 52.78185007 | O165: =-X_1/Zc1_2-X_2/Zc2_2-X_3/Zc3_2 -> -100.0046403 | P165: =1/SQRT(S_Gin^2+S_Bin^2) -> 0.008843377916 | Q165: =-180/PI()*ATAN2(S_Gin,S_Bin) -> 62.17517622 | R165: =Mag_Zc13*COS(PI()/180*Ph_Zc13) -> 0.004127822158 | S165: =Mag_Zc13*SIN(PI()/180*Ph_Zc13) -> 0.007820896188 | T165: =Omega_*L_4/N_4-1/(Omega_*C_4*N_4) -> -7.524784024 | U165: =(R_4/N_4)^2+X_4^2 -> 56.6224746 | V165: =SQRT(Zc4_2) -> 7.524790668 | W165: =Omega_*L_5/N_5-1/(Omega_*C_5*N_5) -> -150.4959436 | X165: =(R_5/N_5)^2+X_5^2 -> 22649.02914 | Y165: =SQRT(Zc5_2) -> 150.4959439 | Z165: =Omega_*L_6/N_6-1/(Omega_*C_6*N_6) -> -75247.97313 | AA165: =(R_6/N_6)^2+X_6^2 -> 5662257460 | AB165: =SQRT(Zc6_2) -> 75247.97313 | AC165: =R_4/N_4/Zc4_2+R_5/N_5/Zc5_2+R_6/N_6/Zc6_2 -> 0.0001770498433 | AD165: =-X_4/Zc4_2-X_5/Zc5_2-X_6/Zc6_2 -> 0.1395519317 | AE165: =1/SQRT(S_Gout^2+S_Bout^2) -> 7.165785404 | AF165: =-180/PI()*ATAN2(S_Gout,S_Bout) -> -89.92730876 | AG165: =Mag_Zc46*COS(PI()/180*Ph_Zc46) -> 0.009091240418 | AH165: =Mag_Zc46*SIN(PI()/180*Ph_Zc46) -> -7.165779636 | AI165: 0.0001770498433 | AJ165: 0.1395519317 | AK165: =Omega_^2*L_f1^2*R_f1/(R_f1^2+Omega_^2*L_f1^2) -> 8.830400304e-09 | AL165: =Omega_*L_f1*R_f1^2/(R_f1^2+Omega_^2*L_f1^2) -> 0.00132893945 | AM165: =Omega_^2*L_f2^2*R_f2/(R_f2^2+Omega_^2*L_f2^2) -> 8.830400303e-09 | AN165: =Omega_*L_f2*R_f2^2/(R_f2^2+Omega_^2*L_f2^2) -> 0.0006644697247 | AO165: =Re_Zf1+Re_Zf2 -> 1.766080061e-08 | AP165: =Im_Zf1+Im_Zf2 -> 0.001993409174 | AQ165: =R_b -> 10 | AR165: =-1/(Omega_*C_b) -> -150495946.3 | AS165: =R_dc+((Re_Zl*Re_Zc-Im_Zl*Im_Zc)*(Re_Zl+Re_Zc)+((Re_Zl*Im_Zc+Re_Zc*Im_Zl)*(Im_Zl+Im_Zc)))/((Re_Zl+Re_Zc)^2+(Im_Zl+Im_Zc)^2) -> 0.3000000177 | AT165: =((Re_Zl+Re_Zc)*(Re_Zl*Im_Zc+Re_Zc*Im_Zl)-(Im_Zl+Im_Zc)*(Re_Zl*Re_Zc-Im_Zl*Im_Zc))/((Re_Zl+Re_Zc)^2+(Im_Zl+Im_Zc)^2) -> 0.001993409174 | AU165: =SQRT(Re_Zf^2+Im_Zf^2) -> 0.3000066404 | AV165: =180/PI()*ATAN2(Re_Zf,Im_Zf) -> 0.3807074831 | AW165: =SQRT((Re_Zc46+Re_Zf)^2+(Im_Zc46+Im_Zf)^2) -> 7.170451207 | AX165: =180/PI()*ATAN2((Re_Zc46+Re_Zf),(Im_Zc46+Im_Zf)) -> -87.52942832 | AY165: 0.006011650893 | AZ165: 0.1393316076 | BA165: =Mag_Zc46/Mag_C46_F -> 0.9993493012 | BB165: =Ph_Zc46-Ph_C46_F -> -2.397880437 | BC165: =Mag_Vtr*COS(PI()/180*Ph_Vtr) -> 0.9984742495 | BD165: =Mag_Vtr*SIN(PI()/180*Ph_Vtr) -> -0.04181146841 | BE165: =SQRT((Re_Zc13+Re_Zf)^2+(Im_Zc13+Im_Zf)^2) -> 0.304286154 | BF165: =180/PI()*ATAN2((Re_Zc13+Re_Zf),(Im_Zc13+Im_Zf)) -> 1.848312222 | BG165: 3.284670387 | BH165: -0.1059973931 | BI165: =1/SQRT((G_C13_F+G_C46)^2+(B_C13_F+B_C46)^2) -> 0.3044122599 | BJ165: =-180/PI()*ATAN2((G_C13_F+G_C46),(B_C13_F+B_C46)) -> -0.5852529281 | BK165: =Mag_Zout*COS(PI()/180*Ph_Zout) -> 0.3043963792 | BL165: =Mag_Zout*SIN(PI()/180*Ph_Zout) -> -0.003109392522
B166: 67 | C166: 2139.588871 | D166: 13443.43336 | E166: 0.006721642294 | F166: 4.618047513e-05 | G166: 0.006795621762 | H166: -0.01487580755 | I166: 0.0003212896501 | J166: 0.01792455439 | K166: -0.9298203126 | L166: 0.8645673763 | M166: 0.9298211528 | N166: 52.78018199 | O166: -98.17582963 | P166: 0.008971500054 | Q166: 61.73713772 | R166: 0.00424816143 | S166: 0.007901957839 | T166: -7.438562501 | U166: 55.33231208 | V166: 7.438569223 | W166: -148.7715162 | X166: 22132.96413 | Y166: 148.7715165 | Z166: -74385.75944 | AA166: 5533241208 | AB166: 74385.75944 | AC166: 0.0001811780473 | AD166: 0.1411694938 | AE166: 7.083677567 | AF166: -89.92646618 | AG166: 0.00909124045 | AH166: -7.083671733 | AI166: 0.0001811780473 | AJ166: 0.1411694938 | AK166: 9.036295025e-09 | AL166: 0.001344343336 | AM166: 9.036295023e-09 | AN166: 0.0006721716679 | AO166: 1.807259005e-08 | AP166: 0.002016515004 | AQ166: 10 | AR166: -148771518.9 | AS166: 0.3000000181 | AT166: 0.002016515004 | AU166: 0.3000067952 | AV166: 0.3851201736 | AW166: 7.088397424 | AX166: -87.50081146 | AY166: 0.006151635645 | AZ166: 0.1409414258 | BA166: 0.9993341434 | BB166: -2.425654726 | BC166: 0.9984387197 | BD166: -0.04229483514 | BE166: 0.3044098074 | BF166: 1.867177794 | BG166: 3.283301066 | BH166: -0.1070354226 | BI166: 0.30453826 | BJ166: -0.5956078415 | BK166: 0.3045218055 | BL166: -0.003165715003
B167: 68 | C167: 2164.389086 | D167: 13599.2577 | E167: 0.006799555319 | F167: 4.723395253e-05 | G167: 0.006872696162 | H167: -0.01470532513 | I167: 0.0003162465871 | J167: 0.01778332329 | K167: -0.9191661158 | L167: 0.844867911 | M167: 0.9191669658 | N167: 52.79358565 | O167: -96.36732968 | P167: 0.009100757937 | Q167: 61.28444297 | R167: 0.004372565117 | S167: 0.007981507961 | T167: -7.353328927 | U167: 54.0715463 | V167: 7.353335726 | W167: -147.0668478 | X167: 21628.65782 | Y167: 147.0668481 | Z167: -73533.42526 | AA167: 5407164630 | AB167: 73533.42526 | AC167: 0.0001854025072 | AD167: 0.1428058052 | AE167: 7.002510546 | AF167: -89.92561384 | AG167: 0.009091240483 | AH167: -7.002504644 | AI167: 0.0001854025072 | AJ167: 0.1428058052 | AK167: 9.246990505e-09 | AL167: 0.00135992577 | AM167: 9.246990504e-09 | AN167: 0.0006799628851 | AO167: 1.849398101e-08 | AP167: 0.002039888655 | AQ167: 10 | AR167: -147066850.5 | AS167: 0.3000000185 | AT167: 0.002039888656 | AU167: 0.3000069537 | AV167: 0.3895840074 | AW167: 7.00728508 | AX167: -87.47186359 | AY167: 0.006294875581 | AZ167: 0.1425697213 | BA167: 0.9993186327 | BB167: -2.453750255 | BC167: 0.9984023636 | BD167: -0.04278375986 | BE167: 0.304537515 | BF167: 1.885769012 | BG167: 3.281889327 | BH167: -0.1080554438 | BI167: 0.3046682465 | BJ167: -0.6066207556 | BK167: 0.3046511706 | BL167: -0.003225623782
B168: 69 | C168: 2189.476763 | D168: 13756.88823 | E168: 0.006878371423 | F168: 4.831199343e-05 | G168: 0.006950682947 | H168: -0.01453679579 | I168: 0.0003113184317 | J168: 0.01764421808 | K168: -0.9086339976 | L168: 0.825617304 | M168: 0.9086348574 | N168: 52.82175983 | O168: -94.5791436 | P168: 0.009231067495 | Q168: 60.81696104 | R168: 0.004501079866 | S168: 0.008059335402 | T168: -7.26907198 | U168: 52.83950746 | V168: 7.269078859 | W168: -145.381712 | X168: 21135.84228 | Y168: 145.3817123 | Z168: -72690.85737 | AA168: 5283960746 | AB168: 72690.85737 | AC168: 0.0001897254675 | AD168: 0.1444610834 | AE168: 6.922273558 | AF168: -89.92475162 | AG168: 0.009091240517 | AH168: -6.922267588 | AI168: 0.0001897254675 | AJ168: 0.1444610834 | AK168: 9.462598684e-09 | AL168: 0.001375688823 | AM168: 9.462598682e-09 | AN168: 0.0006878444112 | AO168: 1.892519737e-08 | AP168: 0.002063533234 | AQ168: 10 | AR168: -145381714.7 | AS168: 0.3000000189 | AT168: 0.002063533234 | AU168: 0.3000071158 | AV168: 0.3940995772 | AW168: 6.927103404 | AX168: -87.4425809 | AY168: 0.006441446187 | AZ168: 0.1442167019 | BA168: 0.9993027611 | BB168: -2.482170721 | BC168: 0.998365162 | BD168: -0.04327830544 | BE168: 0.3046693152 | BF168: 1.904046086 | BG168: 3.280434957 | BH168: -0.1090551472 | BI168: 0.3048022445 | BJ168: -0.6183371013 | BK168: 0.3047844949 | BL168: -0.00328936755
B169: 70 | C169: 2214.855234 | D169: 13916.34586 | E169: 0.006958101073 | F169: 4.941517054e-05 | G169: 0.007029592488 | H169: -0.01437019714 | I169: 0.0003065025659 | J169: 0.01750721468 | K169: -0.898222559 | L169: 0.806805328 | M169: 0.8982234288 | N169: 52.86440396 | O169: -92.811272 | P169: 0.009362336644 | Q169: 60.33457884 | R169: 0.004633741967 | S169: 0.00813521867 | T169: -7.185780472 | U169: 51.63554099 | V169: 7.18578743 | W169: -143.715885 | X169: 20654.2557 | Y169: 143.7158853 | Z169: -71857.94388 | AA169: 5163564099 | AB169: 71857.94388 | AC169: 0.0001941492247 | AD169: 0.146135548 | AE169: 6.842955949 | AF169: -89.92387941 | AG169: 0.009091240551 | AH169: -6.842949909 | AI169: 0.0001941492247 | AJ169: 0.146135548 | AK169: 9.683234107e-09 | AL169: 0.001391634586 | AM169: 9.683234106e-09 | AN169: 0.000695817293 | AO169: 1.936646821e-08 | AP169: 0.002087451879 | AQ169: 10 | AR169: -143715887.8 | AS169: 0.3000000194 | AT169: 0.002087451879 | AU169: 0.3000072817 | AV169: 0.3986674824 | AW169: 6.847841745 | AX169: -87.41295954 | AY169: 0.00659142469 | AZ169: 0.1458825776 | BA169: 0.9992865202 | BB169: -2.510919866 | BC169: 0.9983270953 | BD169: -0.04377853538 | BE169: 0.3048052354 | BF169: 1.921967439 | BG169: 3.278937874 | BH169: -0.11003213 | BI169: 0.304940267 | BJ169: -0.6308040914 | BK169: 0.3049217861 | BL169: -0.003357205081
B170: 71 | C170: 2240.527869 | D170: 14077.65179 | E170: 0.00703875486 | F170: 5.054406998e-05 | G170: 0.007109435278 | H170: -0.01420550707 | I170: 0.000301796431 | J170: 0.01737228917 | K170: -0.8879304173 | L170: 0.7884219885 | M170: 0.8879312972 | N170: 52.92121808 | O170: -91.0637128 | P170: 0.00949446504 | Q170: 59.83720295 | R170: 0.004770576133 | S170: 0.008208926224 | T170: -7.103443338 | U170: 50.45900726 | V170: 7.103450377 | W170: -142.0691455 | X170: 20183.64221 | Y170: 142.0691459 | Z170: -71034.57416 | AA170: 5045910726 | AB170: 71034.57416 | AC170: 0.0001986761293 | AD170: 0.1478294215 | AE170: 6.764547182 | AF170: -89.92299708 | AG170: 0.009091240586 | AH170: -6.764541073 | AI170: 0.0001986761293 | AJ170: 0.1478294215 | AK170: 9.909013994e-09 | AL170: 0.001407765179 | AM170: 9.909013992e-09 | AN170: 0.0007038825893 | AO170: 1.981802799e-08 | AP170: 0.002111647768 | AQ170: 10 | AR170: -142069148.3 | AS170: 0.3000000198 | AT170: 0.002111647768 | AU170: 0.3000074515 | AV170: 0.4032883296 | AW170: 6.769489577 | AX170: -87.38299561 | AY170: 0.006744890099 | AZ170: 0.1475675605 | BA170: 0.9992699013 | BB170: -2.540001473 | BC170: 0.9982881435 | BD170: -0.04428451391 | BE170: 0.3049452908 | BF170: 1.939489783 | BG170: 3.277398134 | BH170: -0.110983902 | BI170: 0.3050823139 | BJ170: -0.6440706302 | BK170: 0.3050630385 | BL170: -0.003429404776
B171: 72 | C171: 2266.498079 | D171: 14240.82743 | E171: 0.007120343495 | F171: 5.169929148e-05 | G171: 0.007190221935 | H171: -0.01404270369 | I171: 0.0002971975269 | J171: 0.01723941782 | K171: -0.8777562056 | L171: 0.770457519 | M171: 0.8777570956 | N171: 52.99190276 | O171: -89.33646121 | P171: 0.009627343862 | Q171: 59.32476139 | R171: 0.004911594243 | S171: 0.008280216895 | T171: -7.022049645 | U171: 49.30928121 | V171: 7.022056765 | W171: -140.4412749 | X171: 19723.75179 | Y171: 140.4412752 | Z171: -70220.63885 | AA171: 4930938121 | AB171: 70220.63885 | AC171: 0.0002033085862 | AD171: 0.149542929 | AE171: 6.687036845 | AF171: -89.92210453 | AG171: 0.009091240622 | AH171: -6.687030665 | AI171: 0.0002033085862 | AJ171: 0.149542929 | AK171: 1.014005829e-08 | AL171: 0.001424082743 | AM171: 1.014005829e-08 | AN171: 0.0007120413714 | AO171: 2.028011659e-08 | AP171: 0.002136124114 | AQ171: 10 | AR171: -140441277.7 | AS171: 0.3000000203 | AT171: 0.002136124114 | AU171: 0.3000076252 | AV171: 0.4079627321 | AW171: 6.692036494 | AX171: -87.35268516 | AY171: 0.00690192324 | AZ171: 0.1492718651 | BA171: 0.9992528958 | BB171: -2.569419369 | BC171: 0.9982482861 | BD171: -0.04479630591 | BE171: 0.3050894833 | BF171: 1.956568217 | BG171: 3.275815947 | BH171: -0.1119078919 | BI171: 0.3052283705 | BJ171: -0.6581871978 | BK171: 0.3052082312 | BL171: -0.003506244074
B172: 73 | C172: 2292.769313 | D172: 14405.89446 | E172: 0.007202877814 | F172: 5.28814488e-05 | G172: 0.007271963201 | H172: -0.01388176538 | I172: 0.0002927034102 | J172: 0.01710857709 | K172: -0.8676985726 | L172: 0.7529023753 | M172: 0.8676994729 | N172: 53.07615913 | O172: -87.62950963 | P172: 0.009760855642 | Q172: 58.79720552 | R172: 0.00505679406 | S172: 0.00834884044 | T172: -6.94158858 | U172: 48.18575202 | V172: 6.941595783 | W172: -138.8320568 | X172: 19274.34011 | Y172: 138.8320572 | Z172: -69416.02986 | AA172: 4818585202 | AB172: 69416.02986 | AC172: 0.0002080490566 | AD172: 0.1512762978 | AE172: 6.610414643 | AF172: -89.92120163 | AG172: 0.009091240659 | AH172: -6.610408391 | AI172: 0.0002080490566 | AJ172: 0.1512762978 | AK172: 1.037648976e-08 | AL172: 0.001440589446 | AM172: 1.037648976e-08 | AN172: 0.0007202947228 | AO172: 2.075297951e-08 | AP172: 0.002160884169 | AQ172: 10 | AR172: -138832059.7 | AS172: 0.3000000208 | AT172: 0.002160884169 | AU172: 0.300007803 | AV172: 0.4126913107 | AW172: 6.615472207 | AX172: -87.32202421 | AY172: 0.007062606804 | AZ172: 0.1509957078 | BA172: 0.9992354946 | BB172: -2.599177424 | BC172: 0.998207502 | BD172: -0.04531397696 | BE172: 0.3052378 | BF172: 1.973156359 | BG172: 3.274191689 | BH172: -0.1128014563 | BI172: 0.3053784063 | BJ172: -0.673205707 | BK172: 0.3053573271 | BL172: -0.003588008706
B173: 74 | C173: 2319.345059 | D173: 14572.8748 | E173: 0.007286368779 | F173: 5.409116998e-05 | G173: 0.007354669944 | H173: -0.01372267078 | I173: 0.0002883116932 | J173: 0.01697974362 | K173: -0.8577561824 | L173: 0.7357472309 | M173: 0.8577570932 | N173: 53.17368884 | O173: -85.94284766 | P173: 0.009894874138 | Q173: 58.25451193 | R173: 0.005206157933 | S173: 0.00841453824 | T173: -6.862049459 | U173: 47.08782278 | V173: 6.862056746 | W173: -137.2412777 | X173: 18835.16841 | Y173: 137.2412781 | Z173: -68620.64032 | AA173: 4708792278 | AB173: 68620.64032 | AC173: 0.000212900059 | AD173: 0.1530297584 | AE173: 6.534670399 | AF173: -89.92028827 | AG173: 0.009091240696 | AH173: -6.534664075 | AI173: 0.000212900059 | AJ173: 0.1530297584 | AK173: 1.061843399e-08 | AL173: 0.00145728748 | AM173: 1.061843399e-08 | AN173: 0.0007286437398 | AO173: 2.123686799e-08 | AP173: 0.00218593122 | AQ173: 10 | AR173: -137241280.6 | AS173: 0.3000000212 | AT173: 0.00218593122 | AU173: 0.300007985 | AV173: 0.417474693 | AW173: 6.539786549 | AX173: -87.29100872 | AY173: 0.007227025386 | AZ173: 0.1527393078 | BA173: 0.9992176885 | BB173: -2.629279552 | BC173: 0.9981657699 | BD173: -0.04583759335 | BE173: 0.3053902123 | BF173: 1.989206491 | BG173: 3.272525915 | BH173: -0.1136618895 | BI173: 0.3055323739 | BJ173: -0.6891793321 | BK173: 0.3055102714 | BL173: -0.003674991799
B174: 75 | C174: 2346.228848 | D174: 14741.79063 | E174: 0.007370827479 | F174: 5.532909772e-05 | G174: 0.007438353159 | H174: -0.01356539874 | I174: 0.0002840200429 | J174: 0.0168528942 | K174: -0.8479277146 | L174: 0.7189829717 | M174: 0.847928636 | N174: 53.284194 | O174: -84.27646197 | P174: 0.01002926427 | Q174: 57.69668433 | R174: 0.005359651498 | S174: 0.008477044161 | T174: -6.783421717 | U174: 46.01491019 | V174: 6.783429088 | W174: -135.6687262 | X174: 18406.00338 | Y174: 135.6687266 | Z174: -67834.36459 | AA174: 4601501019 | AB174: 67834.36459 | AC174: 0.0002178641707 | AD174: 0.1548035435 | AE174: 6.459794054 | AF174: -89.91936432 | AG174: 0.009091240735 | AH174: -6.459787656 | AI174: 0.0002178641707 | AJ174: 0.1548035435 | AK174: 1.086601954e-08 | AL174: 0.001474179063 | AM174: 1.086601954e-08 | AN174: 0.0007370895311 | AO174: 2.173203908e-08 | AP174: 0.002211268594 | AQ174: 10 | AR174: -135668729.2 | AS174: 0.3000000217 | AT174: 0.002211268594 | AU174: 0.3000081711 | AV174: 0.422313514 | AW174: 6.464969467 | AX174: -87.25963461 | AY174: 0.00739526553 | AZ174: 0.1545028859 | BA174: 0.9991994682 | BB174: -2.65972971 | BC174: 0.9981230676 | BD174: -0.04636722206 | BE174: 0.3055466741 | BF174: 2.004669749 | BG174: 3.270819367 | BH174: -0.1144864349 | BI174: 0.3056902075 | BJ174: -0.7061623066 | BK174: 0.3056669903 | BL174: -0.003767492803
B175: 76 | C175: 2373.42425 | D175: 14912.66438 | E175: 0.007456265131 | F175: 5.65958897e-05 | G175: 0.007523023973 | H175: -0.01340992838 | I175: 0.0002798261792 | J175: 0.01672800583 | K175: -0.8382118639 | L175: 0.7026006912 | M175: 0.8382127959 | N175: 53.40737727 | O175: -82.63033628 | P175: 0.01016388213 | Q175: 57.12375547 | R175: 0.005517222405 | S175: 0.008536085574 | T175: -6.705694911 | U175: 44.96644424 | V175: 6.705702367 | W175: -134.1141935 | X175: 17986.617 | Y175: 134.1141939 | Z175: -67057.09824 | AA175: 4496654424 | AB175: 67057.09824 | AC175: 0.0002229440289 | AD175: 0.1565978887 | AE175: 6.385775662 | AF175: -89.91842966 | AG175: 0.009091240774 | AH175: -6.385769191 | AI175: 0.0002229440289 | AJ175: 0.1565978887 | AK175: 1.111937794e-08 | AL175: 0.001491266437 | AM175: 1.111937794e-08 | AN175: 0.0007456332186 | AO175: 2.223875587e-08 | AP175: 0.002236899656 | AQ175: 10 | AR175: -134114196.5 | AS175: 0.3000000222 | AT175: 0.002236899656 | AU175: 0.3000083617 | AV175: 0.4272084163 | AW175: 6.391011025 | AX175: -87.22789776 | AY175: 0.007567415771 | AZ175: 0.1562866658 | BA175: 0.999180824 | BB175: -2.690531902 | BC175: 0.9980793727 | BD175: -0.04690293077 | BE175: 0.3057071213 | BF175: 2.019496332 | BG175: 3.269072993 | BH175: -0.1152722986 | BI175: 0.3058518218 | BJ175: -0.7242096909 | BK175: 0.3058273898 | BL175: -0.003865816247
B176: 77 | C176: 2400.934877 | D176: 15085.51874 | E176: 0.007542693082 | F176: 5.789221893e-05 | G176: 0.007608693642 | H176: -0.01325623906 | I176: 0.0002757278739 | J176: 0.01660505567 | K176: -0.8286073398 | L176: 0.686591686 | M176: 0.8286082826 | N176: 53.54294176 | O176: -81.00445131 | P176: 0.01029857502 | Q176: 56.535789 | R176: 0.005678799072 | S176: 0.008591384557 | T176: -6.628858718 | U176: 43.9418679 | V176: 6.628866261 | W176: -132.5774731 | X176: 17576.78646 | Y176: 132.5774734 | Z176: -66288.73803 | AA176: 4394196790 | AB176: 66288.73803 | AC176: 0.0002281423326 | AD176: 0.1584130324 | AE176: 6.312605393 | AF176: -89.91748416 | AG176: 0.009091240814 | AH176: -6.312598847 | AI176: 0.0002281423326 | AJ176: 0.1584130324 | AK176: 1.137864378e-08 | AL176: 0.001508551874 | AM176: 1.137864378e-08 | AN176: 0.0007542759369 | AO176: 2.275728757e-08 | AP176: 0.002262827811 | AQ176: 10 | AR176: -132577476.1 | AS176: 0.3000000228 | AT176: 0.002262827811 | AU176: 0.3000085566 | AV176: 0.4321600495 | AW176: 6.317901399 | AX176: -87.19579399 | AY176: 0.007743566681 | AZ176: 0.1580908732 | BA176: 0.9991617461 | BB176: -2.721690175 | BC176: 0.9980346622 | BD176: -0.0474447879 | BE176: 0.3058714698 | BF176: 2.03363575 | BG176: 3.267287948 | BH176: -0.1160166643 | BI176: 0.306017111 | BJ176: -0.7433771068 | BK176: 0.3059913547 | BL176: -0.003970270311
B177: 78 | C177: 2428.764382 | D177: 15260.37668 | E177: 0.007630122812 | F177: 5.921877413e-05 | G177: 0.007695373553 | H177: -0.01310431035 | I177: 0.0002717229497 | J177: 0.01648402104 | K177: -0.8191128666 | L177: 0.6709474508 | M177: 0.8191138204 | N177: 53.69059108 | O177: -79.39878467 | P177: 0.01043318163 | Q177: 55.93288133 | R177: 0.005844289509 | S177: 0.008642659263 | T177: -6.552902933 | U177: 42.94063685 | V177: 6.552910563 | W177: -131.0583608 | X177: 17176.29404 | Y177: 131.0583612 | Z177: -65529.18193 | AA177: 4294073685 | AB177: 65529.18193 | AC177: 0.0002334618436 | AD177: 0.1602492157 | AE177: 6.24027353 | AF177: -89.91652771 | AG177: 0.009091240855 | AH177: -6.240266908 | AI177: 0.0002334618436 | AJ177: 0.1602492157 | AK177: 1.164395482e-08 | AL177: 0.001526037668 | AM177: 1.164395482e-08 | AN177: 0.0007630188339 | AO177: 2.328790965e-08 | AP177: 0.002289056502 | AQ177: 10 | AR177: -131058363.9 | AS177: 0.3000000233 | AT177: 0.002289056502 | AU177: 0.3000087561 | AV177: 0.437169071 | AW177: 6.245630879 | AX177: -87.16331909 | AY177: 0.007923810918 | AZ177: 0.159915736 | BA177: 0.9991422245 | BB177: -2.753208625 | BC177: 0.9979889127 | BD177: -0.04799286258 | BE177: 0.3060396152 | BF177: 2.047037097 | BG177: 3.265465612 | BH177: -0.1167167098 | BI177: 0.3061859472 | BJ177: -0.7637204403 | BK177: 0.306158747 | BL177: -0.004081165209
B178: 79 | C178: 2456.916463 | D178: 15437.26142 | E178: 0.007718565932 | F178: 6.057626005e-05 | G178: 0.007783075231 | H178: -0.01295412208 | I178: 0.000267809279 | J178: 0.01636487944 | K178: -0.8097271835 | L178: 0.6556596742 | M178: 0.8097281483 | N178: 53.85002936 | O178: -77.81331082 | P178: 0.01056753226 | Q178: 55.31516337 | R178: 0.006013580224 | S178: 0.008689625479 | T178: -6.477817468 | U178: 41.96221915 | V178: 6.477825187 | W178: -129.556655 | X178: 16784.92696 | Y178: 129.5566554 | Z178: -64778.32905 | AA178: 4196231915 | AB178: 64778.32905 | AC178: 0.0002389053879 | AD178: 0.1621066823 | AE178: 6.168770465 | AF178: -89.91556017 | AG178: 0.009091240898 | AH178: -6.168763766 | AI178: 0.0002389053879 | AJ178: 0.1621066823 | AK178: 1.191545201e-08 | AL178: 0.001543726142 | AM178: 1.191545201e-08 | AN178: 0.0007718630709 | AO178: 2.383090402e-08 | AP178: 0.002315589213 | AQ178: 10 | AR178: -129556658.1 | AS178: 0.3000000238 | AT178: 0.002315589213 | AU178: 0.3000089603 | AV178: 0.4422361459 | AW178: 6.174189868 | AX178: -87.13046878 | AY178: 0.008108243268 | AZ178: 0.1617614848 | BA178: 0.9991222487 | BB178: -2.785091391 | BC178: 0.9979421 | BD178: -0.04854722465 | BE178: 0.3062114312 | BF178: 2.059649361 | BG178: 3.263607594 | BH178: -0.117369626 | BI178: 0.3063581803 | BJ178: -0.7852955128 | BK178: 0.3063294054 | BL178: -0.004198811396
B179: 80 | C179: 2485.394857 | D179: 15616.19645 | E179: 0.007808034189 | F179: 6.19653979e-05 | G179: 0.007871810332 | H179: -0.01280565431 | I179: 0.0002639847824 | J179: 0.01624760851 | K179: -0.8004490438 | L179: 0.6407202342 | M179: 0.8004500198 | N179: 54.02096123 | O179: -76.24800102 | P179: 0.01070144913 | Q179: 54.6828022 | R179: 0.006186535235 | S179: 0.008731998361 | T179: -6.40359235 | U179: 41.00609499 | V179: 6.403600159 | W179: -128.0721562 | X179: 16402.4773 | Y179: 128.0721566 | Z179: -64036.07966 | AA179: 4100619499 | AB179: 64036.07966 | AC179: 0.0002444758576 | AD179: 0.1639856791 | AE179: 6.098086701 | AF179: -89.91458142 | AG179: 0.009091240941 | AH179: -6.098079924 | AI179: 0.0002444758576 | AJ179: 0.1639856791 | AK179: 1.219327958e-08 | AL179: 0.001561619645 | AM179: 1.219327958e-08 | AN179: 0.0007808098223 | AO179: 2.438655916e-08 | AP179: 0.002342429467 | AQ179: 10 | AR179: -128072159.3 | AS179: 0.3000000244 | AT179: 0.002342429467 | AU179: 0.3000091692 | AV179: 0.4473619467 | AW179: 6.103568875 | AX179: -87.09723876 | AY179: 0.008296960701 | AZ179: 0.1636283522 | BA179: 0.9991018084 | BB179: -2.81734266 | BC179: 0.9978941995 | BD179: -0.04910794471 | BE179: 0.306386769 | BF179: 2.07142176 | BG179: 3.261715739 | BH179: -0.117972636 | BI179: 0.3065336363 | BJ179: -0.8081577209 | BK179: 0.3065031441 | BL179: -0.004323517592
B180: 81 | C180: 2514.203348 | D180: 15797.20554 | E180: 0.007898539466 | F180: 6.338692569e-05 | G180: 0.007961590651 | H180: -0.01265888732 | I180: 0.0002602474281 | J180: 0.01613218609 | K180: -0.7912772153 | L180: 0.6261211939 | M180: 0.7912782026 | N180: 54.20309189 | O180: -74.70282323 | P180: 0.01083474684 | Q180: 54.03600264 | R180: 0.006362995223 | S180: 0.008769494337 | T180: -6.330217722 | U180: 40.07175641 | V180: 6.330225621 | W180: -126.6046672 | X180: 16028.74186 | Y180: 126.6046676 | Z180: -63302.33519 | AA180: 4007185641 | AB180: 63302.33519 | AC180: 0.0002501762123 | AD180: 0.1658864555 | AE180: 6.028212851 | AF180: -89.91359132 | AG180: 0.009091240985 | AH180: -6.028205996 | AI180: 0.0002501762123 | AJ180: 0.1658864555 | AK180: 1.247758514e-08 | AL180: 0.001579720554 | AM180: 1.247758513e-08 | AN180: 0.0007898602766 | AO180: 2.495517027e-08 | AP180: 0.00236958083 | AQ180: 10 | AR180: -126604670.4 | AS180: 0.300000025 | AT180: 0.00236958083 | AU180: 0.300009383 | AV180: 0.452547154 | AW180: 6.033758523 | AX180: -87.06362465 | AY180: 0.00849006241 | AZ180: 0.1655165735 | BA180: 0.9990808927 | BB180: -2.849966667 | BC180: 0.997845186 | BD180: -0.04967509407 | BE180: 0.3065654565 | BF180: 2.082304117 | BG180: 3.259792134 | BH180: -0.1185230175 | BI180: 0.306712117 | BJ180: -0.8323616477 | BK180: 0.3066797523 | BL180: -0.004455588623
B181: 82 | C181: 2543.345761 | D181: 15980.31272 | E181: 0.007990093782 | F181: 6.484159865e-05 | G181: 0.008052428121 | H181: -0.01251380161 | I181: 0.0002565952306 | J181: 0.01601859016 | K181: -0.7822104798 | L181: 0.6118547972 | M181: 0.7822114786 | N181: 54.39612709 | O181: -73.17774207 | P181: 0.01096723285 | Q181: 53.37500867 | R181: 0.006542776851 | S181: 0.00880183319 | T181: -6.257683838 | U181: 39.15870702 | V181: 6.257691828 | W181: -125.1539932 | X181: 15663.52211 | Y181: 125.1539936 | Z181: -62576.99818 | AA181: 3915880702 | AB181: 62576.99818 | AC181: 0.0002560094804 | AD181: 0.167809264 | AE181: 5.959139635 | AF181: -89.91258974 | AG181: 0.00909124103 | AH181: -5.9591327 | AI181: 0.0002560094804 | AJ181: 0.167809264 | AK181: 1.276851973e-08 | AL181: 0.001598031272 | AM181: 1.276851973e-08 | AN181: 0.0007990156357 | AO181: 2.553703945e-08 | AP181: 0.002397046907 | AQ181: 10 | AR181: -125153996.4 | AS181: 0.3000000255 | AT181: 0.002397046908 | AU181: 0.3000096018 | AV181: 0.457792456 | AW181: 5.964749538 | AX181: -87.02962205 | AY181: 0.008687649871 | AZ181: 0.1674263861 | BA181: 0.9990594906 | BB181: -2.882967693 | BC181: 0.9977950337 | BD181: -0.05024874481 | BE181: 0.3067472976 | BF181: 2.092247248 | BG181: 3.257839109 | BH181: -0.119018125 | BI181: 0.3068933999 | BJ181: -0.8579606472 | BK181: 0.3068589935 | BL181: -0.004595323118
B182: 83 | C182: 2572.825967 | D182: 16165.54232 | E182: 0.008082709298 | F182: 6.63301896e-05 | G182: 0.008144334816 | H182: -0.01237037791 | I182: 0.0002530262496 | J182: 0.01590679885 | K182: -0.7732476331 | L182: 0.5979134646 | M182: 0.7732486435 | N182: 54.5997732 | O182: -71.67271876 | P182: 0.01109870815 | Q182: 52.70010464 | R182: 0.006725672271 | S182: 0.008828740284 | T182: -6.185981065 | U182: 38.26646174 | V182: 6.185989148 | W182: -123.7199414 | X182: 15306.62399 | Y182: 123.7199418 | Z182: -61859.9723 | AA182: 3826656173 | AB182: 61859.9723 | AC182: 0.0002619787611 | AD182: 0.16975436 | AE182: 5.890857878 | AF182: -89.91157655 | AG182: 0.009091241076 | AH182: -5.890850863 | AI182: 0.0002619787611 | AJ182: 0.16975436 | AK182: 1.306623792e-08 | AL182: 0.001616554232 | AM182: 1.306623792e-08 | AN182: 0.0008082771156 | AO182: 2.613247583e-08 | AP182: 0.002424831347 | AQ182: 10 | AR182: -123719944.6 | AS182: 0.3000000261 | AT182: 0.002424831347 | AU182: 0.3000098257 | AV182: 0.463098549 | AW182: 5.896532756 | AX182: -86.99522648 | AY182: 0.008889826891 | AZ182: 0.1693580299 | BA182: 0.9990375907 | BB182: -2.916350071 | BC182: 0.9977437164 | BD182: -0.05082896974 | BE182: 0.3069320722 | BF182: 2.101203388 | BG182: 3.255859242 | BH182: -0.1194554137 | BI182: 0.3070772372 | BJ182: -0.8850064052 | BK182: 0.3070406056 | BL182: -0.00474301105
B183: 84 | C183: 2602.647882 | D183: 16352.91893 | E183: 0.008176398315 | F183: 6.78534894e-05 | G183: 0.008237322951 | H183: -0.01222859717 | I183: 0.0002495385888 | J183: 0.01579679046 | K183: -0.7643874849 | L183: 0.5842897895 | M183: 0.7643885069 | N183: 54.81373724 | O183: -70.18771104 | P183: 0.01122896796 | Q183: 52.01161631 | R183: 0.006911448858 | S183: 0.008849948932 | T183: -6.115099879 | U183: 37.39454653 | V183: 6.115108056 | W183: -122.3023214 | X183: 14957.85791 | Y183: 122.3023218 | Z183: -61151.16232 | AA183: 3739464653 | AB183: 61151.16232 | AC183: 0.0002680872257 | AD183: 0.1717220019 | AE183: 5.823358513 | AF183: -89.91055162 | AG183: 0.009091241124 | AH183: -5.823351416 | AI183: 0.0002680872257 | AJ183: 0.1717220019 | AK183: 1.337089788e-08 | AL183: 0.001635291893 | AM183: 1.337089788e-08 | AN183: 0.0008176459464 | AO183: 2.674179575e-08 | AP183: 0.002452937839 | AQ183: 10 | AR183: -122302324.6 | AS183: 0.3000000267 | AT183: 0.002452937839 | AU183: 0.3000100547 | AV183: 0.4684661374 | AW183: 5.829099116 | AX183: -86.96043345 | AY183: 0.009096699657 | AZ183: 0.1713117474 | BA183: 0.9990151817 | BB183: -2.950118177 | BC183: 0.9976912069 | BD183: -0.05141584243 | BE183: 0.3071195355 | BF183: 2.109126626 | BG183: 3.253855351 | BH183: -0.1198324648 | BI183: 0.3072633565 | BJ183: -0.9135484821 | BK183: 0.3072243004 | BL183: -0.004898931161
B184: 85 | C184: 2632.815466 | D184: 16542.46745 | E184: 0.008271173275 | F184: 6.941230734e-05 | G184: 0.008331404884 | H184: -0.01208844057 | I184: 0.0002461303954 | J184: 0.01568854345 | K184: -0.7556288583 | L184: 0.570976534 | M184: 0.7556298922 | N184: 55.03772692 | O184: -68.72267313 | P184: 0.01135780262 | Q184: 51.30991168 | R184: 0.007099849186 | S184: 0.008865202874 | T184: -6.045030867 | U184: 36.54249818 | V184: 6.045039138 | W184: -120.9009449 | X184: 14617.03857 | Y184: 120.9009453 | Z184: -60450.47409 | AA184: 3654259818 | AB184: 60450.47409 | AC184: 0.0002743381195 | AD184: 0.1737124509 | AE184: 5.756632573 | AF184: -89.90951481 | AG184: 0.009091241172 | AH184: -5.756625394 | AI184: 0.0002743381195 | AJ184: 0.1737124509 | AK184: 1.368266147e-08 | AL184: 0.001654246745 | AM184: 1.368266146e-08 | AN184: 0.0008271233723 | AO184: 2.736532293e-08 | AP184: 0.002481370117 | AQ184: 10 | AR184: -120900948.2 | AS184: 0.3000000274 | AT184: 0.002481370117 | AU184: 0.3000102892 | AV184: 0.4738959338 | AW184: 5.762439662 | AX184: -86.92523837 | AY184: 0.009308376798 | AZ184: 0.1732877832 | BA184: 0.9989922516 | BB184: -2.984276443 | BC184: 0.9976374778 | BD184: -0.05200943722 | BE184: 0.3073094188 | BF184: 2.115973369 | BG184: 3.251830494 | BH184: -0.1201470104 | BI184: 0.3074514606 | BJ184: -0.9436338407 | BK184: 0.3074097642 | BL184: -0.005063348288
B185: 86 | C185: 2663.332725 | D185: 16734.21305 | E185: 0.008367046766 | F185: 7.100747158e-05 | G185: 0.008426593118 | H185: -0.01194988949 | I185: 0.0002427998588 | J185: 0.01558203641 | K185: -0.7469705902 | L185: 0.5579666251 | M185: 0.7469716361 | N185: 55.27145071 | O185: -67.27755563 | P185: 0.01148499853 | Q185: 50.59540147 | R185: 0.007290591281 | S185: 0.008874258848 | T185: -5.975764721 | U185: 35.70986401 | V185: 5.975773089 | W185: -119.5156258 | X185: 14283.9849 | Y185: 119.5156262 | Z185: -59757.81455 | AA185: 3570996400 | AB185: 59757.81455 | AC185: 0.0002807347636 | AD185: 0.1757259714 | AE185: 5.690671197 | AF185: -89.90846599 | AG185: 0.009091241222 | AH185: -5.690663935 | AI185: 0.0002807347636 | AJ185: 0.1757259714 | AK185: 1.400169431e-08 | AL185: 0.001673421305 | AM185: 1.400169431e-08 | AN185: 0.0008367106521 | AO185: 2.800338863e-08 | AP185: 0.002510131957 | AQ185: 10 | AR185: -119515629.1 | AS185: 0.300000028 | AT185: 0.002510131957 | AU185: 0.3000105291 | AV185: 0.4793886588 | AW185: 5.696545541 | AX185: -86.88963664 | AY185: 0.009524969431 | AZ185: 0.1752863846 | BA185: 0.9989687884 | BB185: -3.018829344 | BC185: 0.9975825009 | BD185: -0.05260982922 | BE185: 0.3075014294 | BF185: 2.121702802 | BG185: 3.249787957 | BH185: -0.1203969592 | BI185: 0.3076412282 | BJ185: -0.9753063671 | BK185: 0.3075966583 | BL185: -0.005236510634
B186: 87 | C186: 2694.203714 | D186: 16928.18119 | E186: 0.008464031521 | F186: 7.263982959e-05 | G186: 0.008522900304 | H186: -0.01181292553 | I186: 0.0002395452095 | J186: 0.01547724812 | K186: -0.7384115305 | L186: 0.5452531509 | M186: 0.7384125885 | N186: 55.51461789 | O186: -65.85230553 | P186: 0.01161033919 | Q186: 49.86853944 | R186: 0.007483369163 | S186: 0.00887688921 | T186: -5.907292244 | U186: 34.89620165 | V186: 5.907300708 | W186: -118.1461801 | X186: 13958.51996 | Y186: 118.1461805 | Z186: -59073.09172 | AA186: 3489630165 | AB186: 59073.09172 | AC186: 0.0002872805565 | AD186: 0.1777628308 | AE186: 5.625465624 | AF186: -89.907405 | AG186: 0.009091241272 | AH186: -5.625458278 | AI186: 0.0002872805565 | AJ186: 0.1777628308 | AK186: 1.432816592e-08 | AL186: 0.001692818119 | AM186: 1.432816591e-08 | AN186: 0.0008464090592 | AO186: 2.865633183e-08 | AP186: 0.002539227178 | AQ186: 10 | AR186: -118146183.4 | AS186: 0.3000000287 | AT186: 0.002539227178 | AU186: 0.3000107746 | AV186: 0.4849450417 | AW186: 5.631408 | AX186: -86.85362359 | AY186: 0.009746591223 | AZ186: 0.1773078013 | BA186: 0.9989447797 | BB186: -3.053781412 | BC186: 0.9975262471 | BD186: -0.05321709428 | BE186: 0.3076952513 | BF186: 2.126277363 | BG186: 3.24773125 | BH186: -0.1205804222 | BI186: 0.3078323147 | BJ186: -1.00860639 | BK186: 0.3077846199 | BL186: -0.005418647009
B187: 88 | C187: 2725.432531 | D187: 17124.39764 | E187: 0.008562140422 | F187: 7.43102486e-05 | G187: 0.00862033924 | H187: -0.01167753049 | I187: 0.0002363647183 | J187: 0.01537415748 | K187: -0.7299505425 | L187: 0.532829357 | M187: 0.7299516128 | N187: 55.7669386 | O187: -64.44686608 | P187: 0.01173360636 | Q187: 49.1298223 | R187: 0.007677853702 | S187: 0.008872884575 | T187: -5.83960434 | U187: 34.10107885 | V187: 5.839612902 | W187: -116.7924259 | X187: 13640.47084 | Y187: 116.7924263 | Z187: -58396.21464 | AA187: 3410117884 | AB187: 58396.21464 | AC187: 0.0002939789757 | AD187: 0.1798232998 | AE187: 5.561007194 | AF187: -89.90633172 | AG187: 0.009091241324 | AH187: -5.560999763 | AI187: 0.0002939789757 | AJ187: 0.1798232998 | AK187: 1.466224972e-08 | AL187: 0.001712439763 | AM187: 1.466224972e-08 | AN187: 0.0008562198816 | AO187: 2.932449944e-08 | AP187: 0.002568659645 | AQ187: 10 | AR187: -116792429.3 | AS187: 0.3000000293 | AT187: 0.002568659645 | AU187: 0.3000110258 | AV187: 0.4905658199 | AW187: 5.567018389 | AX187: -86.81719449 | AY187: 0.009973358449 | AZ187: 0.1793522855 | BA187: 0.9989202129 | BB187: -3.089137224 | BC187: 0.9974686872 | BD187: -0.05383130906 | BE187: 0.3078905465 | BF187: 2.129663208 | BG187: 3.245664084 | BH187: -0.1206957379 | BI187: 0.3080243537 | BJ187: -1.043570204 | BK187: 0.3079732631 | BL187: -0.005609964084
B188: 89 | C188: 2757.023326 | D188: 17322.88845 | E188: 0.008661386498 | F188: 7.601961607e-05 | G188: 0.008718922874 | H188: -0.0115436864 | I188: 0.0002332566956 | J188: 0.01527274355 | K188: -0.7215865024 | L188: 0.520688643 | M188: 0.7215875851 | N188: 56.02812394 | O188: -63.0611768 | P188: 0.01185458132 | Q188: 48.37978933 | R188: 0.007873693797 | S188: 0.00886205644 | T188: -5.77269202 | U188: 33.32407315 | V188: 5.772700681 | W188: -115.4541834 | X188: 13329.66856 | Y188: 115.4541838 | Z188: -57727.09342 | AA188: 3332417315 | AB188: 57727.09342 | AC188: 0.00030083358 | AD188: 0.1819076518 | AE188: 5.497287346 | AF188: -89.90524599 | AG188: 0.009091241377 | AH188: -5.497279829 | AI188: 0.00030083358 | AJ188: 0.1819076518 | AK188: 1.500412321e-08 | AL188: 0.001732288845 | AM188: 1.500412321e-08 | AN188: 0.0008661444223 | AO188: 3.000824642e-08 | AP188: 0.002598433267 | AQ188: 10 | AR188: -115454186.8 | AS188: 0.30000003 | AT188: 0.002598433267 | AU188: 0.3000112829 | AV188: 0.4962517395 | AW188: 5.503368155 | AX188: -86.78034458 | AY188: 0.01020539005 | AZ188: 0.1814200918 | BA188: 0.998895075 | BB188: -3.124901413 | BC188: 0.9974097907 | BD188: -0.054452551 | BE188: 0.3080869563 | BF188: 2.131830674 | BG188: 3.243590362 | BH188: -0.1207414959 | BI188: 0.3082169581 | BJ188: -1.080229613 | BK188: 0.3081621808 | BL188: -0.005810643718
B189: 90 | C189: 2788.980292 | D189: 17523.68 | E189: 0.008761782932 | F189: 7.776884015e-05 | G189: 0.008818664306 | H189: -0.01141137547 | I189: 0.0002302194901 | J189: 0.01517298554 | K189: -0.7133182995 | L189: 0.5088245589 | M189: 0.7133193947 | N189: 56.29788602 | O189: -61.69517341 | P189: 0.0119730462 | Q189: 47.61902164 | R189: 0.008070517885 | S189: 0.008844239733 | T189: -5.706546396 | U189: 32.56477177 | V189: 5.706555158 | W189: -114.1312749 | X189: 13025.94801 | Y189: 114.1312753 | Z189: -57065.6392 | AA189: 3256487177 | AB189: 57065.6392 | AC189: 0.0003078480112 | AD189: 0.1840161638 | AE189: 5.434297617 | AF189: -89.90414768 | AG189: 0.009091241432 | AH189: -5.434290013 | AI189: 0.0003078480112 | AJ189: 0.1840161638 | AK189: 1.535396803e-08 | AL189: 0.001752367999 | AM189: 1.535396802e-08 | AN189: 0.0008761839995 | AO189: 3.070793605e-08 | AP189: 0.002628551999 | AQ189: 10 | AR189: -114131278.4 | AS189: 0.3000000307 | AT189: 0.002628551999 | AU189: 0.300011546 | AV189: 0.5020035552 | AW189: 5.440448845 | AX189: -86.74306902 | AY189: 0.01044280768 | AZ189: 0.1835114774 | BA189: 0.9988693528 | BB189: -3.161078662 | BC189: 0.9973495268 | BD189: -0.05508089831 | BE189: 0.3082841025 | BF189: 2.132754711 | BG189: 3.241514155 | BH189: -0.1207165598 | BI189: 0.3084097222 | BJ189: -1.11861149 | BK189: 0.3083509465 | BL189: -0.00602084038
B190: 91 | C190: 2821.307676 | D190: 17726.79894 | E190: 0.008863343056 | F190: 7.955885014e-05 | G190: 0.008919576791 | H190: -0.01128058014 | I190: 0.0002272514883 | J190: 0.0150748628 | K190: -0.7051448355 | L190: 0.4972308015 | M190: 0.7051459434 | N190: 56.57593804 | O190: -60.34878777 | P190: 0.01208878533 | Q190: 46.84814108 | R190: 0.008267935782 | S190: 0.008819295252 | T190: -5.641158684 | U190: 31.8227713 | V190: 5.641167547 | W190: -112.8235247 | X190: 12729.14782 | Y190: 112.8235251 | Z190: -56411.76411 | AA190: 3182287130 | AB190: 56411.76411 | AC190: 0.000315025996 | AD190: 0.1861491158 | AE190: 5.372029641 | AF190: -89.90303665 | AG190: 0.009091241487 | AH190: -5.372021949 | AI190: 0.000315025996 | AJ190: 0.1861491158 | AK190: 1.571197003e-08 | AL190: 0.001772679894 | AM190: 1.571197002e-08 | AN190: 0.0008863399465 | AO190: 3.142394005e-08 | AP190: 0.00265901984 | AQ190: 10 | AR190: -112823528.2 | AS190: 0.3000000314 | AT190: 0.00265901984 | AU190: 0.3000118152 | AV190: 0.5078220305 | AW190: 5.378252102 | AX190: -86.70536294 | AY190: 0.01068573579 | AZ190: 0.185626702 | BA190: 0.9988430329 | BB190: -3.197673706 | BC190: 0.997287864 | BD190: -0.05571643002 | BE190: 0.3084815899 | BF190: 2.132415299 | BG190: 3.239439679 | BH190: -0.1206200881 | BI190: 0.3086022238 | BJ190: -1.158737369 | BK190: 0.3085391165 | BL190: -0.006240678748
B191: 92 | C191: 2854.00977 | D191: 17932.27225 | E191: 0.008966080361 | F191: 8.139059704e-05 | G191: 0.009021673738 | H191: -0.01115128304 | I191: 0.0002243511133 | J191: 0.01497835483 | K191: -0.6970650249 | L191: 0.4859012114 | M191: 0.6970661457 | N191: 56.8619944 | O191: -59.02194786 | P191: 0.01220158672 | Q191: 46.06780876 | R191: 0.008465540851 | S191: 0.008787111953 | T191: -5.576520199 | U191: 31.09767753 | V191: 5.576529165 | W191: -111.530759 | X191: 12439.11031 | Y191: 111.5307595 | Z191: -55765.38131 | AA191: 3109777753 | AB191: 55765.38131 | AC191: 0.0003223713478 | AD191: 0.1883067911 | AE191: 5.310475148 | AF191: -89.90191273 | AG191: 0.009091241544 | AH191: -5.310467367 | AI191: 0.0003223713478 | AJ191: 0.1883067911 | AK191: 1.607831941e-08 | AL191: 0.001793227225 | AM191: 1.60783194e-08 | AN191: 0.0008966136123 | AO191: 3.215663881e-08 | AP191: 0.002689840837 | AQ191: 10 | AR191: -111530762.6 | AS191: 0.3000000322 | AT191: 0.002689840837 | AU191: 0.3000120907 | AV191: 0.5137079378 | AW191: 5.316769666 | AX191: -86.66722139 | AY191: 0.01093430168 | AZ191: 0.1877660279 | BA191: 0.9988161012 | BB191: -3.234691334 | BC191: 0.9972247699 | BD191: -0.05635922593 | BE191: 0.3086790083 | BF191: 2.130797824 | BG191: 3.237371268 | BH191: -0.1204515527 | BI191: 0.3087940266 | BJ191: -1.200623081 | BK191: 0.3087262326 | BL191: -0.006470251504
B192: 93 | C192: 2887.090917 | D192: 18140.12723 | E192: 0.00907000849 | F192: 8.326505401e-05 | G192: 0.009124968713 | H192: -0.01102346698 | I192: 0.0002215168243 | J192: 0.01488344128 | K192: -0.6890777946 | L192: 0.4748297695 | M192: 0.6890789284 | N192: 57.15577076 | O192: -57.71457774 | P192: 0.01231124348 | Q192: 45.27872318 | R192: 0.008662912475 | S192: 0.008747609014 | T192: -5.512622357 | U192: 30.38910525 | V192: 5.512631427 | W192: -110.2528063 | X192: 12155.6814 | Y192: 110.2528068 | Z192: -55126.40497 | AA192: 3038920525 | AB192: 55126.40497 | AC192: 0.0003298879693 | AD192: 0.1904894763 | AE192: 5.249625963 | AF192: -89.90077578 | AG192: 0.009091241603 | AH192: -5.249618091 | AI192: 0.0003298879693 | AJ192: 0.1904894763 | AK192: 1.64532108e-08 | AL192: 0.001814012723 | AM192: 1.64532108e-08 | AN192: 0.0009070063613 | AO192: 3.290642159e-08 | AP192: 0.002721019084 | AQ192: 10 | AR192: -110252809.9 | AS192: 0.3000000329 | AT192: 0.002721019084 | AU192: 0.3000123726 | AV192: 0.5196620582 | AW192: 5.25599337 | AX192: -86.62863939 | AY192: 0.01118863556 | AZ192: 0.1899297197 | BA192: 0.9987885437 | BB192: -3.272136388 | BC192: 0.9971602114 | BD192: -0.05700936666 | BE192: 0.3088759351 | BF192: 2.12789341 | BG192: 3.235313349 | BH192: -0.1202107546 | BI192: 0.3089846832 | BJ192: -1.244278436 | BK192: 0.3089118248 | BL192: -0.006709617399
B193: 94 | C193: 2920.555512 | D193: 18350.39148 | E193: 0.009175141247 | F193: 8.51832169e-05 | G193: 0.00922947544 | H193: -0.010897115 | I193: 0.0002187471154 | J193: 0.01479010194 | K193: -0.6811820837 | L193: 0.4640105937 | M193: 0.6811832306 | N193: 57.45698414 | O193: -56.42659751 | P193: 0.01241755537 | Q193: 44.48161804 | R193: 0.008859618824 | S193: 0.008700737655 | T193: -5.44945667 | U193: 29.696678 | V193: 5.449465845 | W193: -108.9894967 | X193: 11878.7105 | Y193: 108.9894972 | Z193: -54494.7502 | AA193: 2969677800 | AB193: 54494.7502 | AC193: 0.0003375798538 | AD193: 0.1926974612 | AE193: 5.189474004 | AF193: -89.89962566 | AG193: 0.009091241662 | AH193: -5.189466041 | AI193: 0.0003375798538 | AJ193: 0.1926974612 | AK193: 1.683684338e-08 | AL193: 0.001835039148 | AM193: 1.683684337e-08 | AN193: 0.0009175195738 | AO193: 3.367368675e-08 | AP193: 0.002752558722 | AQ193: 10 | AR193: -108989500.4 | AS193: 0.3000000337 | AT193: 0.002752558722 | AU193: 0.300012661 | AV193: 0.525685182 | AW193: 5.195915142 | AX193: -86.58961189 | AY193: 0.01144887061 | AZ193: 0.192118045 | BA193: 0.9987603458 | BB193: -3.310013764 | BC193: 0.9970941546 | BD193: -0.05766693365 | BE193: 0.3090719381 | BF193: 2.1236992 | BG193: 3.233270408 | BH193: -0.1198978369 | BI193: 0.3091737381 | BJ193: -1.289706957 | BK193: 0.3090954147 | BL193: -0.006958799627
B194: 95 | C194: 2954.407999 | D194: 18563.09293 | E194: 0.009281492595 | F194: 8.714610478e-05 | G194: 0.009335207806 | H194: -0.01077221032 | I194: 0.0002160405151 | J194: 0.01469831674 | K194: -0.6733768437 | L194: 0.4534379361 | M194: 0.6733780039 | N194: 57.76535304 | O194: -55.1579233 | P194: 0.01252033024 | Q194: 43.67725962 | R194: 0.009055219873 | S194: 0.008646482657 | T194: -5.38701475 | U194: 29.02002791 | V194: 5.387024031 | W194: -107.7406625 | X194: 11608.05046 | Y194: 107.740663 | Z194: -53870.33312 | AA194: 2902012791 | AB194: 53870.33312 | AC194: 0.000345451088 | AD194: 0.1949310391 | AE194: 5.130011282 | AF194: -89.8984622 | AG194: 0.009091241723 | AH194: -5.130003226 | AI194: 0.000345451088 | AJ194: 0.1949310391 | AK194: 1.722942095e-08 | AL194: 0.001856309293 | AM194: 1.722942095e-08 | AN194: 0.0009281546462 | AO194: 3.445884191e-08 | AP194: 0.002784463939 | AQ194: 10 | AR194: -107740666.3 | AS194: 0.3000000345 | AT194: 0.002784463939 | AU194: 0.3000129562 | AV194: 0.5317781086 | AW194: 5.136527003 | AX194: -86.55013379 | AY194: 0.01171514306 | AZ194: 0.1943312735 | BA194: 0.9987314928 | BB194: -3.348328415 | BC194: 0.9970265651 | BD194: -0.05833200914 | BE194: 0.3092665788 | BF194: 2.118218579 | BG194: 3.231246956 | BH194: -0.1195132938 | BI194: 0.3093607307 | BJ194: -1.336905688 | BK194: 0.3092765191 | BL194: -0.007217784552
B195: 96 | C195: 2988.652874 | D195: 18778.25982 | E195: 0.009389076659 | F195: 8.91547605e-05 | G195: 0.00944217986 | H195: -0.01064873634 | I195: 0.0002133955855 | J195: 0.01460806577 | K195: -0.6656610378 | L195: 0.4431061797 | M195: 0.6656622114 | N195: 58.08059749 | O195: -53.90846723 | P195: 0.01261938546 | Q195: 42.86644387 | R195: 0.009249270645 | S195: 0.008584863535 | T195: -5.325288302 | U195: 28.3587955 | V195: 5.325297692 | W195: -106.5061379 | X195: 11343.5575 | Y195: 106.5061383 | Z195: -53253.0708 | AA195: 2835889550 | AB195: 53253.0708 | AC195: 0.0003535058537 | AD195: 0.1971905067 | AE195: 5.071229899 | AF195: -89.89728526 | AG195: 0.009091241786 | AH195: -5.07122175 | AI195: 0.0003535058537 | AJ195: 0.1971905067 | AK195: 1.76311521e-08 | AL195: 0.001877825982 | AM195: 1.763115209e-08 | AN195: 0.0009389129908 | AO195: 3.526230419e-08 | AP195: 0.002816738973 | AQ195: 10 | AR195: -106506141.6 | AS195: 0.3000000353 | AT195: 0.002816738973 | AU195: 0.3000132583 | AV195: 0.5379416468 | AW195: 5.077821065 | AX195: -86.51019991 | AY195: 0.01198759227 | AZ195: 0.1965696778 | BA195: 0.9987019695 | BB195: -3.387085346 | BC195: 0.9969574074 | BD195: -0.05900467618 | BE195: 0.3094594153 | BF195: 2.111461332 | BG195: 3.229247501 | BH195: -0.1190579759 | BI195: 0.3095451991 | BJ195: -1.385865059 | BK195: 0.3094546531 | BL195: -0.007486520827
B196: 97 | C196: 3023.294684 | D196: 18995.92074 | E196: 0.009497907727 | F196: 9.12102512e-05 | G196: 0.009550405813 | H196: -0.01052667666 | I196: 0.0002108109215 | J196: 0.01451932924 | K196: -0.6580336413 | L196: 0.4330098356 | M196: 0.6580348285 | N196: 58.40243922 | O196: -52.6781374 | P196: 0.01271454936 | Q196: 42.04999311 | R196: 0.009441324632 | S196: 0.008515935342 | T196: -5.26426913 | U196: 27.71262948 | V196: 5.264278628 | W196: -105.2857587 | X196: 11085.09109 | Y196: 105.2857592 | Z196: -52642.88126 | AA196: 2771272947 | AB196: 52642.88126 | AC196: 0.0003617484303 | AD196: 0.1994761639 | AE196: 5.013122048 | AF196: -89.89609468 | AG196: 0.009091241849 | AH196: -5.013113805 | AI196: 0.0003617484303 | AJ196: 0.1994761639 | AK196: 1.804225024e-08 | AL196: 0.001899592074 | AM196: 1.804225023e-08 | AN196: 0.0009497960367 | AO196: 3.608450047e-08 | AP196: 0.002849388111 | AQ196: 10 | AR196: -105285762.5 | AS196: 0.3000000361 | AT196: 0.002849388111 | AU196: 0.3000135675 | AV196: 0.5441766144 | AW196: 5.019789532 | AX196: -86.46980505 | AY196: 0.01226636075 | AZ196: 0.1988335329 | BA196: 0.9986717603 | BB196: -3.426289621 | BC196: 0.9968866452 | BD196: -0.05968501867 | BE196: 0.3096500061 | BF196: 2.103443732 | BG196: 3.227276505 | BH196: -0.1185330922 | BI196: 0.3097266837 | BJ196: -1.436568834 | BK196: 0.3096293343 | BL196: -0.007764918942
B197: 98 | C197: 3058.338032 | D197: 19216.10459 | E197: 0.009608000255 | F197: 9.33136689e-05 | G197: 0.009659900046 | H197: -0.01040601508 | I197: 0.0002082851498 | J197: 0.01443208751 | K197: -0.6504936411 | L197: 0.4231435396 | M197: 0.6504948421 | N197: 58.73060171 | O197: -51.46683788 | P197: 0.01280566255 | Q197: 41.2287525 | R197: 0.00963093733 | S197: 0.008439789066 | T197: -5.203949129 | U197: 27.08118654 | V197: 5.203958737 | W197: -104.0793631 | X197: 10832.51391 | Y197: 104.0793635 | Z197: -52039.68345 | AA197: 2708128654 | AB197: 52039.68345 | AC197: 0.0003701831969 | AD197: 0.2017883146 | AE197: 4.955680013 | AF197: -89.89489029 | AG197: 0.009091241915 | AH197: -4.955671674 | AI197: 0.0003701831969 | AJ197: 0.2017883146 | AK197: 1.846293378e-08 | AL197: 0.001921610459 | AM197: 1.846293377e-08 | AN197: 0.0009608052291 | AO197: 3.692586755e-08 | AP197: 0.002882415688 | AQ197: 10 | AR197: -104079366.9 | AS197: 0.3000000369 | AT197: 0.002882415688 | AU197: 0.3000138838 | AV197: 0.5504838392 | AW197: 4.962424695 | AX197: -86.42894393 | AY197: 0.01255159428 | AZ197: 0.2011231166 | BA197: 0.9986408495 | BB197: -3.465946357 | BC197: 0.9968142417 | BD197: -0.06037312133 | BE197: 0.3098379133 | BF197: 2.094188549 | BG197: 3.225338354 | BH197: -0.1179402071 | BI197: 0.3099047305 | BJ197: -1.488994138 | BK197: 0.3098000865 | BL197: -0.008052851219
B198: 99 | C198: 3093.787572 | D198: 19438.84061 | E198: 0.009719368864 | F198: 9.546613111e-05 | G198: 0.009770677106 | H198: -0.01028673557 | I198: 0.0002058169286 | J198: 0.01434632108 | K198: -0.6430400359 | L198: 0.4135020503 | M198: 0.6430412508 | N198: 59.06481033 | O198: -50.27446869 | P198: 0.01289257911 | Q198: 40.40358617 | R198: 0.009817669855 | S198: 0.008356551608 | T198: -5.144320287 | U198: 26.46413122 | V198: 5.144330007 | W198: -102.8867906 | X198: 10585.69179 | Y198: 102.8867911 | Z198: -51443.39726 | AA198: 2646423121 | AB198: 51443.39726 | AC198: 0.000378814635 | AD198: 0.2041272656 | AE198: 4.898896163 | AF198: -89.89367195 | AG198: 0.009091241982 | AH198: -4.898887727 | AI198: 0.000378814635 | AJ198: 0.2041272656 | AK198: 1.889342622e-08 | AL198: 0.001943884061 | AM198: 1.889342621e-08 | AN198: 0.0009719420303 | AO198: 3.778685243e-08 | AP198: 0.002915826092 | AQ198: 10 | AR198: -102886794.5 | AS198: 0.3000000378 | AT198: 0.002915826092 | AU198: 0.3000142075 | AV198: 0.556864158 | AW198: 4.905718936 | AX198: -86.38761122 | AY198: 0.01284344197 | AZ198: 0.2034387092 | BA198: 0.9986092206 | BB198: -3.50606073 | BC198: 0.9967401588 | BD198: -0.0610690697 | BE198: 0.3100227064 | BF198: 2.083724989 | BG198: 3.223437321 | BH198: -0.1172812337 | BI198: 0.3100788951 | BJ198: -1.543111557 | BK198: 0.3099664436 | BL198: -0.008350152272
B199: 100 | C199: 3129.648011 | D199: 19664.1584 | E199: 0.009832028345 | F199: 9.766878137e-05 | G199: 0.00988275171 | H199: -0.01016882228 | I199: 0.0002034049466 | J199: 0.01426201061 | K199: -0.6356718357 | L199: 0.4040802452 | M199: 0.6356730647 | N199: 59.40479243 | O199: -49.10092582 | P199: 0.01297516777 | Q199: 39.57537323 | R199: 0.01000109256 | S199: 0.008266385318 | T199: -5.085374685 | U199: 25.86113569 | V199: 5.085384517 | W199: -101.7078831 | X199: 10344.49358 | Y199: 101.7078835 | Z199: -50853.94349 | AA199: 2586123569 | AB199: 50853.94349 | AC199: 0.0003876473302 | AD199: 0.2064933276 | AE199: 4.842762957 | AF199: -89.89243948 | AG199: 0.00909124205 | AH199: -4.842754424 | AI199: 0.0003876473302 | AJ199: 0.2064933276 | AK199: 1.933395627e-08 | AL199: 0.00196641584 | AM199: 1.933395627e-08 | AN199: 0.0009832079195 | AO199: 3.866791254e-08 | AP199: 0.002949623759 | AQ199: 10 | AR199: -101707887 | AS199: 0.3000000387 | AT199: 0.002949623759 | AU199: 0.3000145388 | AV199: 0.5633184177 | AW199: 4.849664723 | AX199: -86.3458015 | AY199: 0.01314205632 | AZ199: 0.2057805937 | BA199: 0.9985768572 | BB199: -3.546637975 | BC199: 0.9966643579 | BD199: -0.06177295018 | BE199: 0.3102039655 | BF199: 2.072088553 | BG199: 3.221577533 | BH199: -0.1165584226 | BI199: 0.3102487463 | BJ199: -1.598885324 | BK199: 0.3101279535 | BL199: -0.008656619944
B200: 101 | C200: 3165.924112 | D200: 19892.08786 | E200: 0.009945993661 | F200: 9.99227899e-05 | G200: 0.00999613875 | H200: -0.01005225956 | I200: 0.0002010479223 | J200: 0.01417913687 | K200: -0.6283880618 | L200: 0.3948731187 | M200: 0.6283893051 | N200: 59.75027748 | O200: -47.94610124 | P200: 0.01305331284 | Q200: 38.74500346 | R200: 0.01018078861 | S200: 0.008169487102 | T200: -5.027104494 | U200: 25.2718796 | V200: 5.02711444 | W200: -100.5424838 | X200: 10108.79114 | Y200: 100.5424842 | Z200: -50271.24386 | AA200: 2527197960 | AB200: 50271.24386 | AC200: 0.0003966859752 | AD200: 0.208886815 | AE200: 4.78727294 | AF200: -89.89119273 | AG200: 0.00909124212 | AH200: -4.787264308 | AI200: 0.0003966859752 | AJ200: 0.208886815 | AK200: 1.978475798e-08 | AL200: 0.001989208786 | AM200: 1.978475797e-08 | AN200: 0.0009946043928 | AO200: 3.956951595e-08 | AP200: 0.002983813179 | AQ200: 10 | AR200: -100542487.7 | AS200: 0.3000000396 | AT200: 0.002983813179 | AU200: 0.3000148778 | AV200: 0.5698474749 | AW200: 4.794254611 | AX200: -86.30350934 | AY200: 0.0134475933 | AZ200: 0.2081490555 | BA200: 0.9985437422 | BB200: -3.587683383 | BC200: 0.9965867994 | BD200: -0.06248484999 | BE200: 0.3103812853 | BF200: 2.059320815 | BG200: 3.219762936 | BH200: -0.1157743471 | BI200: 0.3104138698 | BJ200: -1.656273583 | BK200: 0.3102841818 | BL200: -0.008972016702
B201: 102 | C201: 3202.620694 | D201: 20122.65929 | E201: 0.01006127995 | F201: 0.0001022293542 | G201: 0.01011085329 | H201: -0.00993703193 | I201: 0.0001987446036 | J201: 0.01409768079 | K201: -0.6211877469 | L201: 0.3858757794 | M201: 0.6211890046 | N201: 60.10099717 | O201: -46.80988287 | P201: 0.0131269151 | Q201: 37.91337302 | R201: 0.01035635742 | S201: 0.008066087094 | T201: -4.969501976 | U201: 24.69604988 | V201: 4.969512037 | W201: -99.39043794 | X201: 9878.459254 | Y201: 99.39043844 | Z201: -49695.22098 | AA201: 2469614988 | AB201: 49695.22098 | AC201: 0.0004059353721 | AD201: 0.2113080455 | AE201: 4.732418742 | AF201: -89.88993152 | AG201: 0.009091242192 | AH201: -4.73241001 | AI201: 0.0004059353721 | AJ201: 0.2113080455 | AK201: 2.024607084e-08 | AL201: 0.002012265928 | AM201: 2.024607083e-08 | AN201: 0.001006132964 | AO201: 4.049214167e-08 | AP201: 0.003018398892 | AQ201: 10 | AR201: -99390441.96 | AS201: 0.3000000405 | AT201: 0.003018398893 | AU201: 0.3000152247 | AV201: 0.576452196 | AW201: 4.739481241 | AX201: -86.26072922 | AY201: 0.01376021246 | AZ201: 0.2105443829 | BA201: 0.9985098583 | BB201: -3.629202303 | BC201: 0.9965074426 | BD201: -0.06320485721 | BE201: 0.310554278 | BF201: 2.045469134 | BG201: 3.217997263 | BH201: -0.1149318842 | BI201: 0.310573871 | BJ201: -1.715228728 | BK201: 0.3104347152 | BL201: -0.00929607148
B202: 103 | C202: 3239.74263 | D202: 20355.90329 | E202: 0.01017790252 | F202: 0.0001045896997 | G202: 0.01022691056 | H202: -0.009823124078 | I202: 0.0001964937666 | J202: 0.01401762343 | K202: -0.6140699348 | L202: 0.3770834473 | M202: 0.614071207 | N202: 60.45668552 | O202: -45.69215464 | P202: 0.01319589241 | Q202: 37.08137998 | R202: 0.01052741796 | S202: 0.00795644692 | T202: -4.912559478 | U202: 24.13334063 | V202: 4.912569656 | W202: -98.25159261 | X202: 9653.37555 | Y202: 98.25159312 | Z202: -49125.79834 | AA202: 2413344062 | AB202: 49125.79834 | AC202: 0.0004154004352 | AD202: 0.2137573407 | AE202: 4.678193077 | AF202: -89.8886557 | AG202: 0.009091242265 | AH202: -4.678184244 | AI202: 0.0004154004352 | AJ202: 0.2137573407 | AK202: 2.071813993e-08 | AL202: 0.002035590329 | AM202: 2.071813993e-08 | AN202: 0.001017795164 | AO202: 4.143627986e-08 | AP202: 0.003053385493 | AQ202: 10 | AR202: -98251596.68 | AS202: 0.3000000414 | AT202: 0.003053385493 | AU202: 0.3000155796 | AV202: 0.5831334575 | AW202: 4.685337337 | AX202: -86.21745555 | AY202: 0.01408007695 | AZ202: 0.2129668668 | BA202: 0.9984751877 | BB202: -3.671200146 | BC202: 0.9964262463 | BD202: -0.06393306078 | BE202: 0.3107225763 | BF202: 2.030586289 | BG202: 3.216284011 | BH202: -0.1140341921 | BI202: 0.3107283789 | BJ202: -1.775697809 | BK202: 0.3105791651 | BL202: -0.009628481957
B203: 104 | C203: 3277.29485 | D203: 20591.85085 | E203: 0.01029587686 | F203: 0.0001070050803 | G203: 0.010344326 | H203: -0.009710520877 | I203: 0.0001942942157 | J203: 0.013938946 | K203: -0.6070336799 | L203: 0.3684914511 | M203: 0.6070349669 | N203: 60.817079 | O203: -44.59279649 | P203: 0.01326018027 | Q203: 36.24991986 | R203: 0.0106936118 | S203: 0.007840857578 | T203: -4.856269439 | U203: 23.58345287 | V203: 4.856279735 | W203: -97.12579651 | X203: 9433.420447 | Y203: 97.12579702 | Z203: -48562.90031 | AA203: 2358355287 | AB203: 48562.90031 | AC203: 0.0004250861929 | AD203: 0.2162350261 | AE203: 4.624588744 | AF203: -89.88736509 | AG203: 0.00909124234 | AH203: -4.624579808 | AI203: 0.0004250861929 | AJ203: 0.2162350261 | AK203: 2.120121607e-08 | AL203: 0.002059185085 | AM203: 2.120121606e-08 | AN203: 0.001029592542 | AO203: 4.240243212e-08 | AP203: 0.003088777627 | AQ203: 10 | AR203: -97125800.63 | AS203: 0.3000000424 | AT203: 0.003088777627 | AU203: 0.3000159429 | AV203: 0.589892146 | AW203: 4.63181571 | AX203: -86.1736827 | AY203: 0.01440735366 | AZ203: 0.2154168008 | BA203: 0.9984397122 | BB203: -3.713682382 | BC203: 0.9963431679 | BD203: -0.06466955047 | BE203: 0.3108858371 | BF203: 2.014730055 | BG203: 3.214626408 | BH203: -0.1130846848 | BI203: 0.3108770484 | BJ203: -1.83762301 | BK203: 0.3107171703 | BL203: -0.009968917205
B204: 105 | C204: 3315.282342 | D204: 20830.5333 | E204: 0.01041521864 | F204: 0.0001094767794 | G204: 0.01046311519 | H204: -0.009599207374 | I204: 0.0001921447822 | J204: 0.01386162985 | K204: -0.6000780479 | L204: 0.3600952261 | M204: 0.6000793498 | N204: 61.18191667 | O204: -43.5116844 | P204: 0.01331973212 | Q204: 35.41988118 | R204: 0.01085460588 | S204: 0.007719636966 | T204: -4.800624383 | U204: 23.04609447 | V204: 4.800634799 | W204: -96.01290011 | X204: 9218.477088 | Y204: 96.01290063 | Z204: -48006.45214 | AA204: 2304619447 | AB204: 48006.45214 | AC204: 0.0004349977913 | AD204: 0.2187414305 | AE204: 4.571598623 | AF204: -89.88605951 | AG204: 0.009091242417 | AH204: -4.571589583 | AI204: 0.0004349977913 | AJ204: 0.2187414305 | AK204: 2.169555588e-08 | AL204: 0.00208305333 | AM204: 2.169555587e-08 | AN204: 0.001041526665 | AO204: 4.339111175e-08 | AP204: 0.003124579995 | AQ204: 10 | AR204: -96012904.28 | AS204: 0.3000000434 | AT204: 0.003124579995 | AU204: 0.3000163146 | AV204: 0.5967291585 | AW204: 4.578909249 | AX204: -86.12940497 | AY204: 0.01474221324 | AZ204: 0.2178944809 | BA204: 0.9984034132 | BB204: -3.75665454 | BC204: 0.9962581641 | BD204: -0.06541441694 | BE204: 0.3110437429 | BF204: 1.997962721 | BG204: 3.213027396 | BH204: -0.1120870036 | BI204: 0.3110195634 | BJ204: -1.90094217 | BK204: 0.3108484002 | BL204: -0.01031702069
B205: 106 | C205: 3353.710152 | D205: 21071.98235 | E205: 0.01053594372 | F205: 0.0001120061101 | G205: 0.01058329391 | H205: -0.009489168784 | I205: 0.0001900443242 | J205: 0.01378565647 | K205: -0.5932021149 | L205: 0.3518903116 | M205: 0.5932034319 | N205: 61.55094024 | O205: -42.44869045 | P205: 0.01337451945 | Q205: 34.59214117 | R205: 0.01101009497 | S205: 0.007593127114 | T205: -4.745616919 | U205: 22.52097995 | V205: 4.745627455 | W205: -94.91275561 | X205: 9008.431278 | Y205: 94.91275614 | Z205: -47456.37991 | AA205: 2252107994 | AB205: 47456.37991 | AC205: 0.0004451404963 | AD205: 0.221276887 | AE205: 4.519215676 | AF205: -89.88473881 | AG205: 0.009091242496 | AH205: -4.519206532 | AI205: 0.0004451404963 | AJ205: 0.221276887 | AK205: 2.220142201e-08 | AL205: 0.002107198235 | AM205: 2.2201422e-08 | AN205: 0.001053599117 | AO205: 4.440284401e-08 | AP205: 0.003160797352 | AQ205: 10 | AR205: -94912759.83 | AS205: 0.3000000444 | AT205: 0.003160797352 | AU205: 0.300016695 | AV205: 0.6036454023 | AW205: 4.526610928 | AX205: -86.0846166 | AY205: 0.01508483025 | AZ205: 0.2204002061 | BA205: 0.9983662717 | BB205: -3.800122212 | BC205: 0.9961711906 | BD205: -0.0661677517 | BE205: 0.3111960053 | BF205: 1.98035056 | BG205: 3.211489608 | BH205: -0.1110449863 | BI205: 0.3111556382 | BJ205: -1.965589365 | BK205: 0.3109725563 | BL205: -0.01067241356
B206: 107 | C206: 3392.583383 | D206: 21316.23006 | E206: 0.01065806812 | F206: 0.000114594416 | G206: 0.01070487814 | H206: -0.009380390493 | I206: 0.0001879917258 | J206: 0.01371100747 | K206: -0.5864049677 | L206: 0.3438723487 | M206: 0.5864063 | N206: 61.92389427 | O206: -41.40368283 | P206: 0.0134245318 | Q206: 33.76756146 | R206: 0.01115980373 | S206: 0.007461691152 | T206: -4.691239742 | U206: 22.00783031 | V206: 4.6912504 | W206: -93.8252169 | X206: 8803.171425 | Y206: 93.82521743 | Z206: -46912.61058 | AA206: 2200793031 | AB206: 46912.61058 | AC206: 0.0004555196966 | AD206: 0.2238417323 | AE206: 4.467432946 | AF206: -89.8834028 | AG206: 0.009091242576 | AH206: -4.467423696 | AI206: 0.0004555196966 | AJ206: 0.2238417323 | AK206: 2.27190832e-08 | AL206: 0.002131623006 | AM206: 2.27190832e-08 | AN206: 0.001065811503 | AO206: 4.54381664e-08 | AP206: 0.003197434509 | AQ206: 10 | AR206: -93825221.16 | AS206: 0.3000000454 | AT206: 0.003197434509 | AU206: 0.3000170843 | AV206: 0.610641795 | AW206: 4.474913802 | AX206: -86.03931174 | AY206: 0.01543538321 | AZ206: 0.2229342778 | BA206: 0.9983282681 | BB206: -3.844091052 | BC206: 0.9960822021 | BD206: -0.0669296471 | BE206: 0.3113423657 | BF206: 1.961963257 | BG206: 3.210015357 | BH206: -0.1099626355 | BI206: 0.3112850202 | BJ206: -2.031495513 | BK206: 0.311089375 | BL206: -0.01103469815
B207: 108 | C207: 3431.907197 | D207: 21563.30888 | E207: 0.01078160806 | F207: 0.0001172430725 | G207: 0.01082788402 | H207: -0.009272858052 | I207: 0.0001859858965 | J207: 0.01363766463 | K207: -0.5796857035 | L207: 0.3360370774 | M207: 0.5796870513 | N207: 62.30052623 | O207: -40.37652588 | P207: 0.0134697765 | Q207: 32.94698416 | R207: 0.01130348843 | S207: 0.007325710082 | T207: -4.637485628 | U207: 21.50637295 | V207: 4.63749641 | W207: -92.75013952 | X207: 8602.588481 | Y207: 92.75014006 | Z207: -46375.07191 | AA207: 2150647295 | AB207: 46375.07191 | AC207: 0.0004661409066 | AD207: 0.2264363069 | AE207: 4.416243555 | AF207: -89.8820513 | AG207: 0.009091242658 | AH207: -4.416234198 | AI207: 0.0004661409066 | AJ207: 0.2264363069 | AK207: 2.324881449e-08 | AL207: 0.002156330888 | AM207: 2.324881448e-08 | AN207: 0.001078165443 | AO207: 4.649762897e-08 | AP207: 0.003234496331 | AQ207: 10 | AR207: -92750143.83 | AS207: 0.3000000465 | AT207: 0.003234496331 | AU207: 0.3000174826 | AV207: 0.617719265 | AW207: 4.423811003 | AX207: -85.99348452 | AY207: 0.01579405467 | AZ207: 0.2254970004 | BA207: 0.9982893827 | BB207: -3.888566774 | BC207: 0.9959911521 | BD207: -0.0677001964 | BE207: 0.3114825979 | BF207: 1.942873317 | BG207: 3.208606623 | BH207: -0.1088440844 | BI207: 0.3114074904 | BJ207: -2.098589014 | BK207: 0.3111986281 | BL207: -0.01140346168
B208: 109 | C208: 3471.686819 | D208: 21813.25161 | E208: 0.01090657996 | F208: 0.0001199534865 | G208: 0.0109523279 | H208: -0.009166557181 | I208: 0.0001840257706 | J208: 0.01356560985 | K208: -0.57304343 | L208: 0.3283803351 | M208: 0.5730447933 | N208: 62.68058659 | O208: -39.36708018 | P208: 0.01351027827 | Q208: 32.13122795 | R208: 0.01144093823 | S208: 0.007185579411 | T208: -4.58434744 | U208: 21.01634145 | V208: 4.584358347 | W208: -91.6873807 | X208: 8406.57588 | Y208: 91.68738125 | Z208: -45843.69253 | AA208: 2101644145 | AB208: 45843.69253 | AC208: 0.0004770097691 | AD208: 0.2290609556 | AE208: 4.365640706 | AF208: -89.88068413 | AG208: 0.009091242743 | AH208: -4.36563124 | AI208: 0.0004770097691 | AJ208: 0.2290609556 | AK208: 2.379089729e-08 | AL208: 0.002181325161 | AM208: 2.379089728e-08 | AN208: 0.00109066258 | AO208: 4.758179457e-08 | AP208: 0.003271987741 | AQ208: 10 | AR208: -91687385.06 | AS208: 0.3000000476 | AT208: 0.003271987741 | AU208: 0.3000178902 | AV208: 0.6248787516 | AW208: 4.373295745 | AX208: -85.94712897 | AY208: 0.01616103134 | AZ208: 0.2280886806 | BA208: 0.998249595 | BB208: -3.933555158 | BC208: 0.9958979932 | BD208: -0.06847949372 | BE208: 0.3116165085 | BF208: 1.923155445 | BG208: 3.207265045 | BH208: -0.1076935635 | BI208: 0.3115228649 | BJ208: -2.1667964 | BK208: 0.3113001245 | BL208: -0.01177828005
B209: 110 | C209: 3511.92753 | D209: 22066.09146 | E209: 0.01103300041 | F209: 0.0001227270981 | G209: 0.01107822631 | H209: -0.009061473761 | I209: 0.0001821103067 | J209: 0.01349482518 | K209: -0.5664772649 | L209: 0.3208980541 | M209: 0.566478644 | N209: 63.06382903 | O209: -38.37520259 | P209: 0.0135460787 | Q209: 31.32108464 | R209: 0.01157197602 | S209: 0.007041705697 | T209: -4.531818119 | U209: 20.53747546 | V209: 4.531829152 | W209: -90.63679929 | X209: 8215.029485 | Y209: 90.63679984 | Z209: -45318.40185 | AA209: 2053757546 | AB209: 45318.40185 | AC209: 0.0004881320588 | AD209: 0.2317160268 | AE209: 4.315617676 | AF209: -89.87930112 | AG209: 0.009091242829 | AH209: -4.3156081 | AI209: 0.0004881320588 | AJ209: 0.2317160268 | AK209: 2.434561961e-08 | AL209: 0.002206609146 | AM209: 2.43456196e-08 | AN209: 0.001103304572 | AO209: 4.869123921e-08 | AP209: 0.003309913718 | AQ209: 10 | AR209: -90636803.7 | AS209: 0.3000000487 | AT209: 0.003309913718 | AU209: 0.3000183073 | AV209: 0.6321212046 | AW209: 4.323361317 | AX209: -85.90023907 | AY209: 0.01653650416 | AZ209: 0.230709628 | BA209: 0.9982088842 | BB209: -3.979062044 | BC209: 0.9958026769 | BD209: -0.06926763404 | BE209: 0.3117439376 | BF209: 1.902885925 | BG209: 3.205991919 | BH209: -0.1065153658 | BI209: 0.3116309954 | BJ209: -2.236042989 | BK209: 0.3113937103 | BL209: -0.01215872163
B210: 111 | C210: 3552.634677 | D210: 22321.862 | E210: 0.0111608862 | F210: 0.0001255653808 | G210: 0.01120559596 | H210: -0.008957593835 | I210: 0.0001802384873 | J210: 0.01342529282 | K210: -0.5599863361 | L210: 0.3135862591 | M210: 0.5599877312 | N210: 63.45001046 | O210: -37.4007463 | P210: 0.01357723549 | Q210: 30.51731584 | R210: 0.0116964589 | S210: 0.006894503073 | T210: -4.479890689 | U210: 20.06952058 | V210: 4.47990185 | W210: -89.59825575 | X210: 8027.847533 | Y210: 89.5982563 | Z210: -44799.1301 | AA210: 2006962058 | AB210: 44799.1301 | AC210: 0.0004995136848 | AD210: 0.2344018733 | AE210: 4.266167823 | AF210: -89.87790207 | AG210: 0.009091242917 | AH210: -4.266158136 | AI210: 0.0004995136848 | AJ210: 0.2344018733 | AK210: 2.491327616e-08 | AL210: 0.0022321862 | AM210: 2.491327615e-08 | AN210: 0.0011160931 | AO210: 4.982655231e-08 | AP210: 0.003348279299 | AQ210: 10 | AR210: -89598260.21 | AS210: 0.3000000498 | AT210: 0.0033482793 | AU210: 0.3000187342 | AV210: 0.6394475851 | AW210: 4.274001088 | AX210: -85.85280873 | AY210: 0.01692066839 | AZ210: 0.233360155 | BA210: 0.998167229 | BB210: -4.025093341 | BC210: 0.9957051536 | BD210: -0.07006471324 | BE210: 0.3118647594 | BF210: 1.882141998 | BG210: 3.204788201 | BH210: -0.1053138138 | BI210: 0.3117317688 | BJ210: -2.306253533 | BK210: 0.3114792689 | BL210: -0.01254435107
B211: 112 | C211: 3593.813664 | D211: 22580.59721 | E211: 0.01129025432 | F211: 0.0001284698426 | G211: 0.01133445378 | H211: -0.008854903606 | I211: 0.0001784093179 | J211: 0.01335699509 | K211: -0.5535697816 | L211: 0.3064410656 | M211: 0.5535711929 | N211: 63.83889116 | O211: -36.44356094 | P211: 0.01360382163 | Q211: 29.72065015 | R211: 0.01181427818 | S211: 0.006744389808 | T211: -4.428558252 | U211: 19.6122282 | V211: 4.428569543 | W211: -88.57161215 | X211: 7844.930578 | Y211: 88.57161271 | Z211: -44285.80833 | AA211: 1961232819 | AB211: 44285.80833 | AC211: 0.000511160694 | AD211: 0.2371188517 | AE211: 4.217284578 | AF211: -89.87648681 | AG211: 0.009091243007 | AH211: -4.217274779 | AI211: 0.000511160694 | AJ211: 0.2371188517 | AK211: 2.549416851e-08 | AL211: 0.002258059721 | AM211: 2.54941685e-08 | AN211: 0.00112902986 | AO211: 5.098833702e-08 | AP211: 0.003387089581 | AQ211: 10 | AR211: -88571616.66 | AS211: 0.300000051 | AT211: 0.003387089581 | AU211: 0.300019171 | AV211: 0.6468588651 | AW211: 4.225208502 | AX211: -85.8048318 | AY211: 0.0173137237 | AZ211: 0.2360405763 | BA211: 0.9981246075 | BB211: -4.071655018 | BC211: 0.9956053726 | BD211: -0.07087082807 | BE211: 0.3119788819 | BF211: 1.861001254 | BG211: 3.203654509 | BH211: -0.1040932266 | BI211: 0.3118251074 | BJ211: -2.377352849 | BK211: 0.3115567208 | BL211: -0.01293473304
B212: 113 | C212: 3635.469961 | D212: 22842.33145 | E212: 0.01142112194 | F212: 0.0001314420265 | G212: 0.0114648169 | H212: -0.008753389437 | I212: 0.0001766218266 | J212: 0.01328991447 | K212: -0.5472267491 | L212: 0.2994586774 | M212: 0.5472281767 | N212: 64.23023491 | O212: -35.50349258 | P212: 0.01362592444 | Q212: 28.93178055 | R212: 0.01192535903 | S212: 0.006591784951 | T212: -4.377813993 | U212: 19.16535535 | V212: 4.377825414 | W212: -87.55673213 | X212: 7666.181442 | Y212: 87.5567327 | Z212: -43778.36835 | AA212: 1916545535 | AB212: 43778.36835 | AC212: 0.0005230792744 | AD212: 0.2398673229 | AE212: 4.168961449 | AF212: -89.87505515 | AG212: 0.009091243099 | AH212: -4.168951536 | AI212: 0.0005230792744 | AJ212: 0.2398673229 | AK212: 2.608860529e-08 | AL212: 0.002284233144 | AM212: 2.608860528e-08 | AN212: 0.001142116572 | AO212: 5.217721057e-08 | AP212: 0.003426349716 | AQ212: 10 | AR212: -87556736.7 | AS212: 0.3000000522 | AT212: 0.003426349716 | AU212: 0.300019618 | AV212: 0.654356028 | AW212: 4.176977078 | AX212: -85.75630204 | AY212: 0.01771587431 | AZ212: 0.2387512097 | BA212: 0.9980809976 | BB212: -4.118753112 | BC212: 0.9955032819 | BD212: -0.07168607615 | BE212: 0.3120862464 | BF212: 1.839541044 | BG212: 3.202591132 | BH212: -0.1028578888 | BI212: 0.3119109677 | BJ212: -2.449266424 | BK212: 0.3116260226 | BL212: -0.01332943574
B213: 114 | C213: 3677.609102 | D213: 23107.09947 | E213: 0.01155350646 | F213: 0.0001344835115 | G213: 0.01159670261 | H213: -0.008653037844 | I213: 0.0001748750639 | J213: 0.01322403357 | K213: -0.5409563962 | L213: 0.2926353851 | M213: 0.5409578404 | N213: 64.62380908 | O213: -34.58038392 | P213: 0.01364364451 | Q213: 28.1513622 | R213: 0.01202965973 | S213: 0.006437105116 | T213: -4.32765117 | U213: 18.72866465 | V213: 4.327662723 | W213: -86.55348091 | X213: 7491.505158 | Y213: 86.55348149 | Z213: -43276.74277 | AA213: 1872876464 | AB213: 43276.74277 | AC213: 0.0005352757582 | AD213: 0.242647652 | AE213: 4.121192019 | AF213: -89.87360689 | AG213: 0.009091243194 | AH213: -4.121181991 | AI213: 0.0005352757582 | AJ213: 0.242647652 | AK213: 2.66969023e-08 | AL213: 0.002310709947 | AM213: 2.669690229e-08 | AN213: 0.001155354973 | AO213: 5.339380459e-08 | AP213: 0.00346606492 | AQ213: 10 | AR213: -86553485.54 | AS213: 0.3000000534 | AT213: 0.00346606492 | AU213: 0.3000200754 | AV213: 0.6619400685 | AW213: 4.12930041 | AX213: -85.70721316 | AY213: 0.01812732903 | AZ213: 0.2414923754 | BA213: 0.9980363764 | BB213: -4.166393726 | BC213: 0.9953988286 | BD213: -0.07251055602 | BE213: 0.3121868265 | BF213: 1.817837923 | BG213: 3.201598043 | BH213: -0.1016120211 | BI213: 0.3119893398 | BJ213: -2.521920984 | BK213: 0.3116871656 | BL213: -0.0137280343
B214: 115 | C214: 3720.236681 | D214: 23374.93646 | E214: 0.01168742545 | F214: 0.0001375959136 | G214: 0.01173012846 | H214: -0.008553835499 | I214: 0.0001731681017 | J214: 0.01315933516 | K214: -0.5347578902 | L214: 0.2859675636 | M214: 0.5347593511 | N214: 65.01938471 | O214: -33.67407428 | P214: 0.01365709456 | Q214: 27.3800107 | R214: 0.01212717063 | S214: 0.006280761444 | T214: -4.278063121 | U214: 18.30192407 | V214: 4.278074809 | W214: -85.56172525 | X214: 7320.808927 | Y214: 85.56172583 | Z214: -42780.86496 | AA214: 1830202407 | AB214: 42780.86496 | AC214: 0.0005477566254 | AD214: 0.2454602082 | AE214: 4.073969942 | AF214: -89.87214184 | AG214: 0.009091243291 | AH214: -4.073959798 | AI214: 0.0005477566254 | AJ214: 0.2454602082 | AK214: 2.731938271e-08 | AL214: 0.002337493645 | AM214: 2.73193827e-08 | AN214: 0.001168746822 | AO214: 5.463876541e-08 | AP214: 0.003506240467 | AQ214: 10 | AR214: -85561729.92 | AS214: 0.3000000546 | AT214: 0.003506240468 | AU214: 0.3000205435 | AV214: 0.6696119927 | AW214: 4.082172166 | AX214: -85.65755881 | AY214: 0.01854830138 | AZ214: 0.2442643964 | BA214: 0.9979907206 | BB214: -4.21458303 | BC214: 0.9952919583 | BD214: -0.07334436708 | BE214: 0.3122806273 | BF214: 1.795967129 | BG214: 3.200674911 | BH214: -0.1003597538 | BI214: 0.3120602454 | BJ214: -2.595245024 | BK214: 0.3117401748 | BL214: -0.01413011394
B215: 116 | C215: 3763.358362 | D215: 23645.87797 | E215: 0.01182289669 | F215: 0.0001407808862 | G215: 0.01186511215 | H215: -0.008455769226 | I215: 0.0001715000332 | J215: 0.01309580212 | K215: -0.5286304076 | L215: 0.2794516704 | M215: 0.5286318855 | N215: 65.41673666 | O215: -32.78439973 | P215: 0.01366639824 | Q215: 26.61830058 | R215: 0.01221791274 | S215: 0.006123156788 | T215: -4.229043261 | U215: 17.8849069 | V215: 4.229055084 | W215: -84.58133341 | X215: 7154.002062 | Y215: 84.581334 | Z215: -42290.66907 | AA215: 1788500690 | AB215: 42290.66907 | AC215: 0.0005605285069 | AD215: 0.248305365 | AE215: 4.027288947 | AF215: -89.87065981 | AG215: 0.00909124339 | AH215: -4.027278686 | AI215: 0.0005605285069 | AJ215: 0.248305365 | AK215: 2.795637724e-08 | AL215: 0.002364587796 | AM215: 2.795637723e-08 | AN215: 0.001182293898 | AO215: 5.591275447e-08 | AP215: 0.003546881694 | AQ215: 10 | AR215: -84581338.14 | AS215: 0.3000000559 | AT215: 0.003546881694 | AU215: 0.3000210225 | AV215: 0.6773728185 | AW215: 4.035586086 | AX215: -85.60733255 | AY215: 0.01897900971 | AZ215: 0.2470675984 | BA215: 0.9979440063 | BB215: -4.263327259 | BC215: 0.9951826156 | BD215: -0.07418760962 | BE215: 0.3123676833 | BF215: 1.774002103 | BG215: 3.199821119 | BH215: -0.09910510114 | BI215: 0.3121237365 | BJ215: -2.669169289 | BK215: 0.3117851067 | BL215: -0.01453527276
B216: 117 | C216: 3806.979871 | D216: 23919.95999 | E216: 0.01195993819 | F216: 0.0001440401215 | G216: 0.01200167161 | H216: -0.008358826002 | I216: 0.0001698699721 | J216: 0.01303341752 | K216: -0.5225731349 | L216: 0.2730842438 | M216: 0.5225746299 | N216: 65.81564365 | O216: -31.91119319 | P216: 0.0136716889 | Q216: 25.86676426 | R216: 0.01230193612 | S216: 0.005964683143 | T216: -4.180585079 | U216: 17.4773916 | V216: 4.180597039 | W216: -83.61217519 | X216: 6990.995941 | Y216: 83.61217579 | Z216: -41806.08999 | AA216: 1747749160 | AB216: 41806.08999 | AC216: 0.0005735981883 | AD216: 0.2511835004 | AE216: 3.981142834 | AF216: -89.8691606 | AG216: 0.009091243491 | AH216: -3.981132454 | AI216: 0.0005735981883 | AJ216: 0.2511835004 | AK216: 2.86082243e-08 | AL216: 0.002391995999 | AM216: 2.860822429e-08 | AN216: 0.001195997999 | AO216: 5.721644858e-08 | AP216: 0.003587993998 | AQ216: 10 | AR216: -83612179.98 | AS216: 0.3000000572 | AT216: 0.003587993998 | AU216: 0.3000215126 | AV216: 0.6852235755 | AW216: 3.989535983 | AX216: -85.55652788 | AY216: 0.01941967731 | AZ216: 0.2499023095 | BA216: 0.9978962092 | BB216: -4.31263272 | BC216: 0.9950707437 | BD216: -0.07504038484 | BE216: 0.3124480576 | BF216: 1.752014054 | BG216: 3.199035784 | BH216: -0.09785194029 | BI216: 0.3121798937 | BJ216: -2.743627209 | BK216: 0.3118220471 | BL216: -0.01494312438
B217: 118 | C217: 3851.107002 | D217: 24197.21893 | E217: 0.01209856814 | F217: 0.000147375351 | G217: 0.012139825 | H217: -0.00826299295 | I217: 0.0001682770525 | J217: 0.01297216453 | K217: -0.5165852673 | L217: 0.2668619009 | M217: 0.5165867797 | N217: 66.21588839 | O217: -31.05428453 | P217: 0.01367310833 | Q217: 25.12589137 | R217: 0.01237931801 | S217: 0.00580571934 | T217: -4.132682139 | U217: 17.07916166 | V217: 4.132694237 | W217: -82.65412188 | X217: 6831.703964 | Y217: 82.65412249 | Z217: -41327.06336 | AA217: 1707926166 | AB217: 41327.06336 | AC217: 0.0005869726135 | AD217: 0.2540949965 | AE217: 3.935525475 | AF217: -89.86764401 | AG217: 0.009091243594 | AH217: -3.935514974 | AI217: 0.0005869726135 | AJ217: 0.2540949965 | AK217: 2.92752702e-08 | AL217: 0.002419721893 | AM217: 2.927527019e-08 | AN217: 0.001209860946 | AO217: 5.855054039e-08 | AP217: 0.003629582839 | AQ217: 10 | AR217: -82654126.72 | AS217: 0.3000000586 | AT217: 0.003629582839 | AU217: 0.3000220142 | AV217: 0.6931653053 | AW217: 3.944015741 | AX217: -85.50513823 | AY217: 0.01987053247 | AZ217: 0.2527688608 | BA217: 0.9978473042 | BB217: -4.362505785 | BC217: 0.9949562846 | BD217: -0.07590279479 | BE217: 0.312521839 | BF217: 1.730071582 | BG217: 3.198317774 | BH217: -0.09660399156 | BI217: 0.3122288234 | BJ217: -2.818555271 | BK217: 0.3118511092 | BL217: -0.01535330011
B218: 119 | C218: 3895.745616 | D218: 24477.69161 | E218: 0.01223880495 | F218: 0.0001507883467 | G218: 0.01227959066 | H218: -0.008168257343 | I218: 0.000166720428 | J218: 0.01291202649 | K218: -0.5106660098 | L218: 0.2607813361 | M218: 0.5106675397 | N218: 66.61725766 | O218: -30.21350067 | P218: 0.01367080551 | Q218: 24.39612837 | R218: 0.0124501608 | S218: 0.005646629038 | T218: -4.085328078 | U218: 16.69000551 | V218: 4.085340317 | W218: -81.70704623 | X218: 6676.041503 | Y218: 81.70704684 | Z218: -40853.52556 | AA218: 1669010551 | AB218: 40853.52556 | AC218: 0.0006006588882 | AD218: 0.2570402402 | AE218: 3.890430809 | AF218: -89.86610985 | AG218: 0.009091243701 | AH218: -3.890420187 | AI218: 0.0006006588882 | AJ218: 0.2570402402 | AK218: 2.995786933e-08 | AL218: 0.002447769161 | AM218: 2.995786932e-08 | AN218: 0.00122388458 | AO218: 5.991573865e-08 | AP218: 0.003671653741 | AQ218: 10 | AR218: -81707051.12 | AS218: 0.3000000599 | AT218: 0.003671653741 | AU218: 0.3000225275 | AV218: 0.7011990613 | AW218: 3.899019312 | AX218: -85.45315695 | AY218: 0.02033180865 | AZ218: 0.255667586 | BA218: 0.9977972659 | BB218: -4.412952897 | BC218: 0.994839179 | BD218: -0.07677494247 | BE218: 0.3125891406 | BF218: 1.708240343 | BG218: 3.197665732 | BH218: -0.0953648023 | BI218: 0.3122706559 | BJ218: -2.893893344 | BK218: 0.3118724308 | BL218: -0.01576545092
B219: 120 | C219: 3940.90164 | D219: 24761.41528 | E219: 0.01238066726 | F219: 0.0001542809217 | G219: 0.01242098715 | H219: -0.008074606598 | I219: 0.0001651992717 | J219: 0.01285298688 | K219: -0.5048145761 | L219: 0.2548393187 | M219: 0.5048161236 | N219: 67.01954238 | O219: -29.38866566 | P219: 0.01366493535 | Q219: 23.67787854 | R219: 0.01251458986 | S219: 0.005487759005 | T219: -4.038516608 | U219: 16.3097164 | V219: 4.038528989 | W219: -80.77082244 | X219: 6523.925858 | Y219: 80.77082306 | Z219: -40385.4137 | AA219: 1630981639 | AB219: 40385.4137 | AC219: 0.0006146642839 | AD219: 0.2600196225 | AE219: 3.84585285 | AF219: -89.8645579 | AG219: 0.009091243809 | AH219: -3.845842104 | AI219: 0.0006146642839 | AJ219: 0.2600196225 | AK219: 3.065638434e-08 | AL219: 0.002476141528 | AM219: 3.065638432e-08 | AN219: 0.001238070763 | AO219: 6.131276866e-08 | AP219: 0.003714212291 | AQ219: 10 | AR219: -80770827.4 | AS219: 0.3000000613 | AT219: 0.003714212292 | AU219: 0.3000230527 | AV219: 0.7093259093 | AW219: 3.854540721 | AX219: -85.40057733 | AY219: 0.02080374453 | AZ219: 0.2585988211 | BA219: 0.9977460682 | BB219: -4.463980569 | BC219: 0.9947193663 | BD219: -0.07765693172 | BE219: 0.3126500975 | BF219: 1.686582771 | BG219: 3.1970781 | BH219: -0.09413773339 | BI219: 0.3123055433 | BJ219: -2.969584942 | BK219: 0.311886172 | BL219: -0.01617924898
B220: 121 | C220: 3986.581074 | D220: 25048.42763 | E220: 0.01252417389 | F220: 0.0001578549317 | G220: 0.01256403326 | H220: -0.007982028277 | I220: 0.0001637127754 | J220: 0.01279502932 | K220: -0.499030189 | L220: 0.249032692 | M220: 0.4990317545 | N220: 67.42253772 | O220: -28.57960087 | P220: 0.01365565747 | Q220: 22.97150227 | R220: 0.01257275129 | S220: 0.00532943769 | T220: -3.992241512 | U220: 15.93809229 | V220: 3.992254036 | W220: -79.84532619 | X220: 6375.276215 | Y220: 79.84532682 | Z220: -39922.6656 | AA220: 1593819228 | AB220: 39922.6656 | AC220: 0.0006289962415 | AD220: 0.2630335391 | AE220: 3.801785674 | AF220: -89.86298796 | AG220: 0.00909124392 | AH220: -3.801774804 | AI220: 0.0006289962415 | AJ220: 0.2630335391 | AK220: 3.137118633e-08 | AL220: 0.002504842762 | AM220: 3.137118631e-08 | AN220: 0.001252421381 | AO220: 6.274237264e-08 | AP220: 0.003757264143 | AQ220: 10 | AR220: -79845331.2 | AS220: 0.3000000627 | AT220: 0.003757264143 | AU220: 0.3000235902 | AV220: 0.7175469274 | AW220: 3.810574061 | AX220: -85.34739258 | AY220: 0.0212865842 | AZ220: 0.2615629052 | BA220: 0.9976936844 | BB220: -4.515595384 | BC220: 0.9945967843 | BD220: -0.07854886729 | BE220: 0.3127048644 | BF220: 1.665157856 | BG220: 3.196553138 | BH220: -0.09292594864 | BI220: 0.3123336566 | BJ220: -3.045577435 | BK220: 0.3118925124 | BL220: -0.01659438891
B221: 122 | C221: 4032.789982 | D221: 25338.76676 | E221: 0.01266934392 | F221: 0.0001615122753 | G221: 0.01270874798 | H221: -0.007890510085 | I221: 0.0001622601494 | J221: 0.0127381376 | K221: -0.4933120803 | L221: 0.243358371 | M221: 0.493313664 | N221: 67.82604312 | O221: -27.78612503 | P221: 0.01364313504 | Q221: 22.27731764 | R221: 0.01262480961 | S221: 0.0051719741 | T221: -3.946496642 | U221: 15.57493575 | V221: 3.946509312 | W221: -78.93043455 | X221: 6230.013598 | Y221: 78.93043518 | Z221: -39465.21981 | AA221: 1557503574 | AB221: 39465.21981 | AC221: 0.0006436623756 | AD221: 0.2660823904 | AE221: 3.758223431 | AF221: -89.86139983 | AG221: 0.009091244034 | AH221: -3.758212435 | AI221: 0.0006436623756 | AJ221: 0.2660823904 | AK221: 3.210265505e-08 | AL221: 0.002533876676 | AM221: 3.210265503e-08 | AN221: 0.001266938337 | AO221: 6.420531008e-08 | AP221: 0.003800815013 | AQ221: 10 | AR221: -78930439.62 | AS221: 0.3000000642 | AT221: 0.003800815013 | AU221: 0.3000241402 | AV221: 0.725863206 | AW221: 3.767113491 | AX221: -85.29359583 | AY221: 0.02178057718 | AZ221: 0.2645601797 | BA221: 0.9976400872 | BB221: -4.567803996 | BC221: 0.9944713698 | BD221: -0.07945085484 | BE221: 0.3127536134 | BF221: 1.64402097 | BG221: 3.196088949 | BH221: -0.09173240689 | BI221: 0.3123551833 | BJ221: -3.121822206 | BK221: 0.3118916485 | BL221: -0.01701058874
B222: 123 | C222: 4079.534503 | D222: 25632.47125 | E222: 0.01281619661 | F222: 0.0001652548956 | G222: 0.01285515055 | H222: -0.007800039866 | I222: 0.0001608406219 | J222: 0.01268229561 | K222: -0.4876594905 | L222: 0.2378133412 | M222: 0.4876610926 | N222: 68.22986242 | O222: -27.00805437 | P222: 0.01362753364 | Q222: 21.59560121 | R222: 0.01267094544 | S222: 0.005015656948 | T222: -3.901275924 | U222: 15.22005384 | V222: 3.901288741 | W222: -78.02602601 | X222: 6088.060835 | Y222: 78.02602665 | Z222: -39013.01557 | AA222: 1522015383 | AB222: 39013.01557 | AC222: 0.0006586704782 | AD222: 0.2691665812 | AE222: 3.715160334 | AF222: -89.85979328 | AG222: 0.00909124415 | AH222: -3.715149211 | AI222: 0.0006586704782 | AJ222: 0.2691665812 | AK222: 3.285117912e-08 | AL222: 0.002563247125 | AM222: 3.28511791e-08 | AN222: 0.001281623562 | AO222: 6.570235822e-08 | AP222: 0.003844870687 | AQ222: 10 | AR222: -78026031.14 | AS222: 0.3000000657 | AT222: 0.003844870687 | AU222: 0.3000247031 | AV222: 0.7342758483 | AW222: 3.724153238 | AX222: -85.23918015 | AY222: 0.02228597863 | AZ222: 0.2675909887 | BA222: 0.9975852486 | BB222: -4.620613131 | BC222: 0.9943430577 | BD222: -0.08036300089 | BE222: 0.3127965316 | BF222: 1.623223739 | BG222: 3.195683502 | BH222: -0.09055985675 | BI222: 0.3123703254 | BJ222: -3.198274751 | BK222: 0.3118837913 | BL222: -0.01742759047
B223: 124 | C223: 4126.820846 | D223: 25929.5801 | E223: 0.01296475149 | F223: 0.0001690847811 | G223: 0.0130032604 | H223: -0.007710605605 | I223: 0.0001594534388 | J223: 0.01262748743 | K223: -0.482071669 | L223: 0.2323946566 | M223: 0.4820732896 | N223: 68.6338039 | O223: -26.24520277 | P223: 0.01360902019 | Q223: 20.92658909 | R223: 0.01271135321 | S223: 0.004860754083 | T223: -3.856573352 | U223: 14.87325802 | V223: 3.856586317 | W223: -77.13198045 | X223: 5949.342508 | Y223: 77.1319811 | Z223: -38565.99281 | AA223: 1487335802 | AB223: 38565.99281 | AC223: 0.000674028523 | AD223: 0.2722865213 | AE223: 3.672590664 | AF223: -89.85816811 | AG223: 0.009091244269 | AH223: -3.672579412 | AI223: 0.000674028523 | AJ223: 0.2722865213 | AK223: 3.361715621e-08 | AL223: 0.00259295801 | AM223: 3.361715619e-08 | AN223: 0.001296479004 | AO223: 6.72343124e-08 | AP223: 0.003889437014 | AQ223: 10 | AR223: -77131985.63 | AS223: 0.3000000672 | AT223: 0.003889437014 | AU223: 0.300025279 | AV223: 0.7427859702 | AW223: 3.681687598 | AX223: -85.18413853 | AY223: 0.0228030494 | AZ223: 0.2706556788 | BA223: 0.9975291402 | BB223: -4.674029589 | BC223: 0.9942117819 | BD223: -0.08128541287 | BE223: 0.312833819 | BF223: 1.60281397 | BG223: 3.195334653 | BH223: -0.08941083377 | BI223: 0.3123792965 | BJ223: -3.274894743 | BK223: 0.3118691635 | BL223: -0.01784516044
B224: 125 | C224: 4174.655289 | D224: 26230.13278 | E224: 0.01311502826 | F224: 0.0001730039664 | G224: 0.01315309722 | H224: -0.007622195424 | I224: 0.0001580978631 | J224: 0.01257369727 | K224: -0.4765478736 | L224: 0.2270994383 | M224: 0.4765495129 | N224: 69.03768032 | O224: -25.49738187 | P224: 0.013587762 | Q224: 20.27047824 | R224: 0.01274623887 | S224: 0.004707512166 | T224: -3.812382988 | U224: 14.53436405 | V224: 3.812396104 | W224: -76.24817913 | X224: 5813.78492 | Y224: 76.24817978 | Z224: -38124.09218 | AA224: 1453446405 | AB224: 38124.09218 | AC224: 0.0006897446697 | AD224: 0.2754426249 | AE224: 3.630508767 | AF224: -89.85652411 | AG224: 0.009091244391 | AH224: -3.630497384 | AI224: 0.0006897446697 | AJ224: 0.2754426249 | AK224: 3.440099327e-08 | AL224: 0.002623013277 | AM224: 3.440099325e-08 | AN224: 0.001311506638 | AO224: 6.880198651e-08 | AP224: 0.003934519915 | AQ224: 10 | AR224: -76248184.37 | AS224: 0.3000000688 | AT224: 0.003934519915 | AU224: 0.3000258684 | AV224: 0.7513947003 | AW224: 3.639710929 | AX224: -85.12846387 | AY224: 0.02333205622 | AZ224: 0.2737545994 | BA224: 0.9974717327 | BB224: -4.728060241 | BC224: 0.9940774745 | BD224: -0.08221819909 | BE224: 0.3128656863 | BF224: 1.582835618 | BG224: 3.195040167 | BH224: -0.08828765983 | BI224: 0.3123823197 | BJ224: -3.351646036 | BK224: 0.311847997 | BL224: -0.01826308938
B225: 126 | C225: 4223.044187 | D225: 26534.16919 | E225: 0.01326704691 | F225: 0.0001770145336 | G225: 0.01330468089 | H225: -0.00753479758 | I225: 0.0001567731746 | J225: 0.01252090949 | K225: -0.4710873705 | L225: 0.2219248732 | M225: 0.4710890289 | N225: 69.44130901 | O225: -24.76440118 | P225: 0.01356392579 | Q225: 19.62742784 | R225: 0.01277581778 | S225: 0.004556156581 | T225: -3.768698964 | U225: 14.20319188 | V225: 3.768712231 | W225: -75.37450466 | X225: 5681.316053 | Y225: 75.37450532 | Z225: -37687.25498 | AA225: 1420329188 | AB225: 37687.25498 | AC225: 0.0007058272682 | AD225: 0.2786353113 | AE225: 3.588909054 | AF225: -89.85486105 | AG225: 0.009091244515 | AH225: -3.588897539 | AI225: 0.0007058272682 | AJ225: 0.2786353113 | AK225: 3.520310672e-08 | AL225: 0.002653416918 | AM225: 3.52031067e-08 | AN225: 0.001326708458 | AO225: 7.040621342e-08 | AP225: 0.003980125377 | AQ225: 10 | AR225: -75374509.97 | AS225: 0.3000000704 | AT225: 0.003980125377 | AU225: 0.3000264716 | AV225: 0.7601031805 | AW225: 3.598217657 | AX225: -85.07214902 | AY225: 0.02387327174 | AZ225: 0.2768881022 | BA225: 0.9974129962 | BB225: -4.782712033 | BC225: 0.9939400662 | BD225: -0.08316146876 | BE225: 0.3128923526 | BF225: 1.563328784 | BG225: 3.19479774 | BH225: -0.08719244462 | BI225: 0.3123796256 | BJ225: -3.428496643 | BK225: 0.311820531 | BL225: -0.01868119221
B226: 127 | C226: 4271.993966 | D226: 26841.72972 | E226: 0.01342082761 | F226: 0.0001811186136 | G226: 0.01345803157 | H226: -0.007448400466 | I226: 0.0001554786695 | J226: 0.01246910861 | K226: -0.4656894347 | L226: 0.2168682121 | M226: 0.4656911123 | N226: 69.84451188 | O226: -24.04606824 | P226: 0.01353767689 | Q226: 18.99756085 | R226: 0.01280031259 | S226: 0.004406891561 | T226: -3.725515478 | U226: 13.87956557 | V226: 3.725528898 | W226: -74.51084102 | X226: 5551.865529 | Y226: 74.51084169 | Z226: -37255.42319 | AA226: 1387966557 | AB226: 37255.42319 | AC226: 0.0007222848633 | AD226: 0.2818650045 | AE226: 3.547785999 | AF226: -89.85317871 | AG226: 0.009091244643 | AH226: -3.547774351 | AI226: 0.0007222848633 | AJ226: 0.2818650045 | AK226: 3.602392272e-08 | AL226: 0.002684172972 | AM226: 3.60239227e-08 | AN226: 0.001342086485 | AO226: 7.204784541e-08 | AP226: 0.004026259457 | AQ226: 10 | AR226: -74510846.39 | AS226: 0.300000072 | AT226: 0.004026259457 | AU226: 0.3000270888 | AV226: 0.7689125659 | AW226: 3.557202269 | AX226: -85.01518672 | AY226: 0.02442697474 | AZ226: 0.2800565414 | BA226: 0.9973529003 | BB226: -4.837991985 | BC226: 0.9937994861 | BD226: -0.08411533194 | BE226: 0.3129140436 | BF226: 1.544329766 | BG226: 3.194605014 | BH226: -0.08612708888 | BI226: 0.3123714496 | BJ226: -3.505418667 | BK226: 0.311787009 | BL226: -0.01909930769
B227: 128 | C227: 4321.511128 | D227: 27152.85522 | E227: 0.01357639078 | F227: 0.0001853183867 | G227: 0.0136131696 | H227: -0.007362992606 | I227: 0.0001542136601 | J227: 0.01241827927 | K227: -0.4603533491 | L227: 0.2119267686 | M227: 0.4603550462 | N227: 70.24711553 | O227: -23.34218872 | P227: 0.01350917848 | Q227: 18.38096577 | R227: 0.01281995128 | S227: 0.004259900495 | T227: -3.682826793 | U227: 13.56331319 | V227: 3.68284037 | W227: -73.65707349 | X227: 5425.364575 | Y227: 73.65707417 | Z227: -36828.53946 | AA227: 1356341318 | AB227: 36828.53946 | AC227: 0.0007391261988 | AD227: 0.2851321334 | AE227: 3.507134142 | AF227: -89.85147687 | AG227: 0.009091244773 | AH227: -3.507122359 | AI227: 0.0007391261988 | AJ227: 0.2851321334 | AK227: 3.686387733e-08 | AL227: 0.002715285522 | AM227: 3.686387731e-08 | AN227: 0.00135764276 | AO227: 7.372775464e-08 | AP227: 0.004072928282 | AQ227: 10 | AR227: -73657078.92 | AS227: 0.3000000737 | AT227: 0.004072928282 | AU227: 0.3000277204 | AV227: 0.7778240246 | AW227: 3.516659318 | AX227: -84.95756968 | AY227: 0.02499345022 | AZ227: 0.283260274 | BA227: 0.9972914136 | BB227: -4.893907193 | BC227: 0.9936556619 | BD227: -0.08507989961 | BE227: 0.3129309893 | BF227: 1.525871125 | BG227: 3.194459601 | BH227: -0.0850932893 | BI227: 0.3123580307 | BJ227: -3.582388211 | BK227: 0.3117476775 | BL227: -0.0195172978
B228: 129 | C228: 4371.602248 | D228: 27467.58702 | E228: 0.0137337571 | F228: 0.0001896160841 | G228: 0.01377011562 | H228: -0.007278562658 | I228: 0.0001529774744 | J228: 0.0123684063 | K228: -0.4550784051 | L228: 0.2070979173 | M228: 0.4550801219 | N228: 70.64895118 | O228: -22.6525666 | P228: 0.01347859087 | Q228: 17.77769834 | R228: 0.01283496536 | S228: 0.00411534641 | T228: -3.640627241 | U228: 13.25426671 | V228: 3.640640975 | W228: -72.81308868 | X228: 5301.745983 | Y228: 72.81308937 | Z228: -36406.54708 | AA228: 1325436671 | AB228: 36406.54708 | AC228: 0.0007563602224 | AD228: 0.288437132 | AE228: 3.466948083 | AF228: -89.8497553 | AG228: 0.009091244907 | AH228: -3.466936163 | AI228: =1/Mag_Zc46*COS(-PI()/180*Ph_Zc46) -> 0.0007563602224 | AJ228: =1/Mag_Zc46*SIN(-PI()/180*Ph_Zc46) -> 0.288437132 | AK228: 3.772341681e-08 | AL228: 0.002746758701 | AM228: 3.772341679e-08 | AN228: 0.00137337935 | AO228: 7.544683361e-08 | AP228: 0.004120138051 | AQ228: 10 | AR228: -72813094.17 | AS228: 0.3000000754 | AT228: 0.004120138051 | AU228: 0.3000283667 | AV228: 0.7868387386 | AW228: 3.476583419 | AX228: -84.89929048 | AY228: =1/Mag_C46_F*COS(-PI()/180*Ph_C46_F) -> 0.02557298952 | AZ228: =1/Mag_C46_F*SIN(-PI()/180*Ph_C46_F) -> 0.2864996592 | BA228: 0.9972285043 | BB228: -4.950464827 | BC228: 0.9935085194 | BD228: -0.08605528361 | BE228: 0.3129434229 | BF228: 1.507981788 | BG228: =1/Mag_C13_F*COS(-PI()/180*Ph_C13_F) -> 3.194359093 | BH228: =1/Mag_C13_F*SIN(-PI()/180*Ph_C13_F) -> -0.08409254476 | BI228: 0.3123396092 | BJ228: -3.65938525 | BK228: 0.3117027837 | BL228: -0.01993504699
B229: 130 | C229: =F_min*incr_^(n_-1) -> 4422.273981 | D229: =2*PI()*Fr_ -> 27785.9669 | E229: =Omega_*L_1/N_1-1/(Omega_*C_1*N_1) -> 0.01389294746 | F229: =(R_1/N_1)^2+X_1^2 -> 0.0001940139891 | G229: =SQRT(Zc1_2) -> 0.01392889045 | H229: =Omega_*L_2/N_2-1/(Omega_*C_2*N_2) -> -0.007195099409 | I229: =(R_2/N_2)^2+X_2^2 -> 0.0001517694555 | J229: =SQRT(Zc2_2) -> 0.01231947464 | K229: =Omega_*L_3/N_3-1/(Omega_*C_3*N_3) -> -0.4498639021 | L229: =(R_3/N_3)^2+X_3^2 -> 0.2023790929 | M229: =SQRT(Zc3_2) -> 0.4498656387 | N229: =R_1/N_1/Zc1_2+R_2/N_2/Zc2_2+R_3/N_3/Zc3_2 -> 71.04985483 | O229: =-X_1/Zc1_2-X_2/Zc2_2-X_3/Zc3_2 -> -21.97700425 | P229: =1/SQRT(S_Gin^2+S_Bin^2) -> 0.01344607098 | Q229: =-180/PI()*ATAN2(S_Gin,S_Bin) -> 17.1877834 | R229: =Mag_Zc13*COS(PI()/180*Ph_Zc13) -> 0.01284558816 | S229: =Mag_Zc13*SIN(PI()/180*Ph_Zc13) -> 0.003973372587 | T229: =Omega_*L_4/N_4-1/(Omega_*C_4*N_4) -> -3.598911217 | U229: =(R_4/N_4)^2+X_4^2 -> 12.95226195 | V229: =SQRT(Zc4_2) -> 3.59892511 | W229: =Omega_*L_5/N_5-1/(Omega_*C_5*N_5) -> -71.9787745 | X229: =(R_5/N_5)^2+X_5^2 -> 5180.944078 | Y229: =SQRT(Zc5_2) -> 71.97877519 | Z229: =Omega_*L_6/N_6-1/(Omega_*C_6*N_6) -> -35989.39002 | AA229: =(R_6/N_6)^2+X_6^2 -> 1295236194 | AB229: =SQRT(Zc6_2) -> 35989.39002 | AC229: =R_4/N_4/Zc4_2+R_5/N_5/Zc5_2+R_6/N_6/Zc6_2 -> 0.0007739960906 | AD229: =-X_4/Zc4_2-X_5/Zc5_2-X_6/Zc6_2 -> 0.2917804392 | AE229: =1/SQRT(S_Gout^2+S_Bout^2) -> 3.427222484 | AF229: =-180/PI()*ATAN2(S_Gout,S_Bout) -> -89.84801378 | AG229: =Mag_Zc46*COS(PI()/180*Ph_Zc46) -> 0.009091245044 | AH229: =Mag_Zc46*SIN(PI()/180*Ph_Zc46) -> -3.427210426 | AI229: 0.0007739960906 | AJ229: 0.2917804392 | AK229: =Omega_^2*L_f1^2*R_f1/(R_f1^2+Omega_^2*L_f1^2) -> 3.860299782e-08 | AL229: =Omega_*L_f1*R_f1^2/(R_f1^2+Omega_^2*L_f1^2) -> 0.002778596689 | AM229: =Omega_^2*L_f2^2*R_f2/(R_f2^2+Omega_^2*L_f2^2) -> 3.860299779e-08 | AN229: =Omega_*L_f2*R_f2^2/(R_f2^2+Omega_^2*L_f2^2) -> 0.001389298344 | AO229: =Re_Zf1+Re_Zf2 -> 7.720599561e-08 | AP229: =Im_Zf1+Im_Zf2 -> 0.004167895033 | AQ229: =R_b -> 10 | AR229: =-1/(Omega_*C_b) -> -71978780.05 | AS229: =R_dc+((Re_Zl*Re_Zc-Im_Zl*Im_Zc)*(Re_Zl+Re_Zc)+((Re_Zl*Im_Zc+Re_Zc*Im_Zl)*(Im_Zl+Im_Zc)))/((Re_Zl+Re_Zc)^2+(Im_Zl+Im_Zc)^2) -> 0.3000000772 | AT229: =((Re_Zl+Re_Zc)*(Re_Zl*Im_Zc+Re_Zc*Im_Zl)-(Im_Zl+Im_Zc)*(Re_Zl*Re_Zc-Im_Zl*Im_Zc))/((Re_Zl+Re_Zc)^2+(Im_Zl+Im_Zc)^2) -> 0.004167895033 | AU229: =SQRT(Re_Zf^2+Im_Zf^2) -> 0.300029028 | AV229: =180/PI()*ATAN2(Re_Zf,Im_Zf) -> 0.7959579034 | AW229: =SQRT((Re_Zc46+Re_Zf)^2+(Im_Zc46+Im_Zf)^2) -> 3.436969249 | AX229: =180/PI()*ATAN2((Re_Zc46+Re_Zf),(Im_Zc46+Im_Zf)) -> -84.84034165 | AY229: 0.02616589049 | AZ229: 0.2897750587 | BA229: =Mag_Zc46/Mag_C46_F -> 0.9971641398 | BB229: =Ph_Zc46-Ph_C46_F -> -5.007672135 | BC229: =Mag_Vtr*COS(PI()/180*Ph_Vtr) -> 0.9933579829 | BD229: =Mag_Vtr*SIN(PI()/180*Ph_Vtr) -> -0.08704159665 | BE229: =SQRT((Re_Zc13+Re_Zf)^2+(Im_Zc13+Im_Zf)^2) -> 0.3129515786 | BF229: =180/PI()*ATAN2((Re_Zc13+Re_Zf),(Im_Zc13+Im_Zf)) -> 1.490687171 | BG229: 3.194301083 | BH229: -0.08312616365 | BI229: =1/SQRT((G_C13_F+G_C46)^2+(B_C13_F+B_C46)^2) -> 0.3123164252 | BJ229: =-180/PI()*ATAN2((G_C13_F+G_C46),(B_C13_F+B_C46)) -> -3.73639349 | BK229: =Mag_Zout*COS(PI()/180*Ph_Zout) -> 0.3116525738 | BL229: =Mag_Zout*SIN(PI()/180*Ph_Zout) -> -0.02035246134
B230: 131 | C230: 4473.533054 | D230: 28108.03716 | E230: 0.014053983 | F230: 0.0001985144382 | G230: 0.01408951519 | H230: -0.007112591772 | I230: 0.0001505889617 | J230: 0.01227146942 | K230: -0.4447091475 | L230: 0.1977677883 | M230: 0.4447109042 | N230: 71.44966718 | O230: -21.31530261 | P230: 0.01341177174 | Q230: 16.61121681 | R230: 0.01285205326 | S230: 0.003834103295 | T230: -3.55767318 | U230: 12.65713845 | V230: 3.557687234 | W230: -71.15402014 | X230: 5062.894681 | Y230: 71.15402084 | Z230: -35577.01288 | AA230: 1265723845 | AB230: 35577.01288 | AC230: 0.0007920431733 | AD230: 0.295162499 | AE230: 3.38795207 | AF230: -89.84625207 | AG230: 0.009091245183 | AH230: -3.387939873 | AI230: 0.0007920431733 | AJ230: 0.295162499 | AK230: 3.950308764e-08 | AL230: 0.002810803715 | AM230: 3.950308762e-08 | AN230: 0.001405401857 | AO230: 7.900617526e-08 | AP230: 0.004216205572 | AQ230: 10 | AR230: -71154025.76 | AS230: 0.300000079 | AT230: 0.004216205572 | AU230: 0.3000297049 | AV230: 0.8051827283 | AW230: 3.397811546 | AX230: -84.78071563 | AY230: 0.02677245761 | AZ230: 0.2930868366 | BA230: 0.9970982865 | BB230: -5.065536443 | BC230: 0.993203975 | BD230: -0.08803895233 | BE230: 0.3129556904 | BF230: 1.474009322 | BG230: 3.194283176 | BH230: -0.08219527223 | BI230: 0.312288717 | BJ230: -3.813400201 | BK230: 0.3115972914 | BL230: -0.02076946753
B231: 132 | C231: 4525.386278 | D231: 28433.84057 | E231: 0.01421688512 | F231: 0.0002031198224 | G231: 0.01425201117 | H231: -0.00703102879 | I231: 0.0001494353658 | J231: 0.01222437589 | K231: -0.4396134566 | L231: 0.1932615538 | M231: 0.4396152338 | N231: 71.84823371 | O231: -20.66726131 | P231: 0.01337584168 | Q231: 16.0479673 | R231: 0.01285459314 | S231: 0.003697644628 | T231: -3.516907653 | U231: 12.36873944 | V231: 3.51692187 | W231: -70.33871605 | X231: 4947.535076 | Y231: 70.33871676 | Z231: -35169.36087 | AA231: 1236883944 | AB231: 35169.36087 | AC231: 0.0008105110589 | AD231: 0.2985837607 | AE231: 3.349131625 | AF231: -89.84446994 | AG231: 0.009091245326 | AH231: -3.349119286 | AI231: 0.0008105110589 | AJ231: 0.2985837607 | AK231: 4.042416448e-08 | AL231: 0.002843384057 | AM231: 4.042416445e-08 | AN231: 0.001421692027 | AO231: 8.084832893e-08 | AP231: 0.004265076084 | AQ231: 10 | AR231: -70338721.74 | AS231: 0.3000000808 | AT231: 0.004265076084 | AU231: 0.3000303974 | AV231: 0.8145144365 | AW231: 3.359105109 | AX231: -84.72040479 | AY231: 0.02739300211 | AZ231: 0.2964353596 | BA231: 0.9970309105 | BB231: -5.124065152 | BC231: 0.9930464165 | BD231: -0.08904746509 | BE231: 0.3129559904 | BF231: 1.457967075 | BG231: 3.194303002 | BH231: -0.08130082364 | BI231: 0.31225672 | BJ231: -3.890396045 | BK231: 0.3115371761 | BL231: -0.02118601181
B232: 133 | C232: 4577.840538 | D232: 28763.42041 | E232: 0.01438167544 | F232: 0.0002078325884 | G232: 0.01441639998 | H232: -0.00695039963 | I232: 0.000148308055 | J232: 0.01217817946 | K232: -0.4345761528 | L232: 0.1888579951 | M232: 0.4345779505 | N232: 72.24540468 | O232: -20.0326788 | P232: 0.01333842458 | Q232: 15.49797838 | R232: 0.01285343789 | S232: 0.003564085408 | T232: -3.476609222 | U232: 12.08691169 | V232: 3.476623604 | W232: -69.53275397 | X232: 4834.803974 | Y232: 69.53275468 | Z232: -34766.37986 | AA232: 1208701168 | AB232: 34766.37986 | AC232: 0.0008294095595 | AD232: 0.3020446786 | AE232: 3.310755993 | AF232: -89.84266716 | AG232: 0.009091245473 | AH232: -3.310743511 | AI232: 0.0008294095595 | AJ232: 0.3020446786 | AK232: 4.136671767e-08 | AL232: 0.00287634204 | AM232: 4.136671765e-08 | AN232: 0.001438171019 | AO232: 8.273343532e-08 | AP232: 0.00431451306 | AQ232: 10 | AR232: -69532759.72 | AS232: 0.3000000827 | AT232: 0.00431451306 | AU232: 0.3000311062 | AV232: 0.8239542654 | AW232: 3.320844797 | AX232: -84.65940142 | AY232: 0.02802784215 | AZ232: 0.2998209965 | BA232: 0.9969619766 | BB232: -5.183265742 | BC232: 0.9928852266 | BD232: -0.09006725025 | BE232: 0.3129527084 | BF232: 1.442576226 | BG232: 3.194358226 | BH232: -0.08044360753 | BI232: 0.3122206652 | BJ232: -3.967374883 | BK232: 0.3114724624 | BL232: -0.02160205883
B233: 134 | C233: 4630.902802 | D233: 29096.82044 | E233: 0.01454837585 | F233: 0.00021265524 | G233: 0.01458270345 | H233: -0.006870693583 | I233: 0.0001472064303 | J233: 0.01213286571 | K233: -0.429596567 | L233: 0.1845547728 | M233: 0.4295983855 | N233: 72.64103514 | O233: -19.41135249 | P233: 0.01329965915 | Q233: 14.9611703 | R233: 0.01284881411 | S233: 0.00343349815 | T233: -3.436772536 | U233: 11.81150546 | V233: 3.436787084 | W233: -68.73602683 | X233: 4724.641484 | Y233: 68.73602756 | Z233: -34368.01632 | AA233: 1181160546 | AB233: 34368.01632 | AC233: 0.0008487487158 | AD233: 0.3055457124 | AE233: 3.272820077 | AF233: -89.84084347 | AG233: 0.009091245623 | AH233: -3.27280745 | AI233: 0.0008487487158 | AJ233: 0.3055457124 | AK233: 4.233124799e-08 | AL233: 0.002909682044 | AM233: 4.233124796e-08 | AN233: 0.001454841021 | AO233: 8.466249595e-08 | AP233: 0.004364523065 | AQ233: 10 | AR233: -68736032.65 | AS233: 0.3000000847 | AT233: 0.004364523065 | AU233: 0.3000318314 | AV233: 0.8335034667 | AW233: 3.283025528 | AX233: -84.5976977 | AY233: 0.02867730295 | AZ233: 0.3032441185 | BA233: 0.9968914494 | BB233: -5.243145775 | BC233: 0.9927203226 | BD233: -0.09109842397 | BE233: 0.3129460698 | BF233: 1.427849706 | BG233: 3.19444656 | BH233: -0.07962425995 | BI233: 0.3121807783 | BJ233: -4.04433358 | BK233: 0.3114033784 | BL233: -0.02201759047
B234: 135 | C234: 4684.580116 | D234: 29434.08495 | E234: 0.0147170085 | F234: 0.0002175903393 | G234: 0.01475094367 | H234: -0.006791900063 | I234: 0.0001461299065 | J234: 0.01208842035 | K234: -0.4246740377 | L234: 0.1803496008 | M234: 0.4246758774 | N234: 73.03498494 | O234: -18.80307892 | P234: 0.01325967878 | Q234: 14.43744181 | R234: 0.01284094395 | S234: 0.00330594006 | T234: -3.397392302 | U234: 11.54237445 | V234: 3.397407019 | W234: -67.94842883 | X234: 4616.989081 | Y234: 67.94842957 | Z234: -33974.21736 | AA234: 1154247445 | AB234: 33974.21736 | AC234: 0.0008685388027 | AD234: 0.309087327 | AE234: 3.235318839 | AF234: -89.83899865 | AG234: 0.009091245776 | AH234: -3.235306065 | AI234: 0.0008685388027 | AJ234: 0.309087327 | AK234: 4.331826785e-08 | AL234: 0.002943408495 | AM234: 4.331826782e-08 | AN234: 0.001471704246 | AO234: 8.663653566e-08 | AP234: 0.004415112741 | AQ234: 10 | AR234: -67948434.72 | AS234: 0.3000000866 | AT234: 0.004415112742 | AU234: 0.3000325736 | AV234: 0.8431633066 | AW234: 3.245642278 | AX234: -84.53528576 | AY234: 0.02934171692 | AZ234: 0.306705099 | BA234: 0.9968192922 | BB234: -5.30371289 | BC234: 0.99255162 | BD234: -0.09214110327 | BE234: 0.3129362956 | BF234: 1.413797764 | BG234: 3.194565767 | BH234: -0.0788432736 | BI234: 0.3121372791 | BJ234: -4.12127181 | BK234: 0.3113301451 | BL234: -0.02243260468
B235: 136 | C235: 4738.87961 | D235: 29775.25874 | E235: 0.01488759578 | F235: 0.0002226405082 | G235: 0.01492114299 | H235: -0.006714008606 | I235: 0.0001450779116 | J235: 0.01204482925 | K235: -0.4198079113 | L235: 0.1762402449 | M235: 0.4198097723 | N235: 73.42711873 | O235: -18.20765383 | P235: 0.01321861137 | Q235: 13.92667207 | R235: 0.0128300443 | S235: 0.003181454063 | T235: -3.358463291 | U235: 11.27937567 | V235: 3.358478178 | W235: -67.16985536 | X235: 4511.789569 | Y235: 67.16985611 | Z235: -33584.93066 | AA235: 1127947567 | AB235: 33584.93066 | AC235: 0.0008887903348 | AD235: 0.312669993 | AE235: 3.198247297 | AF235: -89.83713244 | AG235: 0.009091245933 | AH235: -3.198234376 | AI235: 0.0008887903348 | AJ235: 0.312669993 | AK235: 4.432830163e-08 | AL235: 0.002977525873 | AM235: 4.43283016e-08 | AN235: 0.001488762935 | AO235: 8.865660323e-08 | AP235: 0.004466288808 | AQ235: 10 | AR235: -67169861.32 | AS235: 0.3000000887 | AT235: 0.004466288809 | AU235: 0.300033333 | AV235: 0.8529350658 | AW235: 3.208690083 | AX235: -84.47215764 | AY235: 0.03002142383 | AZ235: 0.3102043138 | BA235: 0.9967454677 | BB235: -5.364974806 | BC235: 0.9923790322 | BD235: -0.093195406 | BE235: 0.312923601 | BF235: 1.400428157 | BG235: 3.194713675 | BH235: -0.07810100805 | BI235: 0.3120903801 | BJ235: -4.19819185 | BK235: 0.3112529755 | BL235: -0.02284711422
B236: 137 | C236: 4793.808495 | D236: 30120.3871 | E236: 0.01506016035 | F236: 0.0002278084298 | G236: 0.01509332401 | H236: -0.006637008866 | I236: 0.0001440498867 | J236: 0.01200207843 | K236: -0.4149975415 | L236: 0.1722245219 | M236: 0.414999424 | N236: 73.81730593 | O236: -17.62487237 | P236: 0.01317657924 | Q236: 13.4287224 | R236: 0.01281632604 | S236: 0.003060069828 | T236: -3.319980332 | U236: 11.0223694 | V236: 3.319995392 | W236: -66.40020302 | X236: 4408.987061 | Y236: 66.40020377 | Z236: -33200.10452 | AA236: 1102246940 | AB236: 33200.10452 | AC236: 0.0009095140718 | AD236: 0.316294186 | AE236: 3.161600529 | AF236: -89.8352446 | AG236: 0.009091246094 | AH236: -3.161587458 | AI236: 0.0009095140718 | AJ236: 0.316294186 | AK236: 4.536188595e-08 | AL236: 0.003012038709 | AM236: 4.536188592e-08 | AN236: 0.001506019354 | AO236: 9.072377186e-08 | AP236: 0.004518058063 | AQ236: 10 | AR236: -66400209.04 | AS236: 0.3000000907 | AT236: 0.004518058064 | AU236: 0.3000341102 | AV236: 0.8628200399 | AW236: 3.172164033 | AX236: -84.40830528 | AY236: 0.03071677098 | AZ236: 0.3137421408 | BA236: 0.9966699378 | BB236: -5.426939325 | BC236: 0.9922024711 | BD236: -0.09426145086 | BE236: 0.3129081952 | BF236: 1.387746334 | BG236: 3.194888173 | BH236: -0.07739769999 | BI236: 0.3120402866 | BJ236: -4.275098384 | BK236: 0.3111720739 | BL236: -0.0232611455
B237: 138 | C237: 4849.374067 | D237: 30469.51589 | E237: 0.01523472512 | F237: 0.0002330968496 | G237: 0.01526750961 | H237: -0.006560890616 | I237: 0.0001430452857 | J237: 0.01196015408 | K237: -0.4102422893 | L237: 0.1683002984 | M237: 0.4102441936 | N237: 74.20542075 | O237: -17.05452916 | P237: 0.013133699 | Q237: 12.94343795 | R237: 0.01279999351 | S237: 0.002941804797 | T237: -3.281938314 | U237: 10.7712191 | V237: 3.281953549 | W237: -65.63936958 | X237: 4308.526939 | Y237: 65.63937034 | Z237: -32819.68783 | AA237: 1077131909 | AB237: 32819.68783 | AC237: 0.0009307210243 | AD237: 0.3199603874 | AE237: 3.125373667 | AF237: -89.83333488 | AG237: 0.009091246258 | AH237: -3.125360445 | AI237: 0.0009307210243 | AJ237: 0.3199603874 | AK237: 4.641956991e-08 | AL237: 0.003046951588 | AM237: 4.641956988e-08 | AN237: 0.001523475793 | AO237: 9.28391398e-08 | AP237: 0.004570427381 | AQ237: 10 | AR237: -65639375.67 | AS237: 0.3000000928 | AT237: 0.004570427382 | AU237: 0.3000349055 | AV237: 0.8728195394 | AW237: 3.136059277 | AX237: -84.34372055 | AY237: 0.0314281133 | AZ237: 0.3173189599 | BA237: 0.9965926634 | BB237: -5.489614329 | BC237: 0.9920218464 | BD237: -0.09533935734 | BE237: 0.3128902805 | BF237: 1.375755617 | BG237: 3.195087226 | BH237: -0.0767334733 | BI237: 0.3119871956 | BJ237: -4.351998304 | BK237: 0.3110876356 | BL237: -0.0236747374
B238: 139 | C238: 4905.583706 | D238: 30822.69147 | E238: 0.01541131329 | F238: 0.0002385085773 | G238: 0.01544372291 | H238: -0.006485643747 | I238: 0.0001420635748 | J238: 0.01191904253 | K238: -0.4055415232 | L238: 0.1644654895 | M238: 0.4055434496 | N238: 74.59134216 | O238: -16.49641851 | P238: 0.01309008157 | Q238: 12.47064941 | R238: 0.01278124405 | S238: 0.002826665196 | T238: -3.244332185 | U238: 10.52579133 | V238: 3.244347597 | W238: -64.88725399 | X238: 4210.355831 | Y238: 64.88725476 | Z238: -32443.63008 | AA238: 1052589133 | AB238: 32443.63008 | AC238: 0.0009524224597 | AD238: 0.3236690842 | AE238: 3.0895619 | AF238: -89.83140302 | AG238: 0.009091246426 | AH238: -3.089548524 | AI238: 0.0009524224597 | AJ238: 0.3236690842 | AK238: 4.750191545e-08 | AL238: 0.003082269146 | AM238: 4.750191542e-08 | AN238: 0.001541134572 | AO238: 9.500383087e-08 | AP238: 0.004623403718 | AQ238: 10 | AR238: -64887260.16 | AS238: 0.300000095 | AT238: 0.004623403718 | AU238: 0.3000357193 | AV238: 0.8829348898 | AW238: 3.100371019 | AX238: -84.27839524 | AY238: 0.03215581357 | AZ238: 0.3209351533 | BA238: 0.9965136046 | BB238: -5.553007783 | BC238: 0.9918370657 | BD238: -0.09642924579 | BE238: 0.3128700522 | BF238: 1.364457391 | BG238: 3.195308872 | BH238: -0.07610834894 | BI238: 0.3119312959 | BJ238: -4.42890052 | BK238: 0.3109998465 | BL238: -0.02408794012
B239: 140 | C239: 4962.444878 | D239: 31179.96074 | E239: 0.0155899483 | F239: 0.000244046488 | G239: 0.01562198732 | H239: -0.006411258265 | I239: 0.0001411042325 | J239: 0.01187873026 | K239: -0.4008946188 | L239: 0.1607180579 | M239: 0.4008965676 | N239: 74.97495389 | O239: -15.95033445 | P239: 0.01304583216 | Q239: 12.01017453 | R239: 0.01276026756 | S239: 0.002714647022 | T239: -3.20715695 | U239: 10.2859557 | V239: 3.207172541 | W239: -64.14375637 | X239: 4114.421581 | Y239: 64.14375715 | Z239: -32071.8813 | AA239: 1028605570 | AB239: 32071.8813 | AC239: 0.0009746299079 | AD239: 0.3274207689 | AE239: 3.054160471 | AF239: -89.82944877 | AG239: 0.009091246598 | AH239: -3.05414694 | AI239: 0.0009746299079 | AJ239: 0.3274207689 | AK239: 4.860949758e-08 | AL239: 0.003117996074 | AM239: 4.860949755e-08 | AN239: 0.001558998036 | AO239: 9.721899513e-08 | AP239: 0.004676994109 | AQ239: 10 | AR239: -64143762.61 | AS239: 0.3000000972 | AT239: 0.004676994109 | AU239: 0.3000365521 | AV239: 0.8931674322 | AW239: 3.065094519 | AX239: -84.21232103 | AY239: 0.03290024255 | AZ239: 0.3245911051 | BA239: 0.9964327208 | BB239: -5.617127735 | BC239: 0.9916480347 | BD239: -0.09753123733 | BE239: 0.312847698 | BF239: 1.35385127 | BG239: 3.195551224 | BH239: -0.0755222545 | BI239: 0.3118727675 | BJ239: -4.505815773 | BK239: 0.3109088825 | BL239: -0.02450081407
B240: 141 | C240: 5019.965133 | D240: 31541.37117 | E240: 0.01577065388 | F240: 0.0002497135238 | G240: 0.01580232653 | H240: -0.00633772429 | I240: 0.0001401667492 | J240: 0.01183920391 | K240: -0.396300959 | L240: 0.1570560126 | M240: 0.3963029304 | N240: 75.35614435 | O240: -15.41607096 | P240: 0.01300105032 | Q240: 11.56181966 | R240: 0.01273724634 | S240: 0.002605736999 | T240: -3.170407672 | U240: 10.05158481 | V240: 3.170423443 | W240: -63.40877796 | X240: 4020.673223 | Y240: 63.40877875 | Z240: -31704.39213 | AA240: 1005168481 | AB240: 31704.39213 | AC240: 0.000997355168 | AD240: 0.3312159398 | AE240: 3.019164679 | AF240: -89.82747186 | AG240: 0.009091246774 | AH240: -3.019150991 | AI240: 0.000997355168 | AJ240: 0.3312159398 | AK240: 4.974290474e-08 | AL240: 0.003154137116 | AM240: 4.97429047e-08 | AN240: 0.001577068557 | AO240: 9.948580945e-08 | AP240: 0.004731205673 | AQ240: 10 | AR240: -63408784.27 | AS240: 0.3000000995 | AT240: 0.004731205673 | AU240: 0.3000374043 | AV240: 0.9035185229 | AW240: 3.030225091 | AX240: -84.14548955 | AY240: 0.03366177914 | AZ240: 0.3282872015 | BA240: 0.99634997 | BB240: -5.681982316 | BC240: 0.9914546572 | BD240: -0.0986454539 | BE240: 0.3128233978 | BF240: 1.343935277 | BG240: 3.195812479 | BH240: -0.0749750334 | BI240: 0.3118117815 | BJ240: -4.582756457 | BK240: 0.3108149098 | BL240: -0.0249134288
B241: 142 | C241: 5078.152112 | D241: 31906.97074 | E241: 0.01595345403 | F241: 0.0002555126954 | G241: 0.01598476448 | H241: -0.006265032057 | I241: 0.0001392506267 | J241: 0.01180045027 | K241: -0.3917599337 | L241: 0.1534774082 | M241: 0.3917619279 | N241: 75.73480665 | O241: -14.89342204 | P241: 0.01295583005 | Q241: 11.12538112 | R241: 0.0127123548 | S241: 0.002499913495 | T241: -3.13407947 | U241: 9.822554124 | V241: 3.134095424 | W241: -62.68222116 | X241: 3929.060949 | Y241: 62.68222196 | Z241: -31341.11377 | AA241: 982265412.1 | AB241: 31341.11377 | AC241: 0.001020610314 | AD241: 0.3350551009 | AE241: 2.984569875 | AF241: -89.82547204 | AG241: 0.009091246954 | AH241: -2.984556029 | AI241: 0.001020610314 | AJ241: 0.3350551009 | AK241: 5.090273908e-08 | AL241: 0.003190697073 | AM241: 5.090273904e-08 | AN241: 0.001595348535 | AO241: 1.018054781e-07 | AP241: 0.004786045609 | AQ241: 10 | AR241: -62682227.54 | AS241: 0.3000001018 | AT241: 0.004786045609 | AU241: 0.3000382764 | AV241: 0.913989534 | AW241: 2.995758103 | AX241: -84.0778923 | AY241: 0.03444081058 | AZ241: 0.3320238304 | BA241: 0.9962653098 | BB241: -5.747579743 | BC241: 0.9912568345 | BD241: -0.09977201821 | BE241: 0.3127973237 | BF241: 1.334706 | BG241: 3.196090911 | BH241: -0.07446645371 | BI241: 0.3117485001 | BJ241: -4.659736447 | BK241: 0.3107180845 | BL241: -0.02532586203
B242: 143 | C242: 5137.013543 | D242: 32276.80802 | E242: 0.01613837303 | F242: 0.000261447084 | G242: 0.0161693254 | H242: -0.00619317191 | I242: 0.0001383553783 | J242: 0.0117624563 | K242: -0.3872709398 | L242: 0.1499803433 | M242: 0.3872729571 | N242: 76.11083856 | O242: -14.38218183 | P242: 0.01291025982 | Q242: 10.70064659 | R242: 0.01268575946 | S242: 0.002397147406 | T242: -3.098167519 | U242: 9.598741974 | V242: 3.098183657 | W242: -61.96398945 | X242: 3839.536089 | Y242: 61.96399026 | Z242: -30981.99795 | AA242: 959884197 | AB242: 30981.99795 | AC242: 0.001044407702 | AD242: 0.3389387622 | AE242: 2.950371465 | AF242: -89.82344904 | AG242: 0.009091247139 | AH242: -2.950357458 | AI242: 0.001044407702 | AJ242: 0.3389387622 | AK242: 5.208961678e-08 | AL242: 0.003227680801 | AM242: 5.208961674e-08 | AN242: 0.001613840399 | AO242: 1.041792335e-07 | AP242: 0.0048415212 | AQ242: 10 | AR242: -61963995.91 | AS242: 0.3000001042 | AT242: 0.004841521201 | AU242: 0.3000391688 | AV242: 0.9245818534 | AW242: 2.961688977 | AX242: -84.00952072 | AY242: 0.03523773257 | AZ242: 0.3358013817 | BA242: 0.9961786966 | BB242: -5.813928316 | BC242: 0.9910544661 | BD242: -0.1009110537 | BE242: 0.3127696399 | BF242: 1.32615875 | BG242: 3.196384877 | BH242: -0.07399621652 | BI242: 0.3116830762 | BJ242: -4.736770941 | BK242: 0.3106185525 | BL242: -0.02573819863
B243: 144 | C243: 5196.557244 | D243: 32650.93212 | E243: 0.01632543543 | F243: 0.0002675198421 | G243: 0.01635603381 | H243: -0.006122134306 | I243: 0.0001374805285 | J243: 0.0117252091 | K243: -0.3828333811 | L243: 0.1465629602 | M243: 0.3828354218 | N243: 76.48414242 | O243: -13.88214479 | P243: 0.01286442281 | Q243: 10.28739632 | R243: 0.0126576188 | S243: 0.002297402982 | T243: -3.062667049 | U243: 9.38002945 | V243: 3.062683374 | W243: -61.25398746 | X243: 3752.05108 | Y243: 61.25398828 | Z243: -30626.99699 | AA243: 938012944.7 | AB243: 30626.99699 | AC243: 0.001068759975 | AD243: 0.3428674395 | AE243: 2.916564907 | AF243: -89.82140259 | AG243: 0.009091247327 | AH243: -2.916550738 | AI243: 0.001068759975 | AJ243: 0.3428674395 | AK243: 5.330416841e-08 | AL243: 0.003265093211 | AM243: 5.330416837e-08 | AN243: 0.001632546604 | AO243: 1.066083368e-07 | AP243: 0.004897639816 | AQ243: 10 | AR243: -61253993.99 | AS243: 0.3000001066 | AT243: 0.004897639816 | AU243: 0.3000400821 | AV243: 0.935296885 | AW243: 2.928013188 | AX243: -83.94036617 | AY243: 0.03605294948 | AZ243: 0.3396202472 | BA243: 0.9960900856 | BB243: -5.88103642 | BC243: 0.990847449 | BD243: -0.1020626847 | BE243: 0.3127405025 | BF243: 1.318287711 | BG243: 3.196692814 | BH243: -0.07356396385 | BI243: 0.311615654 | BJ243: -4.813876304 | BK243: 0.3105164498 | BL243: -0.02615052975
B244: 145 | C244: 5256.791122 | D244: 33029.39274 | E244: 0.01651466609 | F244: 0.0002737341962 | G244: 0.01654491451 | H244: -0.006051909809 | I244: 0.0001366256123 | J244: 0.01168869592 | K244: -0.3784466681 | L244: 0.1432234431 | M244: 0.3784487325 | N244: 76.85462518 | O244: -13.39310574 | P244: 0.01281839694 | Q244: 9.885404332 | R244: 0.01262808337 | S244: 0.002200638614 | T244: -3.027573345 | U244: 9.166300359 | V244: 3.02758986 | W244: -60.55212088 | X244: 3666.559443 | Y244: 60.55212171 | Z244: -30276.06374 | AA244: 916640035.5 | AB244: 30276.06374 | AC244: 0.001093680072 | AD244: 0.3468416545 | AE244: 2.883145711 | AF244: -89.81933241 | AG244: 0.00909124752 | AH244: -2.883131378 | AI244: 0.001093680072 | AJ244: 0.3468416545 | AK244: 5.454703923e-08 | AL244: 0.003302939273 | AM244: 5.454703918e-08 | AN244: 0.001651469635 | AO244: 1.090940784e-07 | AP244: 0.004954408908 | AQ244: 10 | AR244: -60552127.49 | AS244: 0.3000001091 | AT244: 0.004954408909 | AU244: 0.3000410166 | AV244: 0.9461360489 | AW244: 2.894726262 | AX244: -83.87041989 | AY244: 0.03688687452 | AZ244: 0.3434808202 | BA244: 0.9959994315 | BB244: -5.948912528 | BC244: 0.9906356781 | BD244: -0.1032270362 | BE244: 0.3127100597 | BF244: 1.311086073 | BG244: 3.197013239 | BH244: -0.07316928611 | BI244: 0.3115463686 | BJ244: -4.891069928 | BK244: 0.3104119027 | BL244: -0.026562952
B245: 146 | C245: 5317.723178 | D245: 33412.24014 | E245: 0.01670609014 | F245: 0.0002800934478 | G245: 0.01673599258 | H245: -0.005982489094 | I245: 0.0001357901758 | J245: 0.01165290418 | K245: -0.3741102183 | L245: 0.1399600179 | M245: 0.3741123066 | N245: 77.22219825 | O245: -12.91486005 | P245: 0.01277225509 | Q245: 9.494439499 | R245: 0.01259729582 | S245: 0.002106807578 | T245: -2.992881747 | U245: 8.957441149 | V245: 2.992898453 | W245: -59.85829649 | X245: 3583.015759 | Y245: 59.85829733 | Z245: -29929.15158 | AA245: 895754114.6 | AB245: 29929.15158 | AC245: 0.001119181233 | AD245: 0.3508619351 | AE245: 2.850109438 | AF245: -89.81723824 | AG245: 0.009091247718 | AH245: -2.850094939 | AI245: 0.001119181233 | AJ245: 0.3508619351 | AK245: 5.581888954e-08 | AL245: 0.003341224013 | AM245: 5.581888949e-08 | AN245: 0.001670612005 | AO245: 1.11637779e-07 | AP245: 0.005011836018 | AQ245: 10 | AR245: -59858303.18 | AS245: 0.3000001116 | AT245: 0.005011836018 | AU245: 0.3000419729 | AV245: 0.9571007816 | AW245: 2.861823777 | AX245: -83.79967304 | AY245: 0.03773992992 | AZ245: 0.3473834957 | BA245: 0.9959066877 | BB245: -6.017565199 | BC245: 0.9904190459 | BD245: -0.1044042338 | BE245: 0.3126784518 | BF245: 1.304546169 | BG245: 3.197344749 | BH245: -0.07281172902 | BI245: 0.3114753463 | BJ245: -4.968370095 | BK245: 0.3103050276 | BL245: -0.02697556663
B246: 147 | C246: 5379.361504 | D246: 33799.52516 | E246: 0.016899733 | F246: 0.0002866009753 | G246: 0.01692929341 | H246: -0.005913862939 | I246: 0.0001349737749 | J246: 0.01161782143 | K246: -0.3698234558 | L246: 0.1367709509 | M246: 0.3698255682 | N246: 77.58677755 | O246: -12.44720373 | P246: 0.01272606527 | Q246: 9.114266575 | R246: 0.01256539099 | S246: 0.002015858715 | T246: -2.958587646 | U246: 8.753340859 | V246: 2.958604546 | W246: -59.17242215 | X246: 3501.375643 | Y246: 59.172423 | Z246: -29586.21445 | AA246: 875344085.6 | AB246: 29586.21445 | AC246: 0.001145277007 | AD246: 0.3549288151 | AE246: 2.817451701 | AF246: -89.8151198 | AG246: 0.00909124792 | AH246: -2.817437033 | AI246: 0.001145277007 | AJ246: 0.3549288151 | AK246: 5.712039505e-08 | AL246: 0.003379952515 | AM246: 5.7120395e-08 | AN246: 0.001689976256 | AO246: 1.1424079e-07 | AP246: 0.005069928772 | AQ246: 10 | AR246: -59172428.91 | AS246: 0.3000001142 | AT246: 0.005069928772 | AU246: 0.3000429515 | AV246: 0.968192536 | AW246: 2.829301363 | AX246: -83.72811672 | AY246: 0.03861254709 | AZ246: 0.3513286703 | BA246: 0.9958118065 | BB246: -6.087003078 | BC246: 0.9901974428 | BD246: -0.1055944041 | BE246: 0.3126458115 | BF246: 1.298659591 | BG246: 3.197686017 | BH246: -0.07249080014 | BI246: 0.3114027048 | BJ246: -5.045795859 | BK246: 0.3101959313 | BL246: -0.0273884788
B247: 148 | C247: 5441.714287 | D247: 34191.29925 | E247: 0.01709562038 | F247: 0.0002932602362 | G247: 0.01712484266 | H247: -0.00584602223 | I247: 0.0001341759759 | J247: 0.01158343541 | K247: -0.3655858111 | L247: 0.1336545478 | M247: 0.3655879481 | N247: 77.94828336 | O247: -11.98993354 | P247: 0.01267989076 | Q247: 8.744647122 | R247: 0.01253249614 | S247: 0.001927737075 | T247: -2.924686489 | U247: 8.553891057 | V247: 2.924703584 | W247: -58.49440676 | X247: 3421.595722 | Y247: 58.49440762 | Z247: -29247.2068 | AA247: 855399105.4 | AB247: 29247.2068 | AC247: 0.001171981259 | AD247: 0.3590428349 | AE247: 2.785168162 | AF247: -89.8129768 | AG247: 0.009091248127 | AH247: -2.785153324 | AI247: 0.001171981259 | AJ247: 0.3590428349 | AK247: 5.845224721e-08 | AL247: 0.003419129924 | AM247: 5.845224716e-08 | AN247: 0.001709564961 | AO247: 1.169044944e-07 | AP247: 0.005128694885 | AQ247: 10 | AR247: -58494413.6 | AS247: 0.3000001169 | AT247: 0.005128694885 | AU247: 0.3000439529 | AV247: 0.9794127822 | AW247: 2.797154699 | AX247: -83.65574189 | AY247: 0.03950516684 | AZ247: 0.355316742 | BA247: 0.9957147392 | BB247: -6.157234901 | BC247: 0.9899707565 | BD247: -0.1067976741 | BE247: 0.3126122638 | BF247: 1.293417302 | BG247: 3.198035794 | BH247: -0.07220597483 | BI247: 0.3113285534 | BJ247: -5.123366927 | BK247: 0.3100847114 | BL247: -0.02780179695
B248: 149 | C248: 5504.789808 | D248: 34587.61444 | E248: 0.01729377831 | F248: 0.0003000747682 | G248: 0.01732266631 | H248: -0.005778957957 | I248: 0.0001333963551 | J248: 0.01154973398 | K248: -0.3613967215 | L248: 0.1306091528 | M248: 0.3613988832 | N248: 78.30664034 | O248: -11.54284707 | P248: 0.01263379035 | Q248: 8.385340385 | R248: 0.01249873105 | S248: 0.00184238451 | T248: -2.891173772 | U248: 8.358985779 | V248: 2.891191066 | W248: -57.82416027 | X248: 3343.633611 | Y248: 57.82416114 | Z248: -28912.08359 | AA248: 835908577.5 | AB248: 28912.08359 | AC248: 0.001199308178 | AD248: 0.3632045407 | AE248: 2.753254534 | AF248: -89.81080895 | AG248: 0.009091248339 | AH248: -2.753239524 | AI248: 0.001199308178 | AJ248: 0.3632045407 | AK248: 5.981515361e-08 | AL248: 0.003458761443 | AM248: 5.981515356e-08 | AN248: 0.00172938072 | AO248: 1.196303072e-07 | AP248: 0.005188142163 | AQ248: 10 | AR248: -57824167.19 | AS248: 0.3000001196 | AT248: 0.005188142163 | AU248: 0.3000449776 | AV248: 0.9907630067 | AW248: 2.765379516 | AX248: -83.58253946 | AY248: 0.04041823953 | AZ248: 0.3593481103 | BA248: 0.9956154362 | BB248: -6.22826949 | BC248: 0.9897388724 | BD248: -0.1080141717 | BE248: 0.3125779263 | BF248: 1.288809746 | BG248: 3.198392904 | BH248: -0.07195670183 | BI248: 0.3112529931 | BJ248: -5.201103556 | BK248: 0.3099714565 | BL248: -0.02821563213
B249: 150 | C249: 5568.596444 | D249: 34988.52336 | E249: 0.0174942331 | F249: 0.0003070481917 | G249: 0.01752279064 | H249: -0.005712661214 | I249: 0.0001326344981 | J249: 0.01151670518 | K249: -0.3572556306 | L249: 0.1276331481 | M249: 0.3572578174 | N249: 78.66177741 | O249: -11.10574293 | P249: 0.01258781847 | Q249: 8.03610408 | R249: 0.01246420828 | S249: 0.001759740214 | T249: -2.858045044 | U249: 8.168521476 | V249: 2.858062539 | W249: -57.16159366 | X249: 3267.44789 | Y249: 57.16159454 | Z249: -28580.80033 | AA249: 816862147.3 | AB249: 28580.80033 | AC249: 0.001227272283 | AD249: 0.3674144854 | AE249: 2.721706577 | AF249: -89.80861598 | AG249: 0.009091248556 | AH249: -2.721691393 | AI249: 0.001227272283 | AJ249: 0.3674144854 | AK249: 6.120983833e-08 | AL249: 0.003498852335 | AM249: 6.120983827e-08 | AN249: 0.001749426166 | AO249: 1.224196766e-07 | AP249: 0.005248278501 | AQ249: 10 | AR249: -57161600.66 | AS249: 0.3000001224 | AT249: 0.005248278501 | AU249: 0.3000460263 | AV249: 1.002244713 | AW249: 2.733971593 | AX249: -83.50850022 | AY249: 0.0413522253 | AZ249: 0.3634231759 | BA249: 0.9955138466 | BB249: -6.300115757 | BC249: 0.9895016734 | BD249: -0.1092440253 | BE249: 0.3125429095 | BF249: 1.284826937 | BG249: 3.198756241 | BH249: -0.07174240833 | BI249: 0.3111761171 | BJ249: -5.279026456 | BK249: 0.3098562463 | BL249: -0.02863009748
B250: 151 | C250: 5633.142671 | D250: 35394.07926 | E250: 0.01769701138 | F250: 0.0003141842117 | G250: 0.01772524222 | H250: -0.005647123194 | I250: 0.0001318900004 | J250: 0.01148433718 | K250: -0.3531619883 | L250: 0.1247249525 | M250: 0.3531642005 | N250: 79.01362769 | O250: -10.67842074 | P250: 0.01254202541 | Q250: 7.696695126 | R250: 0.01242903339 | S250: 0.001679741227 | T250: -2.825295907 | U250: 7.982396961 | V250: 2.825313604 | W250: -56.50661894 | X250: 3192.998084 | Y250: 56.50661982 | Z250: -28253.313 | AA250: 798249695.7 | AB250: 28253.313 | AC250: 0.001255888431 | AD250: 0.3716732279 | AE250: 2.690520102 | AF250: -89.80639759 | AG250: 0.009091248777 | AH250: -2.690504743 | AI250: 0.001255888431 | AJ250: 0.3716732279 | AK250: 6.263704232e-08 | AL250: 0.003539407925 | AM250: 6.263704226e-08 | AN250: 0.001769703961 | AO250: 1.252740846e-07 | AP250: 0.005309111886 | AQ250: 10 | AR250: -56506626.02 | AS250: 0.3000001253 | AT250: 0.005309111886 | AU250: 0.3000470994 | AV250: 1.013859424 | AW250: 2.702926757 | AX250: -83.43361489 | AY250: 0.04230759422 | AZ250: 0.3675423408 | BA250: 0.9954099183 | BB250: -6.372782703 | BC250: 0.9892590398 | BD250: -0.110487364 | BE250: 0.3125073171 | BF250: 1.281458549 | BG250: 3.199124769 | BH250: -0.07156250461 | BI250: 0.3110980108 | BJ250: -5.357156702 | BK250: 0.3097391522 | BL250: -0.02904530771
B251: 152 | C251: 5698.437059 | D251: 35804.33601 | E251: 0.01790214007 | F251: 0.0003214866192 | G251: 0.01793004794 | H251: -0.005582335193 | I251: 0.0001311624662 | J251: 0.01145261831 | K251: -0.3491152511 | L251: 0.1218830211 | M251: 0.3491174889 | N251: 79.36212847 | O251: -10.26068134 | P251: 0.01249645754 | Q251: 7.366870305 | R251: 0.01239330515 | S251: 0.001602322888 | T251: -2.792922009 | U251: 7.800513348 | V251: 2.792939911 | W251: -55.85914911 | X251: 3120.244639 | Y251: 55.85915 | Z251: -27929.57813 | AA251: 780061334.5 | AB251: 27929.57813 | AC251: 0.001285171826 | AD251: 0.3759813341 | AE251: 2.659690967 | AF251: -89.80415348 | AG251: 0.009091249004 | AH251: -2.65967543 | AI251: 0.001285171826 | AJ251: 0.3759813341 | AK251: 6.409752382e-08 | AL251: 0.003580433599 | AM251: 6.409752376e-08 | AN251: 0.001790216798 | AO251: 1.281950476e-07 | AP251: 0.005370650397 | AQ251: 10 | AR251: -55859156.27 | AS251: 0.3000001282 | AT251: 0.005370650398 | AU251: 0.3000481975 | AV251: 1.025608676 | AW251: 2.672240884 | AX251: -83.35787406 | AY251: 0.04328482652 | AZ251: 0.371706008 | BA251: 0.9953035984 | BB251: -6.44627942 | BC251: 0.9890108495 | BD251: -0.1117443177 | BE251: 0.312471246 | BF251: 1.278693998 | BG251: 3.199497521 | BH251: -0.0714163883 | BI251: 0.3110187521 | BJ251: -5.435515658 | BK251: 0.3096202373 | BL251: -0.02946137862
B252: 153 | C252: 5764.488283 | D252: 36219.34808 | E252: 0.01810964643 | F252: 0.0003289592939 | G252: 0.01813723501 | H252: -0.005518288607 | I252: 0.0001304515092 | J252: 0.01142153707 | K252: -0.3451148815 | L252: 0.1191058439 | M252: 0.3451171452 | N252: 79.7072211 | O252: -9.852326791 | P252: 0.01245115746 | Q252: 7.046386864 | R252: 0.01235711587 | S252: 0.001527419248 | T252: -2.760919052 | U252: 7.62277401 | V252: 2.760937161 | W252: -55.21909818 | X252: 3049.148903 | Y252: 55.21909908 | Z252: -27609.55271 | AA252: 762287400.6 | AB252: 27609.55271 | AC252: 0.001315138028 | AD252: 0.3803393759 | AE252: 2.629215078 | AF252: -89.80188336 | AG252: 0.009091249236 | AH252: -2.62919936 | AI252: 0.001315138028 | AJ252: 0.3803393759 | AK252: 6.559205876e-08 | AL252: 0.003621934807 | AM252: 6.559205869e-08 | AN252: 0.001810967402 | AO252: 1.311841174e-07 | AP252: 0.005432902209 | AQ252: 10 | AR252: -55219105.42 | AS252: 0.3000001312 | AT252: 0.005432902209 | AU252: 0.3000493212 | AV252: 1.037494028 | AW252: 2.641909897 | AX252: -83.28126827 | AY252: 0.0442844128 | AZ252: 0.3759145814 | BA252: 0.9951948325 | BB252: -6.520615091 | BC252: 0.9887569775 | BD252: -0.1130150166 | BE252: 0.3124347866 | BF252: 1.276522509 | BG252: 3.199873589 | BH252: -0.07130344825 | BI252: 0.3109384121 | BJ252: -5.514124899 | BK252: 0.309499557 | BL252: -0.02987842669
B253: 154 | C253: 5831.305114 | D253: 36639.17061 | E253: 0.01831955801 | F253: 0.0003366062058 | G253: 0.01834683095 | H253: -0.005454974929 | I253: 0.0001297567515 | J253: 0.0113910821 | K253: -0.341160348 | L253: 0.1163919456 | M253: 0.341162638 | N253: 80.04885091 | O253: -9.453160534 | P253: 0.01240616419 | Q253: 6.735003058 | R253: 0.01232055159 | S253: 0.001454963446 | T253: -2.729282784 | U253: 7.449084515 | V253: 2.729301104 | W253: -54.58638114 | X253: 2979.673106 | Y253: 54.58638205 | Z253: -27293.19423 | AA253: 744918451.2 | AB253: 27293.19423 | AC253: 0.001345802957 | AD253: 0.3847479324 | AE253: 2.599088386 | AF253: -89.79958693 | AG253: 0.009091249474 | AH253: -2.599072486 | AI253: 0.001345802957 | AJ253: 0.3847479324 | AK253: 6.712144113e-08 | AL253: 0.00366391706 | AM253: 6.712144106e-08 | AN253: 0.001831958528 | AO253: 1.342428822e-07 | AP253: 0.005495875588 | AQ253: 10 | AR253: -54586388.46 | AS253: 0.3000001342 | AT253: 0.005495875589 | AU253: 0.3000504711 | AV253: 1.049517052 | AW253: 2.611929769 | AX253: -83.20378794 | AY253: 0.04530685417 | AZ253: 0.3801684662 | BA253: 0.995083565 | BB253: -6.59579899 | BC253: 0.9884972963 | BD253: -0.1142995917 | BE253: 0.3123980233 | BF253: 1.274933189 | BG253: 3.20025213 | BH253: -0.07122306793 | BI253: 0.3108570548 | BJ253: -5.593006155 | BK253: 0.3093771589 | BL253: -0.03029656873
B254: 155 | C254: 5898.896426 | D254: 37063.85935 | E254: 0.01853190269 | F254: 0.0003444314175 | G254: 0.01855886358 | H254: -0.005392385751 | I254: 0.0001290778241 | J254: 0.01136124219 | K254: -0.3372511256 | L254: 0.1137398842 | M254: 0.3372534421 | N254: 80.38696717 | O254: -9.062987442 | P254: 0.01236151341 | Q254: 6.43247864 | R254: 0.01228369239 | S254: 0.001384888046 | T254: -2.698009005 | U254: 7.279352589 | V254: 2.698027537 | W254: -53.96091396 | X254: 2911.780335 | Y254: 53.96091488 | Z254: -26980.46068 | AA254: 727945258.6 | AB254: 26980.46068 | AC254: 0.001377182907 | AD254: 0.3892075889 | AE254: 2.56930689 | AF254: -89.79726387 | AG254: 0.009091249717 | AH254: -2.569290806 | AI254: 0.001377182907 | AJ254: 0.3892075889 | AK254: 6.868648347e-08 | AL254: 0.003706385934 | AM254: 6.86864834e-08 | AN254: 0.001853192965 | AO254: 1.373729669e-07 | AP254: 0.005559578899 | AQ254: 10 | AR254: -53960921.37 | AS254: 0.3000001374 | AT254: 0.005559578899 | AU254: 0.3000516478 | AV254: 1.061679343 | AW254: 2.582296515 | AX254: -83.12542339 | AY254: 0.04635266252 | AZ254: 0.3844680678 | BA254: 0.9949697394 | BB254: -6.671840484 | BC254: 0.9882316754 | BD254: -0.1155981744 | BE254: 0.3123610346 | BF254: 1.273915077 | BG254: 3.200632357 | BH254: -0.07117462862 | BI254: 0.3107747378 | BJ254: -5.672181244 | BK254: 0.3092530838 | BL254: -0.03071592151
B255: 156 | C255: 5967.271196 | D255: 37493.4707 | E255: 0.01874670868 | F255: 0.0003524390863 | G255: 0.01877336108 | H255: -0.005330512759 | I255: 0.0001284143663 | J255: 0.01133200628 | K255: -0.333386695 | L255: 0.1111482509 | M255: 0.3333890383 | N255: 80.72152297 | O255: -8.681613919 | P255: 0.01231723756 | Q255: 6.138575296 | R255: 0.01224661268 | S255: 0.001317125336 | T255: -2.66709356 | U255: 7.113488056 | V255: 2.667112307 | W255: -53.34261356 | X255: 2845.434522 | Y255: 53.3426145 | Z255: -26671.31053 | AA255: 711358805.3 | AB255: 26671.31053 | AC255: 0.001409294551 | AD255: 0.3937189377 | AE255: 2.539866636 | AF255: -89.79491389 | AG255: 0.009091249966 | AH255: -2.539850365 | AI255: 0.001409294551 | AJ255: 0.3937189377 | AK255: 7.028801724e-08 | AL255: 0.003749347069 | AM255: 7.028801717e-08 | AN255: 0.001874673532 | AO255: 1.405760344e-07 | AP255: 0.005624020601 | AQ255: 10 | AR255: -53342621.06 | AS255: 0.3000001406 | AT255: 0.005624020602 | AU255: 0.3000528519 | AV255: 1.07398251 | AW255: 2.553006199 | AX255: -83.04616486 | AY255: 0.04742236072 | AZ255: 0.3888137927 | BA255: 0.9948532975 | BB255: -6.74874903 | BC255: 0.9879599819 | BD255: -0.1169108968 | BE255: 0.3123238935 | BF255: 1.273457206 | BG255: 3.201013541 | BH255: -0.07115751215 | BI255: 0.3106915124 | BJ255: -5.751672029 | BK255: 0.3091273652 | BL255: -0.03113660148
B256: 157 | C256: 6036.438506 | D256: 37928.06173 | E256: 0.0189640045 | F256: 0.0003606334666 | G256: 0.01899035194 | H256: -0.005269347736 | I256: 0.0001277660256 | J256: 0.01130336346 | K256: -0.3295665429 | L256: 0.1086156687 | M256: 0.3295689134 | N256: 81.05247515 | O256: -8.308847972 | P256: 0.01227336612 | Q256: 5.853057038 | R256: 0.0122093814 | S256: 0.0012516076 | T256: -2.636532343 | U256: 6.951402797 | V256: 2.636551307 | W256: -52.73139784 | X256: 2780.600418 | Y256: 52.73139879 | Z256: -26365.70271 | AA256: 695150279.3 | AB256: 26365.70271 | AC256: 0.001442154949 | AD256: 0.3982825782 | AE256: 2.510763712 | AF256: -89.79253667 | AG256: 0.00909125022 | AH256: -2.510747253 | AI256: 0.001442154949 | AJ256: 0.3982825782 | AK256: 7.19268933e-08 | AL256: 0.003792806172 | AM256: 7.192689322e-08 | AN256: 0.001896403084 | AO256: 1.438537865e-07 | AP256: 0.005689209255 | AQ256: 10 | AR256: -52731405.42 | AS256: 0.3000001439 | AT256: 0.005689209256 | AU256: 0.3000540841 | AV256: 1.086428183 | AW256: 2.52405493 | AX256: -82.96600249 | AY256: 0.04851648279 | AZ256: 0.3932060478 | BA256: 0.9947341803 | BB256: -6.826534182 | BC256: 0.9876820797 | BD256: -0.1182378913 | BE256: 0.3122866673 | BF256: 1.273548641 | BG256: 3.201395004 | BH256: -0.07117110341 | BI256: 0.3106074239 | BJ256: -5.831500368 | BK256: 0.3090000303 | BL256: -0.03155872453
B257: 158 | C257: 6106.407542 | D257: 38367.69015 | E257: 0.01918381901 | F257: 0.0003690189118 | G257: 0.01920986496 | H257: -0.005208882559 | I257: 0.0001271324575 | J257: 0.01127530299 | K257: -0.325790162 | L257: 0.1061407922 | M257: 0.32579256 | N257: 81.37978425 | O257: -7.944499296 | P257: 0.01222992568 | Q257: 5.575690548 | R257: 0.01217206239 | S257: 0.001188267356 | T257: -2.606321296 | U257: 6.793010699 | V257: 2.60634048 | W257: -52.1271856 | X257: 2717.243579 | Y257: 52.12718656 | Z257: -26063.59663 | AA257: 679311069.5 | AB257: 26063.59663 | AC257: 0.001475781562 | AD257: 0.4028991163 | AE257: 2.481994254 | AF257: -89.79013189 | AG257: 0.009091250481 | AH257: -2.481977604 | AI257: 0.001475781562 | AJ257: 0.4028991163 | AK257: 7.360398234e-08 | AL257: 0.003836769013 | AM257: 7.360398226e-08 | AN257: 0.001918384505 | AO257: 1.472079646e-07 | AP257: 0.005755153518 | AQ257: 10 | AR257: -52127193.28 | AS257: 0.3000001472 | AT257: 0.005755153519 | AU257: 0.3000553451 | AV257: 1.099018011 | AW257: 2.495438862 | AX257: -82.88492631 | AY257: 0.04963557416 | AZ257: 0.3976452402 | BA257: 0.9946123271 | BB257: -6.905205583 | BC257: 0.9873978298 | BD257: -0.1195792909 | BE257: 0.3122494188 | BF257: 1.274178528 | BG257: 3.201776119 | BH257: -0.07121479254 | BI257: 0.3105225121 | BJ257: -5.911688076 | BK257: 0.3088710998 | BL257: -0.0319824057
B258: 159 | C258: 6177.187597 | D258: 38812.41435 | E258: 0.01940618141 | F258: 0.0003775998769 | G258: 0.01943192932 | H258: -0.005149109196 | I258: 0.0001265133255 | J258: 0.01124781425 | K258: -0.3220570508 | L258: 0.1037223065 | M258: 0.3220594766 | N258: 81.70341436 | O258: -7.588379338 | P258: 0.01218694018 | Q258: 5.306245481 | R258: 0.01213471455 | S258: 0.001127037565 | T258: -2.576456406 | U258: 6.638227613 | V258: 2.576475813 | W258: -51.52989661 | X258: 2655.330345 | Y258: 51.52989758 | Z258: -25764.95218 | AA258: 663832761 | AB258: 25764.95218 | AC258: 0.001510192255 | AD258: 0.4075691652 | AE258: 2.453554441 | AF258: -89.78769923 | AG258: 0.009091250748 | AH258: -2.453537598 | AI258: 0.001510192255 | AJ258: 0.4075691652 | AK258: 7.532017536e-08 | AL258: 0.003881241434 | AM258: 7.532017528e-08 | AN258: 0.001940620715 | AO258: 1.506403506e-07 | AP258: 0.005821862148 | AQ258: 10 | AR258: -51529904.37 | AS258: 0.3000001506 | AT258: 0.005821862149 | AU258: 0.3000566354 | AV258: 1.11175366 | AW258: 2.467154194 | AX258: -82.80292626 | AY258: 0.05078019184 | AZ258: 0.4021317774 | BA258: 0.9944876761 | BB258: -6.984772974 | BC258: 0.9871070906 | BD258: -0.1209352291 | BE258: 0.3122122055 | BF258: 1.275336126 | BG258: 3.202156306 | BH258: -0.07128797684 | BI258: 0.3104368114 | BJ258: -5.992256888 | BK258: 0.3087405885 | BL258: -0.03240775907
B259: 160 | C259: 6248.788072 | D259: 39262.2934 | E259: 0.01963112123 | F259: 0.0003863809208 | G259: 0.01965657449 | H259: -0.005090019709 | I259: 0.0001259083006 | J259: 0.0112208868 | K259: -0.3183667134 | L259: 0.1013589267 | M259: 0.3183691673 | N259: 82.02333309 | O259: -7.240301371 | P259: 0.01214443106 | Q259: 5.044494734 | R259: 0.01209739221 | S259: 0.001067851819 | T259: -2.546933707 | U259: 6.486971307 | V259: 2.546953338 | W259: -50.93945153 | X259: 2594.827822 | Y259: 50.93945251 | Z259: -25469.72969 | AA259: 648707130.3 | AB259: 25469.72969 | AC259: 0.001545405313 | AD259: 0.4122933452 | AE259: 2.425440495 | AF259: -89.78523838 | AG259: 0.00909125102 | AH259: -2.425423456 | AI259: 0.001545405313 | AJ259: 0.4122933452 | AK259: 7.707638413e-08 | AL259: 0.003926229339 | AM259: 7.707638404e-08 | AN259: 0.001963114667 | AO259: 1.541527682e-07 | AP259: 0.005889344006 | AQ259: 10 | AR259: -50939459.38 | AS259: 0.3000001542 | AT259: 0.005889344006 | AU259: 0.3000579558 | AV259: 1.124636818 | AW259: 2.439197167 | AX259: -82.71999219 | AY259: 0.05195090472 | AZ259: 0.4066660672 | BA259: 0.994360164 | BB259: -7.065246188 | BC259: 0.9868097169 | BD259: -0.1223058396 | BE259: 0.3121750807 | BF259: 1.277010842 | BG259: 3.202535031 | BH259: -0.07139006252 | BI259: 0.3103503509 | BJ259: -6.073228434 | BK259: 0.3086085057 | BL259: -0.03283489748
B260: 161 | C260: 6321.218476 | D260: 39717.38705 | E260: 0.01985866835 | F260: 0.0003953667085 | G260: 0.01988383033 | H260: -0.00503160625 | I260: 0.0001253170615 | J260: 0.01119451033 | K260: -0.3147186596 | L260: 0.09904939721 | M260: 0.314721142 | N260: 82.33951147 | O260: -6.900080556 | P260: 0.01210241739 | Q260: 4.790214674 | R260: 0.01206014529 | S260: 0.001010644496 | T260: -2.517749277 | U260: 6.339161422 | V260: 2.517769136 | W260: -50.35577194 | X260: 2535.703868 | Y260: 50.35577294 | Z260: -25177.88994 | AA260: 633926141.8 | AB260: 25177.88994 | AC260: 0.001581439444 | AD260: 0.4170722837 | AE260: 2.397648682 | AF260: -89.782749 | AG260: 0.0090912513 | AH260: -2.397631446 | AI260: 0.001581439444 | AJ260: 0.4170722837 | AK260: 7.887354168e-08 | AL260: 0.003971738704 | AM260: 7.887354158e-08 | AN260: 0.001985869349 | AO260: 1.577470833e-07 | AP260: 0.005957608053 | AQ260: 10 | AR260: -50355779.89 | AS260: 0.3000001577 | AT260: 0.005957608054 | AU260: 0.300059307 | AV260: 1.137669189 | AW260: 2.411564067 | AX260: -82.63611384 | AY260: 0.05314829369 | AZ260: 0.4112485169 | BA260: 0.9942297264 | BB260: -7.146635155 | BC260: 0.986505561 | BD260: -0.1236912567 | BE260: 0.3121380933 | BF260: 1.279192256 | BG260: 3.202911801 | BH260: -0.0715204661 | BI260: 0.310263155 | BJ260: -6.154624208 | BK260: 0.308474855 | BL260: -0.03326393248
B261: 162 | C261: 6394.488429 | D261: 40177.75574 | E261: 0.02008885298 | F261: 0.0004045620141 | G261: 0.02011372701 | H261: -0.004973861061 | I261: 0.0001247392939 | J261: 0.01116867467 | K261: -0.3111124051 | L261: 0.09679249108 | M261: 0.3111149162 | N261: 82.65192381 | O261: -6.567534004 | P261: 0.01206091604 | Q261: 4.543185338 | R261: 0.01202301961 | S261: 0.0009553509035 | T261: -2.48889924 | U261: 6.194719429 | V261: 2.48891933 | W261: -49.77878033 | X261: 2477.927071 | Y261: 49.77878133 | Z261: -24889.39418 | AA261: 619481942.6 | AB261: 24889.39418 | AC261: 0.001618313794 | AD261: 0.4219066154 | AE261: 2.370175312 | AF261: -89.78023076 | AG261: 0.009091251585 | AH261: -2.370157876 | AI261: 0.001618313794 | AJ261: 0.4219066154 | AK261: 8.071260279e-08 | AL261: 0.004017775573 | AM261: 8.071260269e-08 | AN261: 0.002008887784 | AO261: 1.614252055e-07 | AP261: 0.006026663356 | AQ261: 10 | AR261: -49778788.36 | AS261: 0.3000001614 | AT261: 0.006026663357 | AU261: 0.3000606897 | AV261: 1.1508525 | AW261: 2.384251223 | AX261: -82.55128086 | AY261: 0.05437295195 | AZ261: 0.4158795341 | BA261: 0.9940962971 | BB261: -7.228949898 | BC261: 0.9861944716 | BD261: -0.1250916148 | BE261: 0.3121012881 | BF261: 1.281870149 | BG261: 3.203286165 | BH261: -0.0716786157 | BI261: 0.3101752435 | BJ261: -6.236465548 | BK261: 0.3083396348 | BL261: -0.03369497414
B262: 163 | C262: 6468.607662 | D262: 40643.46062 | E262: 0.0203217057 | F262: 0.0004139717227 | G262: 0.02034629506 | H262: -0.004916776472 | I262: 0.0001241746909 | J262: 0.01114336982 | K262: -0.3075474707 | L262: 0.09458700924 | M262: 0.307550011 | N262: 82.9605477 | O262: -6.242480833 | P262: 0.01201994182 | Q262: 4.303190599 | R262: 0.01198605708 | S262: 0.0009019073966 | T262: -2.460379766 | U262: 6.053568591 | V262: 2.460400088 | W262: -49.20840005 | X262: 2421.466736 | Y262: 49.20840107 | Z262: -24604.20409 | AA262: 605366858.8 | AB262: 24604.20409 | AC262: 0.001656047956 | AD262: 0.4267969823 | AE262: 2.343016735 | AF262: -89.77768333 | AG262: 0.009091251878 | AH262: -2.342999098 | AI262: 0.001656047956 | AJ262: 0.4267969823 | AK262: 8.259454451e-08 | AL262: 0.00406434606 | AM262: 8.259454441e-08 | AN262: 0.002032173027 | AO262: 1.651890889e-07 | AP262: 0.006096519088 | AQ262: 10 | AR262: -49208408.18 | AS262: 0.3000001652 | AT262: 0.006096519088 | AU262: 0.3000621047 | AV262: 1.164188496 | AW262: 2.357255006 | AX262: -82.46548279 | AY262: 0.05562548519 | AZ262: 0.4205595257 | BA262: 0.9939598087 | BB262: -7.312200539 | BC262: 0.9858762944 | BD262: -0.126507049 | BE262: 0.3120647062 | BF262: 1.285034519 | BG262: 3.203657707 | BH262: -0.07186395214 | BI262: 0.3100866319 | BJ262: -6.318773618 | BK262: 0.308202839 | BL262: -0.03412813095
B263: 164 | C263: 6543.586019 | D263: 41114.56353 | E263: 0.02055725744 | F263: 0.0004236008336 | G263: 0.02058156538 | H263: -0.004860344902 | I263: 0.0001236229526 | J263: 0.01111858591 | K263: -0.3040233831 | L263: 0.09243177997 | M263: 0.3040259528 | N263: 83.26536385 | O263: -5.924742222 | P263: 0.0119795076 | Q263: 4.070018308 | R263: 0.011949296 | S263: 0.0008502514762 | T263: -2.432187065 | U263: 5.915633918 | V263: 2.432207622 | W263: -48.64455536 | X263: 2366.292867 | Y263: 48.64455639 | Z263: -24322.28179 | AA263: 591573391.4 | AB263: 24322.28179 | AC263: 0.001694661979 | AD263: 0.4317440341 | AE263: 2.316169345 | AF263: -89.77510638 | AG263: 0.009091252177 | AH263: -2.316151503 | AI263: 0.001694661979 | AJ263: 0.4317440341 | AK263: 8.452036668e-08 | AL263: 0.004111456351 | AM263: 8.452036657e-08 | AN263: 0.002055728173 | AO263: 1.690407332e-07 | AP263: 0.006167184524 | AQ263: 10 | AR263: -48644563.59 | AS263: 0.300000169 | AT263: 0.006167184525 | AU263: 0.3000635526 | AV263: 1.177678941 | AW263: 2.33057183 | AX263: -82.37870908 | AY263: 0.05690651184 | AZ263: 0.4252888981 | BA263: 0.9938201924 | BB263: -7.396397294 | BC263: 0.9855508719 | BD263: -0.1279376943 | BE263: 0.3120283852 | BF263: 1.288675603 | BG263: 3.204026048 | BH263: -0.07207592979 | BI263: 0.3099973314 | BJ263: -6.401569393 | BK263: 0.3080644564 | BL263: -0.03456350975
B264: 165 | C264: 6619.433459 | D264: 41591.12705 | E264: 0.02079553948 | F264: 0.0004334544623 | G264: 0.02081956922 | H264: -0.004804558856 | I264: 0.0001230837858 | J264: 0.01109431322 | K264: -0.3005396742 | L264: 0.09032565825 | M264: 0.3005422737 | N264: 83.56635602 | O264: -5.614141456 | P264: 0.01193962449 | Q264: 3.843460407 | R264: 0.01191277121 | S264: 0.0008003218745 | T264: -2.404317393 | U264: 5.780842128 | V264: 2.404338189 | W264: -48.08717137 | X264: 2312.376151 | Y264: 48.08717241 | Z264: -24043.58984 | AA264: 578094212.5 | AB264: 24043.58984 | AC264: 0.00173417638 | AD264: 0.4367484277 | AE264: 2.289629575 | AF264: -89.77249955 | AG264: 0.009091252483 | AH264: -2.289611526 | AI264: 0.00173417638 | AJ264: 0.4367484277 | AK264: 8.649109243e-08 | AL264: 0.004159112703 | AM264: 8.649109231e-08 | AN264: 0.002079556349 | AO264: 1.729821847e-07 | AP264: 0.006238669052 | AQ264: 10 | AR264: -48087179.69 | AS264: 0.300000173 | AT264: 0.006238669053 | AU264: 0.3000650343 | AV264: 1.191325623 | AW264: 2.30419815 | AX264: -82.29094907 | AY264: 0.05821666332 | AZ264: 0.4300680572 | BA264: 0.9936773777 | BB264: -7.481550477 | BC264: 0.9852180432 | BD264: -0.1293836861 | BE264: 0.3119923591 | BF264: 1.292783887 | BG264: 3.204390843 | BH264: -0.0723140174 | BI264: 0.3099073496 | BJ264: -6.484873645 | BK264: 0.3079244716 | BL264: -0.03500121566
B265: 166 | C265: 6696.160055 | D265: 42073.21447 | E265: 0.02103658347 | F265: 0.000443537844 | G265: 0.02106033817 | H265: -0.004749410925 | I265: 0.0001225569041 | J265: 0.01107054218 | K265: -0.2970958813 | L265: 0.08826752516 | M265: 0.2970985109 | N265: 83.86351092 | O265: -5.310503977 | P265: 0.01190030188 | Q265: 3.623313026 | R265: 0.01187651434 | S265: 0.0007520586239 | T265: -2.37676705 | U265: 5.64912161 | V265: 2.376788087 | W265: -47.53617405 | X265: 2259.687943 | Y265: 47.5361751 | Z265: -23768.09123 | AA265: 564922160.6 | AB265: 23768.09123 | AC265: 0.001774612153 | AD265: 0.4418108278 | AE265: 2.263393901 | AF265: -89.7698625 | AG265: 0.009091252796 | AH265: -2.263375643 | AI265: 0.001774612153 | AJ265: 0.4418108278 | AK265: 8.850776876e-08 | AL265: 0.004207321445 | AM265: 8.850776864e-08 | AN265: 0.00210366072 | AO265: 1.770155374e-07 | AP265: 0.006310982165 | AQ265: 10 | AR265: -47536182.47 | AS265: 0.300000177 | AT265: 0.006310982166 | AU265: 0.3000665505 | AV265: 1.205130347 | AW265: 2.278130461 | AX265: -82.202192 | AY265: 0.05955658423 | AZ265: 0.4348974078 | BA265: 0.9935312926 | BB265: -7.567670498 | BC265: 0.984877644 | BD265: -0.1308451599 | BE265: 0.3119566591 | BF265: 1.297350124 | BG265: 3.204751777 | BH265: -0.07257769865 | BI265: 0.30981669 | BJ265: -6.568706935 | BK265: 0.307782865 | BL265: -0.03544135197
B266: 167 | C266: 6773.775998 | D266: 42560.88982 | E266: 0.02128042142 | F266: 0.0004538563356 | G266: 0.02130390423 | H266: -0.004694893784 | I266: 0.0001220420276 | J266: 0.01104726336 | K266: -0.293691547 | L266: 0.08625628725 | M266: 0.293694207 | N266: 84.15681814 | O266: -5.013657421 | P266: 0.01186154766 | Q266: 3.409376552 | R266: 0.01184055401 | S266: 0.0007054031128 | T266: -2.349532376 | U266: 5.520402384 | V266: 2.349553656 | W266: -46.99149022 | X266: 2208.200253 | Y266: 46.99149128 | Z266: -23495.74936 | AA266: 552050238 | AB266: 23495.74936 | AC266: 0.001815990784 | AD266: 0.4469319068 | AE266: 2.237458839 | AF266: -89.76719488 | AG266: 0.009091253117 | AH266: -2.237440369 | AI266: 0.001815990784 | AJ266: 0.4469319068 | AK266: 9.057146708e-08 | AL266: 0.00425608898 | AM266: 9.057146696e-08 | AN266: 0.002128044487 | AO266: 1.81142934e-07 | AP266: 0.006384133467 | AQ266: 10 | AR266: -46991498.73 | AS266: 0.3000001811 | AT266: 0.006384133468 | AU266: 0.300068102 | AV266: 1.219094939 | AW266: 2.252365299 | AX266: -82.11242702 | AY266: 0.06092693264 | AZ266: 0.4397773536 | BA266: 0.9933818638 | BB266: -7.654767866 | BC266: 0.9845295065 | BD266: -0.1323222514 | BE266: 0.3119213132 | BF266: 1.302365337 | BG266: 3.205108563 | BH266: -0.07286647266 | BI266: 0.3097253531 | BJ266: -6.653089602 | BK266: 0.3076396129 | BL266: -0.03588402017
B267: 168 | C267: 6852.291595 | D267: 43054.21787 | E267: 0.02152708571 | F267: 0.0004644154191 | G267: 0.02155029975 | H267: -0.004641000193 | I267: 0.0001215388828 | J267: 0.01102446746 | K267: -0.2903262191 | L267: 0.08429087601 | M267: 0.29032891 | N267: 84.44627005 | O267: -4.723431661 | P267: 0.01182336822 | Q267: 3.201455681 | R267: 0.01180491603 | S267: 0.0006602981291 | T267: -2.322609753 | U267: 5.394616064 | V267: 2.32263128 | W267: -46.45304753 | X267: 2157.885725 | Y267: 46.45304861 | Z267: -23226.52807 | AA267: 539471606.1 | AB267: 23226.52807 | AC267: 0.001858334259 | AD267: 0.4521123447 | AE267: 2.211820943 | AF267: -89.76449634 | AG267: 0.009091253445 | AH267: -2.211802259 | AI267: 0.001858334259 | AJ267: 0.4521123447 | AK267: 9.268328379e-08 | AL267: 0.004305421785 | AM267: 9.268328366e-08 | AN267: 0.00215271089 | AO267: 1.853665674e-07 | AP267: 0.006458132675 | AQ267: 10 | AR267: -46453056.14 | AS267: 0.3000001854 | AT267: 0.006458132676 | AU267: 0.3000696897 | AV267: 1.23322125 | AW267: 2.226899242 | AX267: -82.02164316 | AY267: 0.06232838032 | AZ267: 0.4447082972 | BA267: 0.9932290161 | BB267: -7.742853187 | BC267: 0.9841734595 | BD267: -0.1338150966 | BE267: 0.3118863468 | BF267: 1.307820829 | BG267: 3.205460943 | BH267: -0.07317985439 | BI267: 0.3096333358 | BJ267: -6.738041765 | BK267: 0.307494688 | BL267: -0.03632931985
B268: 169 | C268: 6931.717276 | D268: 43553.26414 | E268: 0.02177660911 | F268: 0.0004752207044 | G268: 0.02179955744 | H268: -0.004587722993 | I268: 0.0001210472023 | J268: 0.01100214535 | K268: -0.2869994508 | L268: 0.08237024725 | M268: 0.2870021729 | N268: 84.7318617 | O268: -4.439658835 | P268: 0.01178576866 | Q268: 2.999359455 | R268: 0.01176962357 | S268: 0.0006166878929 | T268: -2.295995606 | U268: 5.271695824 | V268: 2.296017383 | W268: -45.92077448 | X268: 2108.717629 | Y268: 45.92077557 | Z268: -22960.39159 | AA268: 527179582 | AB268: 22960.39159 | AC268: 0.001901665075 | AD268: 0.4573528297 | AE268: 2.186476809 | AF268: -89.76176652 | AG268: 0.009091253781 | AH268: -2.186457908 | AI268: 0.001901665075 | AJ268: 0.4573528297 | AK268: 9.484434083e-08 | AL268: 0.004355326412 | AM268: 9.48443407e-08 | AN268: 0.002177663203 | AO268: 1.896886815e-07 | AP268: 0.006532989615 | AQ268: 10 | AR268: -45920783.19 | AS268: 0.3000001897 | AT268: 0.006532989616 | AU268: 0.3000713145 | AV268: 1.247511146 | AW268: 2.201728905 | AX268: -81.92982936 | AY268: 0.06376161294 | AZ268: 0.4496906396 | BA268: 0.9930726729 | BB268: -7.831937165 | BC268: 0.9838093283 | BD268: -0.1353238311 | BE268: 0.3118517827 | BF268: 1.313708191 | BG268: 3.205808683 | BH268: -0.07351737489 | BI268: 0.3095406319 | BJ268: -6.82358331 | BK268: 0.3073480591 | BL268: -0.03677734871
B269: 170 | C269: 7012.063589 | D269: 44058.09492 | E269: 0.02202902476 | F269: 0.0004862779319 | G269: 0.02205171041 | H269: -0.004535055109 | I269: 0.0001205667248 | J269: 0.01098028801 | K269: -0.2837108001 | L269: 0.08049338061 | M269: 0.2837135538 | N269: 85.01359071 | O269: -4.162173385 | P269: 0.01174875281 | Q269: 2.802901284 | R269: 0.01173469733 | S269: 0.0005745180801 | T269: -2.269686401 | U269: 5.151576359 | V269: 2.26970843 | W269: -45.39460037 | X269: 2060.669843 | Y269: 45.39460147 | Z269: -22697.30459 | AA269: 515167635.5 | AB269: 22697.30459 | AC269: 0.001946006256 | AD269: 0.4626540577 | AE269: 2.161423071 | AF269: -89.75900506 | AG269: 0.009091254124 | AH269: -2.161403951 | AI269: 0.001946006256 | AJ269: 0.4626540577 | AK269: 9.705578633e-08 | AL269: 0.004405809489 | AM269: 9.705578619e-08 | AN269: 0.002202904741 | AO269: 1.941115725e-07 | AP269: 0.006608714231 | AQ269: 10 | AR269: -45394609.18 | AS269: 0.3000001941 | AT269: 0.006608714232 | AU269: 0.3000729771 | AV269: 1.26196652 | AW269: 2.176850945 | AX269: -81.83697445 | AY269: 0.06522733038 | AZ269: 0.45472478 | BA269: 0.9929127558 | BB269: -7.922030604 | BC269: 0.9834369344 | BD269: -0.1368485911 | BE269: 0.3118176412 | BF269: 1.320019304 | BG269: 3.206151574 | BH269: -0.07387858151 | BI269: 0.3094472324 | BJ269: -6.909733895 | BK269: 0.3071996917 | BL269: -0.03722820253
B270: 171 | C270: 7093.341205 | D270: 44568.77724 | E270: 0.02228436618 | F270: 0.0004975929761 | G270: 0.02230679215 | H270: -0.004482989545 | I270: 0.0001200971953 | J270: 0.01095888659 | K270: -0.2804598303 | L270: 0.07865927894 | M270: 0.2804626159 | N270: 85.29145724 | O270: -3.890812076 | P270: 0.01171232336 | Q270: 2.611898948 | R270: 0.01170015575 | S270: 0.0005337358367 | T270: -2.243678643 | U270: 5.034193852 | V270: 2.243700928 | W270: -44.87445532 | X270: 2013.71684 | Y270: 44.87445643 | Z270: -22437.23211 | AA270: 503429384.8 | AB270: 22437.23211 | AC270: 0.001991381362 | AD270: 0.4680167329 | AE270: 2.1366564 | AF270: -89.75621158 | AG270: 0.009091254476 | AH270: -2.136637059 | AI270: 0.001991381362 | AJ270: 0.4680167329 | AK270: 9.931879518e-08 | AL270: 0.004456877722 | AM270: 9.931879503e-08 | AN270: 0.002228438857 | AO270: 1.986375902e-07 | AP270: 0.006685316579 | AQ270: 10 | AR270: -44874464.23 | AS270: 0.3000001986 | AT270: 0.00668531658 | AU270: 0.3000746784 | AV270: 1.276589283 | AW270: 2.152262055 | AX270: -81.74306718 | AY270: 0.06672624694 | AZ270: 0.4598111158 | BA270: 0.9927491849 | BB270: -8.013144405 | BC270: 0.9830560955 | BD270: -0.1383895122 | BE270: 0.3117839406 | BF270: 1.32674634 | BG270: 3.206489429 | BH270: -0.07426303799 | BI270: 0.3093531256 | BJ270: -6.996512945 | BK270: 0.3070495482 | BL270: -0.03768197514
B271: 172 | C271: 7175.560919 | D271: 45085.37894 | E271: 0.02254266729 | F271: 0.0005091718485 | G271: 0.02256483655 | H271: -0.004431519388 | I271: 0.0001196383641 | J271: 0.01093793235 | K271: -0.2772461097 | L271: 0.07686696783 | M271: 0.2772489276 | N271: 85.56546383 | O271: -3.625414027 | P271: 0.01167648197 | Q271: 2.426174597 | R271: 0.01166601512 | S271: 0.0004942897866 | T271: -2.217968877 | U271: 4.919485941 | V271: 2.21799142 | W271: -44.36027024 | X271: 1967.833676 | Y271: 44.36027137 | Z271: -22180.13962 | AA271: 491958593.7 | AB271: 22180.13962 | AC271: 0.002037814503 | AD271: 0.4734415675 | AE271: 2.112173509 | AF271: -89.75338572 | AG271: 0.009091254835 | AH271: -2.112153943 | AI271: 0.002037814503 | AJ271: 0.4734415675 | AK271: 1.016345696e-07 | AL271: 0.004508537891 | AM271: 1.016345695e-07 | AN271: 0.002254268942 | AO271: 2.032691391e-07 | AP271: 0.006762806834 | AQ271: 10 | AR271: -44360279.26 | AS271: 0.3000002033 | AT271: 0.006762806835 | AU271: 0.3000764195 | AV271: 1.291381371 | AW271: 2.127958968 | AX271: -81.64809615 | AY271: 0.06825909162 | AZ271: 0.4649500422 | BA271: 0.9925818783 | BB271: -8.10528957 | BC271: 0.982666626 | BD271: -0.1399467302 | BE271: 0.3117506971 | BF271: 1.333881765 | BG271: 3.206822078 | BH271: -0.07467032453 | BI271: 0.3092582968 | BJ271: -7.083939655 | BK271: 0.3068975875 | BL271: -0.03813875847
B272: 173 | C272: 7258.733651 | D272: 45607.96862 | E272: 0.02280396239 | F272: 0.0005210207005 | G272: 0.02282587787 | H272: -0.0043806378 | I272: 0.0001191899875 | J272: 0.01091741671 | K272: -0.2740692113 | L272: 0.07511549508 | M272: 0.2740720618 | N272: 85.83561537 | O272: -3.36582073 | P272: 0.01164122928 | Q272: 2.245554729 | R272: 0.01163228974 | S272: 0.0004561300316 | T272: -2.19255369 | U272: 4.807391685 | V272: 2.192576495 | W272: -43.85197684 | X272: 1922.995973 | Y272: 43.85197798 | Z272: -21925.99298 | AA272: 480749168.1 | AB272: 21925.99298 | AC272: 0.002085330351 | AD272: 0.4789292819 | AE272: 2.087971145 | AF272: -89.75052711 | AG272: 0.009091255204 | AH272: -2.087951352 | AI272: 0.002085330351 | AJ272: 0.4789292819 | AK272: 1.0400434e-07 | AL272: 0.00456079686 | AM272: 1.040043399e-07 | AN272: 0.002280398426 | AO272: 2.080086799e-07 | AP272: 0.006841195286 | AQ272: 10 | AR272: -43851985.97 | AS272: 0.300000208 | AT272: 0.006841195287 | AU272: 0.3000782011 | AV272: 1.306344739 | AW272: 2.103938454 | AX272: -81.55204991 | AY272: 0.06982660834 | AZ272: 0.470141952 | BA272: 0.9924107526 | BB272: -8.198477198 | BC272: 0.9822683359 | BD272: -0.1415203808 | BE272: 0.3117179248 | BF272: 1.341418339 | BG272: 3.207149376 | BH272: -0.07510003774 | BI272: 0.3091627292 | BJ272: -7.172032993 | BK272: 0.3067437659 | BL272: -0.0385986425
B273: 174 | C273: 7342.870447 | D273: 46136.61571 | E273: 0.02306828618 | F273: 0.0005331458272 | G273: 0.02308995078 | H273: -0.004330338024 | I273: 0.0001187518274 | J273: 0.01089733121 | K273: -0.2709287132 | L273: 0.07340393016 | M273: 0.2709315968 | N273: 86.10191895 | O273: -3.111876064 | P273: 0.01160656507 | Q273: 2.069870167 | R273: 0.01159899208 | S273: 0.0004192081463 | T273: -2.167429706 | U273: 4.69785153 | V273: 2.167452775 | W273: -43.34950762 | X273: 1879.179911 | Y273: 43.34950878 | Z273: -21674.75842 | AA273: 469795152.6 | AB273: 21674.75842 | AC273: 0.002133954152 | AD273: 0.484480605 | AE273: 2.064046093 | AF273: -89.74763535 | AG273: 0.00909125558 | AH273: -2.064026071 | AI273: 0.002133954152 | AJ273: 0.484480605 | AK273: 1.064293654e-07 | AL273: 0.004613661568 | AM273: 1.064293652e-07 | AN273: 0.00230683078 | AO273: 2.128587306e-07 | AP273: 0.006920492349 | AQ273: 10 | AR273: -43349516.85 | AS273: 0.3000002129 | AT273: 0.00692049235 | AU273: 0.3000800242 | AV273: 1.321481368 | AW273: 2.080197322 | AX273: -81.45491687 | AY273: 0.07142955623 | AZ273: 0.4753872352 | BA273: 0.9922357226 | BB273: -8.292718489 | BC273: 0.9818610317 | BD273: -0.1431105994 | BE273: 0.3116856361 | BF273: 1.349349115 | BG273: 3.207471189 | BH273: -0.07555179059 | BI273: 0.3090664035 | BJ273: -7.260811698 | BK273: 0.3065880366 | BL273: -0.03906171529
B274: 175 | C274: 7427.982483 | D274: 46671.3904 | E274: 0.02333567377 | F274: 0.0005455536704 | G274: 0.02335709037 | H274: -0.004280613379 | I274: 0.0001183236509 | J274: 0.01087766753 | K274: -0.2678241984 | L274: 0.07173136377 | M274: 0.2678271154 | N274: 86.36438383 | O274: -2.863426316 | P274: 0.01157248828 | Q274: 1.898956019 | R274: 0.0115661329 | S274: 0.000383477168 | T274: -2.142593587 | U274: 4.590807281 | V274: 2.142616924 | W274: -42.85279584 | X274: 1836.362212 | Y274: 42.85279701 | Z274: -21426.40258 | AA274: 459090727.7 | AB274: 21426.40258 | AC274: 0.002183711742 | AD274: 0.4900962741 | AE274: 2.040395176 | AF274: -89.74471008 | AG274: 0.009091255966 | AH274: -2.040374922 | AI274: 0.002183711742 | AJ274: 0.4900962741 | AK274: 1.08910934e-07 | AL274: 0.004667139037 | AM274: 1.089109338e-07 | AN274: 0.002333569515 | AO274: 2.178218679e-07 | AP274: 0.007000708552 | AQ274: 10 | AR274: -42852805.18 | AS274: 0.3000002178 | AT274: 0.007000708553 | AU274: 0.3000818898 | AV274: 1.336793258 | AW274: 2.056732416 | AX274: -81.35668534 | AY274: 0.07306870984 | AZ274: 0.4806862791 | BA274: 0.9920567011 | BB274: -8.388024744 | BC274: 0.9814445157 | BD274: -0.1447175212 | BE274: 0.3116538418 | BF274: 1.357667436 | BG274: 3.207787405 | BH274: -0.07602521228 | BI274: 0.3089692981 | BJ274: -7.350294287 | BK274: 0.3064303501 | BL274: -0.03952806297
B275: 176 | C275: 7514.081061 | D275: 47212.36372 | E275: 0.02360616068 | F275: 0.000558250822 | G275: 0.0236273321 | H275: -0.004231457261 | I275: 0.0001179052306 | J275: 0.0108584175 | K275: -0.2647552545 | L275: 0.07009690731 | M275: 0.2647582054 | N275: 86.62302132 | O275: -2.620320186 | P275: 0.0115389971 | Q275: 1.732651639 | R275: 0.01153372137 | S275: 0.0003488915819 | T275: -2.118042036 | U275: 4.486202068 | V275: 2.118065643 | W275: -42.36177553 | X275: 1794.520126 | Y275: 42.36177671 | Z275: -21180.89248 | AA275: 448630206.3 | AB275: 21180.89248 | AC275: 0.00223462956 | AD275: 0.4957770351 | AE275: 2.017015253 | AF275: -89.7417509 | AG275: 0.00909125636 | AH275: -2.016994765 | AI275: 0.00223462956 | AJ275: 0.4957770351 | AK275: 1.114503643e-07 | AL275: 0.004721236369 | AM275: 1.114503642e-07 | AN275: 0.002360618181 | AO275: 2.229007285e-07 | AP275: 0.00708185455 | AQ275: 10 | AR275: -42361784.97 | AS275: 0.3000002229 | AT275: 0.007081854551 | AU275: 0.300083799 | AV275: 1.352282435 | AW275: 2.033540619 | AX275: -81.25734353 | AY275: 0.07474485946 | AZ275: 0.4860394676 | BA275: 0.9918735994 | BB275: -8.484407361 | BC275: 0.9810185863 | BD275: -0.1463412808 | BE275: 0.3116225512 | BF275: 1.366366932 | BG275: 3.208097923 | BH275: -0.07651994807 | BI275: 0.3088713895 | BJ275: -7.440499057 | BK275: 0.3062706543 | BL275: -0.03999776978
B276: 177 | C276: 7601.177618 | D276: 47759.60753 | E276: 0.02387978283 | F276: 0.0005712440278 | G276: 0.02390071187 | H276: -0.004182863142 | I276: 0.0001174963441 | J276: 0.01083957306 | K276: -0.261721474 | L276: 0.06849969243 | M276: 0.261724459 | N276: 86.8778447 | O276: -2.382408801 | P276: 0.01150608902 | Q276: 1.570800577 | R276: 0.0115017652 | S276: 0.0003154073025 | T276: -2.093771792 | U276: 4.383980316 | V276: 2.093795672 | W276: -41.87638147 | X276: 1753.631425 | Y276: 41.87638267 | Z276: -20938.19551 | AA276: 438408031.1 | AB276: 20938.19551 | AC276: 0.002286734661 | AD276: 0.5015236425 | AE276: 1.993903219 | AF276: -89.73875741 | AG276: 0.009091256764 | AH276: -1.993882493 | AI276: 0.002286734661 | AJ276: 0.5015236425 | AK276: 1.140490055e-07 | AL276: 0.00477596075 | AM276: 1.140490053e-07 | AN276: 0.002387980371 | AO276: 2.280980108e-07 | AP276: 0.007163941121 | AQ276: 10 | AR276: -41876391.03 | AS276: 0.3000002281 | AT276: 0.007163941122 | AU276: 0.3000857526 | AV276: 1.367950947 | AW276: 2.010618848 | AX276: -81.15687957 | AY276: 0.07645881135 | AZ276: 0.4914471813 | BA276: 0.9916863265 | BB276: -8.581877841 | BC276: 0.9805830378 | BD276: -0.1479820129 | BE276: 0.3115917722 | BF276: 1.375441521 | BG276: 3.208402659 | BH276: -0.07703565912 | BI276: 0.3087726521 | BJ276: -7.531444092 | BK276: 0.3061088948 | BL276: -0.04047091808
B277: 178 | C277: 7689.283721 | D277: 48313.1945 | E277: 0.02415657655 | F277: 0.0005845401906 | G277: 0.02417726599 | H277: -0.004134824567 | I277: 0.0001170967742 | J277: 0.01082112629 | K277: -0.2587224538 | L277: 0.06693887058 | M277: 0.2587254734 | N277: 87.12886914 | O277: -2.149545719 | P277: 0.01147376091 | Q277: 1.413250518 | R277: 0.01147027074 | S277: 0.0002829816523 | T277: -2.06977963 | U277: 4.284087717 | V277: 2.069803787 | W277: -41.3965492 | X277: 1713.674386 | Y277: 41.39655041 | Z277: -20698.27943 | AA277: 428418771.3 | AB277: 20698.27943 | AC277: 0.00234005473 | AD277: 0.5073368594 | AE277: 1.971056004 | AF277: -89.73572922 | AG277: 0.009091257177 | AH277: -1.971035038 | AI277: 0.00234005473 | AJ277: 0.5073368594 | AK277: 1.167082381e-07 | AL277: 0.004831319447 | AM277: 1.167082379e-07 | AN277: 0.002415659719 | AO277: 2.334164759e-07 | AP277: 0.007246979166 | AQ277: 10 | AR277: -41396558.87 | AS277: 0.3000002334 | AT277: 0.007246979167 | AU277: 0.3000877518 | AV277: 1.383800866 | AW277: 1.987964057 | AX277: -81.05528143 | AY277: 0.07821138799 | AZ277: 0.4969097969 | BA277: 0.9914947898 | BB277: -8.680447782 | BC277: 0.9801376603 | BD277: -0.1496398514 | BE277: 0.3115615112 | BF277: 1.384885397 | BG277: 3.208701538 | BH277: -0.0775720222 | BI277: 0.3086730582 | BJ277: -7.623147267 | BK277: 0.3059450144 | BL277: -0.04094758835
B278: 179 | C278: 7778.411071 | D278: 48873.19816 | E278: 0.02443657862 | F278: 0.0005981463745 | G278: 0.02445703119 | H278: -0.004087335157 | I278: 0.0001167063087 | J278: 0.01080306941 | K278: -0.2557577956 | L278: 0.06541361253 | M278: 0.2557608503 | N278: 87.37611161 | O278: -1.921586928 | P278: 0.01144200906 | Q278: 1.259853227 | R278: 0.01143924308 | S278: 0.000251573337 | T278: -2.046062365 | U278: 4.186471202 | V278: 2.046086802 | W278: -40.92221499 | X278: 1674.62778 | Y278: 40.92221621 | Z278: -20461.11238 | AA278: 418657119.8 | AB278: 20461.11238 | AC278: 0.0023946181 | AD278: 0.5132174579 | AE278: 1.948470574 | AF278: -89.73266592 | AG278: 0.0090912576 | AH278: -1.948449365 | AI278: 0.0023946181 | AJ278: 0.5132174579 | AK278: 1.194294748e-07 | AL278: 0.004887319813 | AM278: 1.194294746e-07 | AN278: 0.002443659902 | AO278: 2.388589494e-07 | AP278: 0.007330979715 | AQ278: 10 | AR278: -40922224.77 | AS278: 0.3000002389 | AT278: 0.007330979716 | AU278: 0.3000897975 | AV278: 1.399834286 | AW278: 1.965573234 | AX278: -80.95253704 | AY278: 0.08000342837 | AZ278: 0.5024276871 | BA278: 0.9912988946 | BB278: -8.780128885 | BC278: 0.9796822396 | BD278: -0.1513149297 | BE278: 0.3115317737 | BF278: 1.394693035 | BG278: 3.2089945 | BH278: -0.07812872952 | BI278: 0.3085725785 | BJ278: -7.71562625 | BK278: 0.305778954 | BL278: -0.0414278592
B279: 180 | C279: 7868.571507 | D279: 49439.69288 | E279: 0.02471982621 | F279: 0.000612069808 | G279: 0.02474004462 | H279: -0.004040388604 | I279: 0.0001163247401 | J279: 0.01078539476 | K279: -0.2528271058 | L279: 0.06392310795 | M279: 0.2528301959 | N279: 87.61959082 | O279: -1.698390856 | P279: 0.01141082924 | Q279: 1.11046448 | R279: 0.01140868617 | S279: 0.000221142419 | T279: -2.022616847 | U279: 4.091078909 | V279: 2.022641567 | W279: -40.45331584 | X279: 1636.470862 | Y279: 40.45331708 | Z279: -20226.66286 | AA279: 409117890.4 | AB279: 20226.66286 | AC279: 0.002450453761 | AD279: 0.5191662192 | AE279: 1.926143929 | AF279: -89.72956712 | AG279: 0.009091258033 | AH279: -1.926122474 | AI279: 0.002450453761 | AJ279: 0.5191662192 | AK279: 1.222141615e-07 | AL279: 0.004943969285 | AM279: 1.222141613e-07 | AN279: 0.002471984638 | AO279: 2.444283228e-07 | AP279: 0.007415953923 | AQ279: 10 | AR279: -40453325.73 | AS279: 0.3000002444 | AT279: 0.007415953924 | AU279: 0.300091891 | AV279: 1.416053327 | AW279: 1.943443404 | AX279: -80.84863417 | AY279: 0.08183578823 | AZ279: 0.5080012202 | BA279: 0.9910985442 | BB279: -8.880932949 | BC279: 0.9792165572 | BD279: -0.1530073807 | BE279: 0.3115025639 | BF279: 1.404859179 | BG279: 3.209281496 | BH279: -0.07870548841 | BI279: 0.308471182 | BJ279: -7.808898515 | BK279: 0.3056106518 | BL279: -0.04191180745
B280: 181 | C280: 7959.777002 | D280: 50012.75391 | E280: 0.02500635696 | F280: 0.0006263178884 | G280: 0.02502634389 | H280: -0.003993978672 | I280: 0.0001159518656 | J280: 0.0107680948 | K280: -0.2499299951 | L280: 0.06246656496 | M280: 0.249933121 | N280: 87.85932709 | O280: -1.47981836 | P280: 0.01138021675 | Q280: 0.9649439954 | R280: 0.01137860288 | S280: 0.0001916502893 | T280: -1.999439961 | U280: 3.997860158 | V280: 1.999464968 | W280: -39.98978947 | X280: 1599.183362 | Y280: 39.98979072 | Z280: -19994.89973 | AA280: 399796015.3 | AB280: 19994.89973 | AC280: 0.002507591384 | AD280: 0.5251839332 | AE280: 1.904073103 | AF280: -89.72643239 | AG280: 0.009091258475 | AH280: -1.904051399 | AI280: 0.002507591384 | AJ280: 0.5251839332 | AK280: 1.250637776e-07 | AL280: 0.005001275388 | AM280: 1.250637774e-07 | AN280: 0.002500637689 | AO280: 2.50127555e-07 | AP280: 0.007501913077 | AQ280: 10 | AR280: -39989799.47 | AS280: 0.3000002501 | AT280: 0.007501913078 | AU280: 0.3000940332 | AV280: 1.432460133 | AW280: 1.921571626 | AX280: -80.74356052 | AY280: 0.08370934035 | AZ280: 0.5136307599 | BA280: 0.99089364 | BB280: -8.982871875 | BC280: 0.9787403903 | BD280: -0.1547173366 | BE280: 0.311473885 | BF280: 1.415378842 | BG280: 3.209562484 | BH280: -0.07930202104 | BI280: 0.3083688359 | BJ280: -7.90298134 | BK280: 0.3054400444 | BL280: -0.04239950805
B281: 182 | C281: 8052.039671 | D281: 50592.45735 | E281: 0.02529620891 | F281: 0.0006408981852 | G281: 0.025315967 | H281: -0.003948099199 | I281: 0.0001155874873 | J281: 0.01075116214 | K281: -0.2470660787 | L281: 0.06104320975 | M281: 0.2470692408 | N281: 88.09534231 | O281: -1.265732724 | P281: 0.01135016646 | Q281: 0.8231553628 | R281: 0.01134899512 | S281: 0.0001630596367 | T281: -1.97652863 | U281: 3.906765424 | V281: 1.976553926 | W281: -39.53157432 | X281: 1562.745469 | Y281: 39.53157559 | Z281: -19765.79222 | AA281: 390686541.9 | AB281: 19765.79222 | AC281: 0.002566061328 | AD281: 0.5312713992 | AE281: 1.882255166 | AF281: -89.72326133 | AG281: 0.009091258928 | AH281: -1.88223321 | AI281: 0.002566061328 | AJ281: 0.5312713992 | AK281: 1.27979837e-07 | AL281: 0.005059245732 | AM281: 1.279798367e-07 | AN281: 0.002529622861 | AO281: 2.559596737e-07 | AP281: 0.007588868593 | AQ281: 10 | AR281: -39531584.44 | AS281: 0.300000256 | AT281: 0.007588868595 | AU281: 0.3000962254 | AV281: 1.449056872 | AW281: 1.899954992 | AX281: -80.63730367 | AY281: 0.08562497482 | AZ281: 0.5193166646 | BA281: 0.9906840812 | BB281: -9.085957664 | BC281: 0.9782535116 | BD281: -0.156444929 | BE281: 0.3114457393 | BF281: 1.426247297 | BG281: 3.209837433 | BH281: -0.07991806413 | BI281: 0.3082655061 | BJ281: -7.997891819 | BK281: 0.3052670657 | BL281: -0.04289103421
B282: 183 | C282: 8145.371766 | D282: 51178.8802 | E282: 0.02558942056 | F282: 0.0006558184447 | G282: 0.02560895243 | H282: -0.00390274409 | I282: 0.0001152314114 | J282: 0.01073458949 | K282: -0.2442349762 | L282: 0.05965228612 | M282: 0.244238175 | N282: 88.32765988 | O282: -1.055999656 | P282: 0.01132067285 | Q282: 0.6849659675 | R282: 0.01131986388 | S282: 0.0001353344171 | T282: -1.95387981 | U282: 3.817746311 | V282: 1.9539054 | W282: -39.07860954 | X282: 1527.137824 | Y282: 39.07861082 | Z282: -19539.30988 | AA282: 381784630.7 | AB282: 19539.30988 | AC282: 0.002625894661 | AD282: 0.5374294257 | AE282: 1.860687219 | AF282: -89.7200535 | AG282: 0.009091259392 | AH282: -1.860665009 | AI282: 0.002625894661 | AJ282: 0.5374294257 | AK282: 1.309638889e-07 | AL282: 0.005117888017 | AM282: 1.309638886e-07 | AN282: 0.002558944003 | AO282: 2.619277775e-07 | AP282: 0.00767683202 | AQ282: 10 | AR282: -39078619.78 | AS282: 0.3000002619 | AT282: 0.007676832022 | AU282: 0.3000984687 | AV282: 1.465845738 | AW282: 1.87859063 | AX282: -80.52985109 | AY282: 0.08758359927 | AZ282: 0.5250592875 | BA282: 0.9904697649 | BB282: -9.190202415 | BC282: 0.9777556892 | BD282: -0.1581902884 | BE282: 0.3114181284 | BF282: 1.437460071 | BG282: 3.210106321 | BH282: -0.08055336866 | BI282: 0.3081611565 | BJ282: -8.093646864 | BK282: 0.3050916481 | BL282: -0.04338645734
B283: 184 | C283: 8239.785685 | D283: 51772.10035 | E283: 0.02588603086 | F283: 0.0006710865936 | G283: 0.02590533909 | H283: -0.003857907321 | I283: 0.0001148834489 | J283: 0.01071836969 | K283: -0.2414363117 | L283: 0.0582930551 | M283: 0.2414395475 | N283: 88.55630457 | O283: -0.8504872747 | P283: 0.01129173005 | Q283: 0.5502469136 | R283: 0.01129120934 | S283: 0.0001084398215 | T283: -1.931490494 | U283: 3.730755526 | V283: 1.93151638 | W283: -38.63083496 | X283: 1492.34151 | Y283: 38.63083625 | Z283: -19315.42265 | AA283: 373085552.2 | AB283: 19315.42265 | AC283: 0.002687123177 | AD283: 0.5436588306 | AE283: 1.839366399 | AF283: -89.71680849 | AG283: 0.009091259866 | AH283: -1.839343931 | AI283: 0.002687123177 | AJ283: 0.5436588306 | AK283: 1.340175186e-07 | AL283: 0.005177210031 | AM283: 1.340175184e-07 | AN283: 0.00258860501 | AO283: 2.68035037e-07 | AP283: 0.007765815042 | AQ283: 10 | AR283: -38630845.31 | AS283: 0.300000268 | AT283: 0.007765815043 | AU283: 0.3001007643 | AV283: 1.482828948 | AW283: 1.857475698 | AX283: -80.42119016 | AY283: 0.08958613917 | AZ283: 0.5308589761 | BA283: 0.9902505862 | BB283: -9.295618329 | BC283: 0.9772466869 | BD283: -0.1599535445 | BE283: 0.3113910528 | BF283: 1.449012946 | BG283: 3.210369132 | BH283: -0.0812076995 | BI283: 0.3080557502 | BJ283: -8.190263214 | BK283: 0.3049137216 | BL283: -0.04388584708
B284: 185 | C284: 8335.293965 | D284: 52372.19657 | E284: 0.02618607919 | F284: 0.0006867107435 | G284: 0.02620516635 | H284: -0.003813582939 | I284: 0.0001145434148 | J284: 0.01070249573 | K284: -0.2386697134 | L284: 0.05696479458 | M284: 0.2386729867 | N284: 88.7813025 | O284: -0.6490661003 | P284: 0.0112633319 | Q284: 0.418872945 | R284: 0.01126303091 | S284: 8.234224264e-05 | T284: -1.909357707 | U284: 3.645746853 | V284: 1.909383894 | W284: -38.18819111 | X284: 1458.33804 | Y284: 38.18819242 | Z284: -19094.10079 | AA284: 364584684.8 | AB284: 19094.10079 | AC284: 0.002749779409 | AD284: 0.5499604412 | AE284: 1.818289872 | AF284: -89.71352586 | AG284: 0.009091260352 | AH284: -1.818267145 | AI284: 0.002749779409 | AJ284: 0.5499604412 | AK284: 1.371423486e-07 | AL284: 0.005237219654 | AM284: 1.371423483e-07 | AN284: 0.002618609821 | AO284: 2.742846969e-07 | AP284: 0.007855829475 | AQ284: 10 | AR284: -38188201.58 | AS284: 0.3000002743 | AT284: 0.007855829477 | AU284: 0.3001031133 | AV284: 1.500008746 | AW284: 1.83660739 | AX284: -80.31130816 | AY284: 0.09163353812 | AZ284: 0.5367160716 | BA284: 0.9900264378 | BB284: -9.402217706 | BC284: 0.9767262634 | BD284: -0.1617348262 | BE284: 0.3113645126 | BF284: 1.460901946 | BG284: 3.210625857 | BH284: -0.08188083513 | BI284: 0.3079492483 | BJ284: -8.287757442 | BK284: 0.3047332146 | BL284: -0.04438927135
... 815 more rows

Sheet Info
B7: Application information and hints:
B8: 1., This file uses dot (.) as separator between the integer and fractional parts of numbers. Preferences in your Microsoft Excel options must be set or be changed accordingly.
B9: 2., Enter your data in the top left area of the Time_harm worksheet. Select the required input parameter (red) and enter your data in the units shown. Numbers shown in blue indicate output fields. It is not suggested to change these fields unless you understand the implications.
B10: 3., There is no error checking of most of your entered input data. Physically invalid input (e.g., negative resistance) may result in meaningless output.
B11: 4., For explanatory information, see the worksheet "Reference". For suggested input data to explore, use the Data >> What-if Analysis >> Scenario toolbar.
B12: 5., If Automatic Recalculation is selected in the Options >> Formulas menu, numerical and graphical outputs are automatically updated after each new entry.
B13: 6., On slower computers, deselect Automatic Recalculation, and use manual recalculation by pressing F9.
B14: 7., For best viewing, set the current window to display all input output fields and graphs.
B15: 8., The calculation part of the worksheets can be viewed and changed if necessary below the input/output areas. To navigate among cells, you can switch back on the Row and Column Headers and Scroll bars in the Options >> Advanced >> Display menu.
B16: 9., This spreadsheet has been tested on Windows 10 with 64-bit Excel 2016, with US system settings.

Sheet Reference
B1: Expressions used on the worksheets
B9: The complex impedance of the series-equivalent capacitor model:
B14: The absolute value of the impedance:
B18: The admittance of capacitor with the components of series equivalent (R, L, C)
B24: The impedance magnitude of parallel-connected capacitors is the inverse of parallel admittance.
B25: The admittance of N parallel-connected capacitors is the sum of individual Yi admittances:
B32: The Vout/Vin transfer ratio is calculated with the assumption of no load at the output and voltage
B33: source at the input. The output impedance is calculated with open at the input side. To correctly
B34: account for the low source impedance, select capacitor banks C1 through C3 to represent the
B35: impedance of the DC source as well (see the PDN1 scenario).

Sheet Copyright
B2: This toolset is copyright, Istvan Novak, 2006 - 2019. All rights reserved. You are hereby granted a limited right to run, copy, and reproduce the toolset for your personal, non-commercial purposes only. By using the file(s), you acknowledge not to run, show or disseminate in any way the toolset in full or in part at public or commercial presentations without the express written consent of the author.
